{"text_format":"1","workbook":"xlsx","n_sheets":24,"sheets":["Žebříček ZMĚNA","navody","berger","Body_old","body","info","cfgNasazeniSkPavouk","cfgSkupiny","cfgBtm","ovladani","opMuziJedn","Tisk základ template","Tisk druhá část Template","Conf","opMuziCtyrh","vychozi","zebricek_2022","evidence_20221105","evidence_20230925","evidence_20220830","poziceHistorie","Kontakty","prezence","souhrn"],"not_rendered":{"charts":0,"images":4,"macros":1,"external_links":0,"defined_names":64,"comments":4,"pivot_tables":1},"unopened":[],"bounds":{"document_bytes":16777216,"sheet_cells":100000,"rows_first":2000,"rows_last":500,"rows_between":2000,"halvings":0,"cell_chars":16384,"cell_head_chars":4096},"cells_cut":0,"cells_raw":0,"read":"whole","date_system":"1900"}

{"sheet":"Žebříček ZMĚNA","index":0,"n_rows":76,"n_cols":13,"rows_kept":76,"cut":false,"hidden":true,"merged":[]}
["Přítomnost","Přijmení","Jméno","Oddíl","Check Rudná","poř.","příjmení","jméno","narození","kategorie","kateg.","oddíl","oddíl"]
[null,{"$f":"CONCATENATE(G2,\" \",LEFT(H2,1),\". \",\"(\",L2,\")\")","v":"Vágner J. (Roztoky)"},null,{"$f":"+L2","v":"Roztoky"},null,1,"Vágner","Jonáš",2005,"D","Hráč","Roztoky"," Sokol Roztoky u Prahy"]
[null,{"$f":"CONCATENATE(G3,\" \",LEFT(H3,1),\". \",\"(\",L3,\")\")","v":"Ciněk D. (Roztoky)"},null,{"$f":"+L3","v":"Roztoky"},null,2,"Ciněk","David",2008,"SŽ","Člen","Roztoky"," Sokol Roztoky u Prahy"]
["X","Ducháček P. (Úholičky)",null,"Úholičky",null,3,"Ducháček","Petr",2009,"MŽ","Hráč","Úholičky","TJ Úholičky, z.s."]
[null,"Machek J. (Roztoky)",null,"Roztoky",null,4,"Machek","Jan",2008,"SŽ","Hráč","Roztoky"," Sokol Roztoky u Prahy"]
[null,"Vašků K. (Roztoky)",null,"Roztoky",null,5,"Vašků","Karolína",2010,"MŽ","Hráč","Roztoky"," Sokol Roztoky u Prahy"]
["X","Yosypenko M. (Úholičky)",null,"Úholičky",null,6,"Yosypenko","Michal",2008,"SŽ","Člen","Úholičky","TJ Úholičky, z.s."]
[null,"Müller V. (Davle)",null,"Davle",null,7,"Müller","Vojtěch",2009,"MŽ","Hráč","Davle","TJ. Slavoj Davle"]
["X","Toman O. (Davle)",null,"Davle",null,8,"Toman","Olin",2008,"SŽ","Hráč","Davle","TJ. Slavoj Davle"]
[null,"Kaláb M. (Roztoky)",null,"Roztoky",null,9,"Kaláb","Matyáš",2009,"MŽ","Neregistrován","Roztoky"," Sokol Roztoky u Prahy"]
[null,"Hora O. ( Rudná)",null," Rudná",null,50,"Hora","Ondřej",2007,"SŽ","Hráč"," Rudná"," Sokol Rudná"]
[null,"Kolbušovský M. ( Rudná)",null," Rudná",null,10,"Kolbušovský","Michal",2005,"D","Hráč"," Rudná"," Sokol Rudná"]
["X","Šťastný J. (Ořech)",null,{"$f":"+L13","v":"Ořech"},null,45,"Šťastný","Jan",2008,"SŽ","Hráč","Ořech","SK Viktorie Ořech"]
["X","Frýdl L. ( Rudná)",null," Rudná",null,70,"Frýdl","Lukáš",2010,"MŽ","Hráč"," Rudná"," Sokol Rudná"]
["X","Šťastná D. (Ořech)",null,{"$f":"+L15","v":"Ořech"},null,54,"Šťastná","Dominika",2008,"SŽ","Hráč","Ořech","SK Viktorie Ořech"]
[null,"Bosch M. ( Rudná)",null," Rudná",null,69,"Bosch","Maxmilian",2005,"D","Hráč"," Rudná"," Sokol Rudná"]
["X","Šťastná N. (Ořech)",null,{"$f":"+L17","v":"Ořech"},null,58,"Šťastná","Nataly",2008,"SŽ","Hráč","Ořech","SK Viktorie Ořech"]
[null,"Bosch M. ( Rudná)",null," Rudná",null,11,"Bosch","Maya",2008,"SŽ","Hráč"," Rudná"," Sokol Rudná"]
["X","Jurenka D. ( Rudná)",null," Rudná",null,12,"Jurenka","David",2007,"SŽ","Hráč"," Rudná"," Sokol Rudná"]
[null,"Kalinová H. (Roztoky)",null,"Roztoky",null,13,"Kalinová","Hana",2009,"MŽ","Neregistrován","Roztoky"," Sokol Roztoky u Prahy"]
[null,"Cabicar Š. (Roztoky)",null,"Roztoky",null,14,"Cabicar","Šimon",2005,"D","Hráč","Roztoky"," Sokol Roztoky u Prahy"]
["X","Sazimová A. (Úholičky)",null,"Úholičky",null,15,"Sazimová","Adéla",2008,"SŽ","Člen","Úholičky","TJ Úholičky, z.s."]
[null,"Teichman P. ( Rudná)",null," Rudná",null,16,"Teichman","Petr",2007,"SŽ","Hráč"," Rudná"," Sokol Rudná"]
["X","Kutil T. ( Rudná)",null," Rudná",null,17,"Kutil","Tomáš",2008,"SŽ","Hráč"," Rudná"," Sokol Rudná"]
["X","Skyva M. (Davle)",null,"Davle",null,18,"Skyva","Michal",2006,"D","Hráč","Davle","TJ. Slavoj Davle"]
[null,"Teichman R. ( Rudná)",null," Rudná",null,19,"Teichman","Radim",2009,"MŽ","Hráč"," Rudná"," Sokol Rudná"]
[null,"Stříbrný M. (Roztoky)",null,"Roztoky",null,20,"Stříbrný","Maxmilián",2006,"D","Neregistrován","Roztoky"," Sokol Roztoky u Prahy"]
[null,"Čepela O. (Roztoky)",null,"Roztoky",null,21,"Čepela","Ondřej",2008,"SŽ","Neregistrován","Roztoky"," Sokol Roztoky u Prahy"]
[null,"Nováková K. (Roztoky)",null,"Roztoky",null,22,"Nováková","Karolína",2005,"D","Člen","Roztoky"," Sokol Roztoky u Prahy"]
["X","Břečková A. (Úholičky)",null,"Úholičky",null,23,"Břečková","Aneta",2008,"SŽ","Člen","Úholičky","TJ Úholičky, z.s."]
["X","Knotek M. (Davle)",null,"Davle",null,24,"Knotek","Martin",2008,"SŽ","Hráč","Davle","TJ. Slavoj Davle"]
["X","Kohoutková K. ( Rudná)",null," Rudná",null,25,"Kohoutková","Karolína",2010,"MŽ","Hráč"," Rudná"," Sokol Rudná"]
[null,"Pojerová G. (Libčice)",null,"Libčice",null,26,"Pojerová","Gabriela",2010,"MŽ","Člen","Libčice"," Sokol Libčice nad Vltavou"]
["X","Kuliš D. (Černošice)",null,"Černošice",null,27,"Kuliš","David",2007,"SŽ","Člen","Černošice"," Sokol Černošice"]
["X","Ducháček M. (Úholičky)",null,"Úholičky",null,28,"Ducháček","Michal",2013,"NŽ","Člen","Úholičky","TJ Úholičky, z.s."]
[null,"Lukáš L. (Roztoky)",null,"Roztoky",null,29,"Lukáš","Lukáš",2006,"D","Hráč","Roztoky"," Sokol Roztoky u Prahy"]
[null,"Lederer J. (Roztoky)",null,"Roztoky",null,30,"Lederer","Jan",2004,"D","Hráč","Roztoky"," Sokol Roztoky u Prahy"]
[null,"Kaláb A. (Roztoky)",null,"Roztoky",null,31,"Kaláb","Adam",2006,"D","Hráč","Roztoky"," Sokol Roztoky u Prahy"]
[null,"Černý V. (Roztoky)",null,"Roztoky",null,32,"Černý","Vojtěch",2008,"SŽ","Člen","Roztoky"," Sokol Roztoky u Prahy"]
[null,"Pajer F. (Černošice)",null,"Černošice",null,33,"Pajer","Filip",2005,"D","Hráč","Černošice"," Sokol Černošice"]
[null,"Dostálová A. (Libčice)",null,"Libčice",null,34,"Dostálová","Aneta",2009,"MŽ","Hráč","Libčice"," Sokol Libčice nad Vltavou"]
[null,"Klusoň M. (Úholičky)",null,"Úholičky",null,35,"Klusoň","Matyáš",2005,"D","Člen","Úholičky","TJ Úholičky, z.s."]
[null,"Konopásková K. (Úholičky)",null,"Úholičky",null,36,"Konopásková","Kristina",2004,"D","Hráč","Úholičky","TJ Úholičky, z.s."]
[null,"Walsh Z. (Úholičky)",null,"Úholičky",null,37,"Walsh","Zak",2007,"SŽ","Člen","Úholičky","TJ Úholičky, z.s."]
[null,"Kořínek H. (Úholičky)",null,"Úholičky",null,38,"Kořínek","Hubert",2008,"SŽ","Člen","Úholičky","TJ Úholičky, z.s."]
[null,"Dostál O. (Libčice)",null,"Libčice",null,39,"Dostál","Ondřej",2009,"MŽ","Hráč","Libčice"," Sokol Libčice nad Vltavou"]
[null,"Wolf V. (Černošice)",null,"Černošice",null,40,"Wolf","Vojtěch",2004,"D","Hráč","Černošice"," Sokol Černošice"]
[null,"Kříž F. (Úholičky)",null,"Úholičky",null,41,"Kříž","Filip",2007,"SŽ","Člen","Úholičky","TJ Úholičky, z.s."]
[null,"Lukáš F. (Roztoky)",null,"Roztoky",null,42,"Lukáš","Filip",2011,"NŽ","Hráč","Roztoky"," Sokol Roztoky u Prahy"]
[null,"Provazník A. (Černošice)",null,"Černošice",null,43,"Provazník","Adam",2005,"D","Člen","Černošice"," Sokol Černošice"]
[null,"Vokálková T. (Černošice)",null,"Černošice",null,44,"Vokálková","Tereza",2009,"MŽ","Člen","Černošice"," Sokol Černošice"]
[null,"Slapnička O. (Libčice)",null,"Libčice",null,46,"Slapnička","Ondřej",2009,"MŽ","Hráč","Libčice"," Sokol Libčice nad Vltavou"]
[null,"Carboch O. (Černošice)",null,"Černošice",null,47,"Carboch","Ondřej",2011,"NŽ","Člen","Černošice"," Sokol Černošice"]
[null,"Horony M. (Úholičky)",null,"Úholičky",null,48,"Horony","Martin",2007,"SŽ","Člen","Úholičky","TJ Úholičky, z.s."]
[null,"Hanzlík F. ( Rudná)",null," Rudná",null,49,"Hanzlík","František",2006,"D","Hráč"," Rudná"," Sokol Rudná"]
[null,"Housa J. (Černošice)",null,"Černošice",null,51,"Housa","Jiří",2007,"SŽ","Člen","Černošice"," Sokol Černošice"]
[null,"Matějovský J. ( Rudná)",null," Rudná",null,52,"Matějovský","Jan",2005,"D","Hráč"," Rudná"," Sokol Rudná"]
[null,"Marval J. ( Rudná)",null," Rudná",null,53,"Marval","Jan",2008,"SŽ","Hráč"," Rudná"," Sokol Rudná"]
[null,"Kutilová K. ( Rudná)",null," Rudná",null,55,"Kutilová","KrIstýna",2009,"MŽ","Hráč"," Rudná","Sokol Rudná"]
[null,"Lundák P. (Davle)",null,"Davle",null,56,"Lundák","Pavel",2011,"NŽ","Hráč","Davle","TJ. Slavoj Davle"]
[null,"Kohoutek J. ( Rudná)",null," Rudná",null,57,"Kohoutek","Jakub",2008,"SŽ","Hráč"," Rudná"," Sokol Rudná"]
[null,"Středa L. (Davle)",null,"Davle",null,59,"Středa","Lukáš",2010,"MŽ","Hráč","Davle","TJ. Slavoj Davle"]
[null,"Hron M. (Černošice)",null,"Černošice",null,60,"Hron","Matyáš",2009,"MŽ","Hráč","Černošice"," Sokol Černošice"]
[null,"Patras M. (Libčice)",null,"Libčice",null,61,"Patras","Matyáš",2007,"SŽ","Člen","Libčice"," Sokol Libčice nad Vltavou"]
[null,"Framberk M. (Libčice)",null,"Libčice",null,62,"Framberk","Mikuláš",2013,"NŽ","Člen","Libčice"," Sokol Libčice nad Vltavou"]
[null,"Auf T. (Ořech)",null,"Ořech",null,63,"Auf","Tadeáš",2006,"D","Hráč","Ořech","SK Viktorie Ořech"]
[null,{"$f":"CONCATENATE(G67,\" \",LEFT(H67,1),\". \",\"(\",L67,\")\")","v":"Smetanková A. ( Rudná)"},null,{"$f":"+L67","v":" Rudná"},null,64,"Smetanková","Amálie",2010,"MŽ","Člen"," Rudná"," Sokol Rudná"]
[null,"Hudák T. (Ořech)",null,"Ořech",null,65,"Hudák","Tomáš",2004,"D","Hráč","Ořech","SK Viktorie Ořech"]
[null,"Freislebenová S. (Unětice)",null,"Unětice",null,66,"Freislebenová","Sára",2005,"D","Hráč","Unětice","TJ Sokol Unětice"]
[null,"Kuchtová K. (Roztoky)",null,"Roztoky",null,67,"Kuchtová","Klára",2005,"D","Hráč","Roztoky"," Sokol Roztoky u Prahy"]
[null,"Švarcová L. ( Rudná)",null," Rudná",null,68,"Švarcová","Liana",2009,"MŽ","Člen"," Rudná"," Sokol Rudná"]
[null,"Šenfeldová A. (Úholičky)",null,"Úholičky",null,71,"Šenfeldová","Aneta",2008,"SŽ","Člen","Úholičky","TJ Úholičky, z.s."]
[null,"Rein T. (Ořech)",null,"Ořech",null,72,"Rein","Tomáš",2005,"D","Hráč","Ořech","SK Viktorie Ořech"]
[null,"Němejc M. (Ořech)",null,"Ořech",null,73,"Němejc","Melichar",2005,"D","Hráč","Ořech","SK Viktorie Ořech"]
[null,"Ponáhlo M. (Libčice)",null,"Libčice",null,74,"Ponáhlo","Michal",2007,"SŽ","Člen","Libčice"," Sokol Libčice nad Vltavou"]
[null,"Carboch V. (Černošice)",null,"Černošice",null,75,"Carboch","Vilém",2007,"SŽ","Člen","Černošice"," Sokol Černošice"]

{"sheet":"navody","index":1,"n_rows":26,"n_cols":15,"rows_kept":26,"cut":false,"hidden":false,"merged":[[5,0,5,4],[6,0,6,1],[6,2,6,3],[6,4,6,5],[6,6,6,7],[10,0,10,1],[10,8,10,9],[11,0,11,1],[11,10,11,11],[6,10,6,11],[7,0,7,1],[7,2,7,3],[8,0,8,1],[8,4,8,5],[9,0,9,1],[9,6,9,7],[6,8,6,9],[15,0,15,4],[16,0,16,1],[16,2,16,3],[16,4,16,5],[16,6,16,7],[21,10,21,11],[16,8,16,9],[16,10,16,11],[17,0,17,1],[17,2,17,3],[18,0,18,1],[18,4,18,5],[19,0,19,1],[19,6,19,7],[20,0,20,1],[20,8,20,9],[21,0,21,1]]}
["Videonávody k ovládání aplikace BTM:"]
["https://drive.google.com/drive/folders/1iv2HqN3UQiRS3o0PYjKYasSOHfg-EvPz"]
[]
[]
[]
["Divize 3 [var. C] - B - rozrazovaci [var. A]",null,null,null,null,"Hracu:",5,"Zapasu:",10,"Zbyva:",9]
[null,null,"Bosch M. (Rud)",null,"Suchý M. (Čer)",null,"Drašar J. (Mní)",null,"Teichman P. (Rud)",null,"Šťastná N. (Oře)",null,"Sety","Body","Pozice"]
["Bosch M. (Rud)",null,null,null,1,0,0,1,1,0,0,1,"2:2",2]
["Suchý M. (Čer)",null,0,1,null,null,0,1,1,0,3,1,"4:3",2]
["Drašar J. (Mní)",null,1,0,1,0,null,null,1,0,1,0,"4:0",4,1]
["Teichman P. (Rud)",null,0,1,0,1,0,1,null,null,0,1,"0:4",0,5]
["Šťastná N. (Oře)",null,1,0,1,3,0,1,1,0,null,null,"3:4",2]
[]
["udelam jen minitabulku"]
[]
["Divize 3 [var. C] - B - rozrazovaci [var. A]",null,null,null,null,"Hracu:",5,"Zapasu:",10,"Zbyva:",9]
[null,null,"Bosch M. (Rud)",null,"Suchý M. (Čer)",null,null,null,null,null,"Šťastná N. (Oře)",null,"Sety","Body","Pozice"]
["Bosch M. (Rud)",null,null,null,1,0,null,null,null,null,0,1,"1:1",1,3]
["Suchý M. (Čer)",null,0,1,null,null,null,null,null,null,3,1,"3:2",1,2]
[]
[]
["Šťastná N. (Oře)",null,1,0,1,3,null,null,null,null,null,null,"2:3",1,4]
[]
["všichni mají stejný počet bodů, proto se hodnotí poměr setů a z toho lze již pořadí určit"]
["případně kdyby měli všichni jede z nich měl jiný počet bodů (případně poměr setů) tak by se určilo jeho místo a pro ostatní by se udělala minitabulka"]
["kdyby i vše víše uvedené bylo stejné tak se rozhodne losem"]

{"sheet":"berger","index":2,"n_rows":253,"n_cols":3,"rows_kept":253,"cut":false,"hidden":false,"merged":[]}
["berger","domaci","host"]
["b_2",1,2]
["b_4",1,4]
["b_4",2,3]
["b_4",4,3]
["b_4",1,2]
["b_4",2,4]
["b_4",3,1]
["b_6",1,6]
["b_6",2,5]
["b_6",3,4]
["b_6",6,4]
["b_6",5,3]
["b_6",1,2]
["b_6",2,6]
["b_6",3,1]
["b_6",4,5]
["b_6",6,5]
["b_6",1,4]
["b_6",2,3]
["b_6",3,6]
["b_6",4,2]
["b_6",5,1]
["b_8",1,8]
["b_8",2,7]
["b_8",3,6]
["b_8",4,5]
["b_8",8,5]
["b_8",6,4]
["b_8",7,3]
["b_8",1,2]
["b_8",2,8]
["b_8",3,1]
["b_8",4,7]
["b_8",5,6]
["b_8",8,6]
["b_8",7,5]
["b_8",1,4]
["b_8",2,3]
["b_8",3,8]
["b_8",4,2]
["b_8",5,1]
["b_8",6,7]
["b_8",8,7]
["b_8",1,6]
["b_8",2,5]
["b_8",3,4]
["b_8",4,8]
["b_8",5,3]
["b_8",6,2]
["b_8",7,1]
["b_10",1,10]
["b_10",2,9]
["b_10",3,8]
["b_10",4,7]
["b_10",5,6]
["b_10",10,6]
["b_10",7,5]
["b_10",8,4]
["b_10",9,3]
["b_10",1,2]
["b_10",2,10]
["b_10",3,1]
["b_10",4,9]
["b_10",5,8]
["b_10",6,7]
["b_10",10,7]
["b_10",8,6]
["b_10",9,5]
["b_10",1,4]
["b_10",2,3]
["b_10",3,10]
["b_10",4,2]
["b_10",5,1]
["b_10",6,9]
["b_10",7,8]
["b_10",10,8]
["b_10",9,7]
["b_10",1,6]
["b_10",2,5]
["b_10",3,4]
["b_10",4,10]
["b_10",5,3]
["b_10",6,2]
["b_10",7,1]
["b_10",8,9]
["b_10",10,9]
["b_10",1,8]
["b_10",2,7]
["b_10",3,6]
["b_10",4,5]
["b_10",5,10]
["b_10",6,4]
["b_10",7,3]
["b_10",8,2]
["b_10",9,1]
["b_12",1,12]
["b_12",2,11]
["b_12",3,10]
["b_12",4,9]
["b_12",5,8]
["b_12",6,7]
["b_12",12,7]
["b_12",8,6]
["b_12",9,5]
["b_12",10,4]
["b_12",11,3]
["b_12",1,2]
["b_12",2,12]
["b_12",3,1]
["b_12",4,11]
["b_12",5,10]
["b_12",6,9]
["b_12",7,8]
["b_12",12,8]
["b_12",9,7]
["b_12",10,6]
["b_12",11,5]
["b_12",1,4]
["b_12",2,3]
["b_12",3,12]
["b_12",4,2]
["b_12",5,1]
["b_12",6,11]
["b_12",7,10]
["b_12",8,9]
["b_12",12,9]
["b_12",10,8]
["b_12",11,7]
["b_12",1,6]
["b_12",2,5]
["b_12",3,4]
["b_12",4,12]
["b_12",5,3]
["b_12",6,2]
["b_12",7,1]
["b_12",8,11]
["b_12",9,10]
["b_12",12,10]
["b_12",11,9]
["b_12",1,8]
["b_12",2,7]
["b_12",3,6]
["b_12",4,5]
["b_12",5,12]
["b_12",6,4]
["b_12",7,3]
["b_12",8,2]
["b_12",9,1]
["b_12",10,11]
["b_12",12,11]
["b_12",1,10]
["b_12",2,9]
["b_12",3,8]
["b_12",4,7]
["b_12",5,6]
["b_12",6,12]
["b_12",7,5]
["b_12",8,4]
["b_12",9,3]
["b_12",10,2]
["b_12",11,1]
["b_14",1,14]
["b_14",2,13]
["b_14",3,12]
["b_14",4,11]
["b_14",5,10]
["b_14",6,9]
["b_14",7,8]
["b_14",14,8]
["b_14",9,7]
["b_14",10,6]
["b_14",11,5]
["b_14",12,4]
["b_14",13,3]
["b_14",1,2]
["b_14",2,14]
["b_14",3,1]
["b_14",4,13]
["b_14",5,12]
["b_14",6,11]
["b_14",7,10]
["b_14",8,9]
["b_14",14,9]
["b_14",10,8]
["b_14",11,7]
["b_14",12,6]
["b_14",13,5]
["b_14",1,4]
["b_14",2,3]
["b_14",3,14]
["b_14",4,2]
["b_14",5,1]
["b_14",6,13]
["b_14",7,12]
["b_14",8,11]
["b_14",9,10]
["b_14",14,10]
["b_14",11,9]
["b_14",12,8]
["b_14",13,7]
["b_14",1,6]
["b_14",2,5]
["b_14",3,4]
["b_14",4,14]
["b_14",5,3]
["b_14",6,2]
["b_14",7,1]
["b_14",8,13]
["b_14",9,12]
["b_14",10,11]
["b_14",14,11]
["b_14",12,10]
["b_14",13,9]
["b_14",1,8]
["b_14",2,7]
["b_14",3,6]
["b_14",4,5]
["b_14",5,14]
["b_14",6,4]
["b_14",7,3]
["b_14",8,2]
["b_14",9,1]
["b_14",10,13]
["b_14",11,12]
["b_14",14,12]
["b_14",13,11]
["b_14",1,10]
["b_14",2,9]
["b_14",3,8]
["b_14",4,7]
["b_14",5,6]
["b_14",6,14]
["b_14",7,5]
["b_14",8,4]
["b_14",9,3]
["b_14",10,2]
["b_14",11,1]
["b_14",12,13]
["b_14",14,13]
["b_14",1,12]
["b_14",2,11]
["b_14",3,10]
["b_14",4,9]
["b_14",5,8]
["b_14",6,7]
["b_14",7,14]
["b_14",8,6]
["b_14",9,5]
["b_14",10,4]
["b_14",11,3]
["b_14",12,2]
["b_14",13,1]

{"sheet":"Body_old","index":3,"n_rows":9,"n_cols":9,"rows_kept":9,"cut":false,"hidden":true,"merged":[]}
["Divize","D1","D2","D3","D4","D5","D6","D7","D8"]
["1.",600,530,460,390,320,250,180,110]
["2.",580,510,440,370,300,230,160,90]
["3.",570,500,430,360,290,220,150,80]
["4.",560,490,420,350,280,210,140,70]
["5.",550,480,410,340,270,200,130,60]
["6.",540,470,400,330,260,190,120,50]
["7.",530,460,390,320,250,180,110,40]
["8.",520,450,380,310,240,170,100,30]

{"sheet":"body","index":4,"n_rows":30,"n_cols":13,"rows_kept":30,"cut":false,"hidden":false,"merged":[]}
["Průběžné","1.","2.","3.","4.","5.","6.","7.","8.","9.","10.","11.","12."]
["D1",2000,{"$f":"B2-30","v":1970},1940,{"$f":"D2-20","v":1920},{"$f":"E2-20","v":1900},1880,1860,1840,1820,1800,1780,1760]
["D2",{"$f":"H2+10","v":1870},1840,1810,{"$f":"D3-20","v":1790},1770,1750,1730,1710,1690,1670,1650,1630]
["D3",1740,1710,1680,1660,1640,1620,1600,1580,1560,1540,1520,1500]
["D4",1610,1580,1550,1530,1510,1490,1470,1450,1430,1410,1390,1370]
["D5",1480,1450,1420,1400,1380,1360,1340,1320,1300,1280,1260,1240]
["D6",1350,1320,1290,1270,1250,1230,1210,1190,1170,1150,1130,1110]
["D7",1220,1190,1160,1140,1120,1100,1080,1060,1040,1020,1000,980]
["D8",1090,1060,1030,1010,990,970,950,930,910,890,870,850]
["D9",960,930,900,880,860,840,820,800,780,760,740,720]
["D10",830,800,770,750,730,710,690,670,650,630,610,590]
[]
[]
[]
[]
[]
[]
[]
[]
["Výchozí","1.","2.","3.","4.","5.","6.","7.","8."]
["D1",2000,{"$f":"B21-17","v":1983},{"$f":"C21-17","v":1966},{"$f":"D21-16","v":1950},1934,1918,1902,1886]
["D2",{"$f":"I21-16","v":1870},{"$f":"B22-17","v":1853},{"$f":"C22-17","v":1836},{"$f":"D22-16","v":1820},1804,1788,1772,1756]
["D3",{"$f":"I22-16","v":1740},{"$f":"B23-17","v":1723},1706,{"$f":"D23-16","v":1690},1674,1658,1642,1626]
["D4",1610,{"$f":"B24-17","v":1593},1576,{"$f":"D24-16","v":1560},1544,1528,1512,1496]
["D5",1480,{"$f":"B25-17","v":1463},1446,{"$f":"D25-16","v":1430},1414,1398,1382,1366]
["D6",1350,{"$f":"B26-17","v":1333},1316,{"$f":"D26-16","v":1300},1284,1268,1252,1236]
["D7",1220,{"$f":"B27-17","v":1203},1186,{"$f":"D27-16","v":1170},1154,1138,1122,1106]
["D8",1090,{"$f":"B28-17","v":1073},1056,{"$f":"D28-16","v":1040},1024,1008,992,976]
["D9",960,{"$f":"B29-17","v":943},926,{"$f":"D29-16","v":910},894,878,862,846]
["D10",830,{"$f":"B30-17","v":813},796,{"$f":"D30-16","v":780},764,748,732,716]

{"sheet":"info","index":5,"n_rows":87,"n_cols":4,"rows_kept":87,"cut":false,"hidden":false,"merged":[]}
[]
["Herní systém A (každý s každým)"]
["Kolik hráčů podporuje:",14]
[]
["Počet zápasů:","hráčů","systém","počet zápasů"]
[null,4,"A",{"$f":"computeCountOfMatch(B6:C6)","v":6}]
[null,5,"A",10]
[null,6,"A",15]
[null,7,"A",21]
[null,8,"A",28]
[null,9,"A",36]
[null,10,"A",45]
[null,11,"A",55]
[null,12,"A",66]
[null,13,"A",78]
[null,14,"A",91]
[]
["Popis:","Jedná se o klasický systém, kdy hraje každý s každým. Pořadí zápasů podle bergerových tabulek."]
[]
[]
[]
["Herní systém B (rozřazovací zápasy a pak dvě 4-členné tabulky o umístění)"]
["Kolik hráčů podporuje:",14]
[]
["Počet zápasů:","hráčů","systém","počet zápasů"]
[null,6,"B",{"$f":"computeCountOfMatch(B26:C26)","v":9}]
[null,7,"B",12]
[null,8,"B",16]
[null,9,"B",20]
[null,10,"B",25]
[null,11,"B",30]
[null,12,"B",36]
[null,13,"B",42]
[null,14,"B",49]
[]
["Popis:"]
["1.","utvoří se 4 dvojice hráčů, tak že první 4 jsou nasazeni a k nim se náhodně dolosují zbylí 4"]
["2.","vítěz z každé dvojice jde do horní tabulky, poražený do spodní tabulky"]
["3.","horní 4-členná tabulka hraje o 1-4. místo"]
["4.","spodní 4-členná tabulka hraje o 5-8 místo"]
[]
["Nevýhody:","první zápas (náhlá smrt) rozhoduje o umístění v celém turnaji"]
[null,"pokud mám lichý počet hráčů, tak kam s tím lichým hráčem, když ho dám do horní tak ho zvýhodňuju, když do spodní tak ho diskriminuju."]
[]
[]
["Herní systém C ( dvě 4-členné tabulky o rozdělení do pavouka, první a druhý jdou do horního pavouka, třetí a čtvrtý jde do spodního pavouka )"]
["Kolik hráčů podporuje:",12]
[]
["Počet zápasů:","hráčů","systém","počet zápasů"]
[null,6,"C",{"$f":"computeCountOfMatch(B50:C50)","v":10}]
[null,7,"C",15]
[null,8,"C",20]
[null,9,"C",24]
[null,10,"C",29]
[null,11,"C",35]
[null,12,"C",42]
[]
["Popis:"]
["1.","utvoří se 2 tabulky tak že nasazená 1. se dá do tab1 a nasazená 2. do tab2"]
["2.","náhodně se losuje mezi 3 a 4 kdo půjde do jaké tabulky"]
["3.","náhodně se losuje mezi 5, 6, 7 a 8 hráčem kdo půjde do jaké tabulky"]
["4.","ve druhém kole se hraje pavouk o 1-2 místo s dohráváním o 3-4 místo. Do pavouka postupují hráči z 1. a 2. místa z obou tabulek"]
["5.","ve druhém kole se hraje pavouk o 5-6 místo s dohráváním o 7-8 místo. Do pavouka postupují hráči z 3. a 4. místa z obou tabulek"]
[]
["Nevýhody:","jen trochu více zápasů"]
[]
[]
[]
["Herní systém D ( dvě 4-členné tabulky o rozdělení do zápasů o umístění vítězové tabulek hrají spolu o 1. a 2. místo, druzí hrají o 3. a 4. místo, ... )"]
["Kolik hráčů podporuje:",12]
[]
["Počet zápasů:","hráčů","systém","počet zápasů"]
[null,6,"D",{"$f":"computeCountOfMatch(B73:C73)","v":9}]
[null,7,"D",12]
[null,8,"D",16]
[null,9,"D",20]
[null,10,"D",25]
[null,11,"D",30]
[null,12,"D",36]
[]
["Popis:"]
["1.","utvoří se 2 tabulky tak že nasazená 1. se dá do tab1 a nasazená 2. do tab2"]
["2.","náhodně se losuje mezi 3 a 4 kdo půjde do jaké tabulky"]
["3.","náhodně se losuje mezi 5, 6, 7 a 8 hráčem kdo půjde do jaké tabulky"]
["4.","ve druhém kole hrají vítězové tabulek o 1. a 2. místo, hráči na druhém místě o 3. a 4. místo, hráči na třetím místě tabulek o 5. a 6. místo, …."]
[]
["Nevýhody:","o trochu lepší než varianta B, ale už jedna prohra v tabulce může znamenat že zmizela šance na výhru."]

{"sheet":"cfgNasazeniSkPavouk","index":6,"n_rows":61,"n_cols":17,"rows_kept":61,"cut":false,"hidden":false,"merged":[]}
["pozice v pavouku/Počet skupin",1,2,3,4]
[1,"s1_1|01","s1_1|01","s1_1|01","s1_1|01"]
[2,"s1_8|08","s2_4|08",null,"s3_2|07"]
[3,"s1_5|05","s1_3|05","s3_2|06","s2_2|06"]
[4,"s1_4|04","s2_2|04","s1_2|04","s4_1|04"]
[5,"s1_3|03","s1_2|03","s3_1|03","s3_1|03"]
[6,"s1_6|06","s2_3|06","s2_2|05","s1_2|05"]
[7,"s1_7|07","s1_4|07",null,"s4_2|08"]
[8,"s1_2|02","s2_1|02","s2_1|02","s2_1|02"]
[]
["pozice v pavouku/Počet skupin",1,2,3,4,5,6,7,8]
[1,"s1_1|01","s1_1|01","s1_1|01","s1_1|01","s1_1|01","s1_1|01","s1_1|01","s1_1|01"]
[2,"s1_16|16","s2_8|16",null,"s4_4|16",null,null,null,"s8_2|16"]
[3,"s1_7|07","s2_4|08","s2_3|08","s3_2|07","s2_2|07","s2_2|08","s7_1|07","s7_1|07"]
[4,"s1_10|10","s1_5|09","s3_3|09","s2_3|10","s3_2|08","s3_2|09","s2_2|09","s2_2|10"]
[5,"s1_6|06","s1_3|05","s3_2|06","s2_2|06","s5_1|05","s6_1|06","s5_1|05","s6_1|06"]
[6,"s1_11|11","s2_6|12","s2_4|11","s3_3|11","s1_3|11","s5_2|11","s3_2|10","s3_2|11"]
[7,"s1_13|13","s1_7|13","s1_5|13","s1_4|13","s3_3|13",null,"s6_2|13","s5_2|13"]
[8,"s1_4|04","s2_2|04","s1_2|04","s4_1|04","s4_1|04","s4_1|04","s4_1|04","s4_1|04"]
[9,"s1_3|03","s1_2|03","s3_1|03","s3_1|03","s3_1|03","s3_1|03","s3_1|03","s3_1|03"]
[10,"s1_14|14","s2_7|14","s2_5|14","s2_4|14","s4_3|14",null,"s7_2|14","s6_2|14"]
[11,"s1_5|05","s2_3|06","s2_2|05","s1_2|05","s1_2|06","s5_1|05","s6_1|06","s5_1|05"]
[12,"s1_12|12","s1_6|11","s3_4|12","s4_3|12","s2_3|12","s6_2|12","s5_2|12","s4_2|12"]
[13,"s1_8|08","s1_4|07","s1_3|07","s4_2|08","s4_2|09","s1_2|07","s1_2|08","s8_1|08"]
[14,"s1_9|09","s2_5|10","s1_4|10","s1_3|09","s5_2|10","s4_2|10","s4_2|11","s1_2|09"]
[15,"s1_15|15","s1_8|15","s3_5|15","s3_4|15","s5_3|15",null,null,"s7_2|15"]
[16,"s1_2|02","s2_1|02","s2_1|02","s2_1|02","s2_1|02","s2_1|02","s2_1|02","s2_1|02"]
[]
["pozice v pavouku/Počet skupin",1,2,3,4,5,6,7,8,9,10,11,12,13,14,15,16]
[1,1,null,null,"s1_1|01","s1_1|01","s1_1|01","s1_1|01","s1_1|01","s1_1|01","s1_1|01","s1_1|01","s1_1|01","s1_1|01","s1_1|01","s1_1|01","s1_1|01"]
[2,32,null,null,"s3_8|31",null,null,null,"s6_4|30",null,null,null,null,null,null,null,"s16_2|32"]
[3,16,null,null,"s4_4|16","s5_3|15","s4_3|16","s2_3|16","s7_2|15","s7_2|16","s6_2|16","s5_2|16","s4_2|16","s3_2|16","s2_2|16","s1_2|16","s16_1|16"]
[4,17,null,null,"s2_5|18","s2_4|17","s5_3|17","s4_3|18","s3_3|19","s2_3|20","s7_2|17","s6_2|17","s5_2|17","s4_2|17","s3_2|17","s2_2|17","s1_2|17"]
[5,9,null,null,"s2_3|10","s4_2|09","s3_2|09","s3_2|10","s2_2|10","s9_1|09","s9_1|09","s9_1|09","s9_1|09","s9_1|09","s9_1|09","s9_1|09","s9_1|09"]
[6,24,null,null,"s4_6|24","s1_5|21","s6_4|24","s7_4|28","s5_3|21","s3_3|21","s4_3|24",null,"s12_2|24","s11_2|24","s10_2|24","s9_2|24","s8_2|24"]
[7,25,null,null,"s1_7|25","s2_6|27","s1_5|25","s5_4|26","s4_4|28","s6_3|24","s5_3|25",null,null,"s12_2|25","s11_2|25","s10_2|25","s9_2|25"]
[8,8,null,null,"s3_2|07","s3_2|08","s2_2|08","s6_1|06","s8_1|08","s8_1|08","s8_1|08","s8_1|08","s8_1|08","s8_1|08","s8_1|08","s8_1|08","s8_1|08"]
[9,5,null,null,"s2_2|06","s5_1|05","s5_1|05","s5_1|05","s5_1|05","s5_1|05","s5_1|05","s5_1|05","s5_1|05","s5_1|05","s5_1|05","s5_1|05","s5_1|05"]
[10,28,null,null,"s4_7|28","s3_6|28","s4_5|28","s3_4|24","s2_4|26",null,"s8_3|28",null,null,null,"s14_2|28","s13_2|28","s12_2|28"]
[11,21,null,null,"s1_6|21","s4_5|24","s3_4|21","s1_4|22","s7_3|23","s7_3|25","s1_3|21","s10_2|21","s9_2|21","s8_2|21","s7_2|21","s6_2|21","s5_2|21"]
[12,12,null,null,"s3_3|11","s2_3|12","s6_2|12","s6_2|13","s3_2|11","s2_2|11","s2_2|12","s1_2|12","s12_1|12","s12_1|12","s12_1|12","s12_1|12","s12_1|12"]
[13,13,null,null,"s1_4|13","s3_3|13","s1_3|13","s7_2|14","s6_2|14","s3_2|12","s3_2|13","s2_2|13","s1_2|13","s13_1|13","s13_1|13","s13_1|13","s13_1|13"]
[14,20,null,null,"s3_5|19","s1_4|16","s2_4|20","s2_4|23","s1_3|17","s1_3|19","s10_2|20","s9_2|20","s8_2|20","s7_2|20","s6_2|20","s5_2|20","s4_2|20"]
[15,29,null,null,"s2_8|30","s5_6|30","s5_5|29",null,"s8_4|32",null,"s9_3|29",null,null,null,null,"s14_2|29","s13_2|29"]
[16,4,null,null,"s4_1|04","s4_1|04","s4_1|04","s4_1|04","s4_1|04","s4_1|04","s4_1|04","s4_1|04","s4_1|04","s4_1|04","s4_1|04","s4_1|04","s4_1|04"]
[17,3,null,null,"s3_1|03","s3_1|03","s3_1|03","s3_1|03","s3_1|03","s3_1|03","s3_1|03","s3_1|03","s3_1|03","s3_1|03","s3_1|03","s3_1|03","s3_1|03"]
[18,30,null,null,"s1_8|29","s4_6|29","s6_5|30",null,"s7_4|31",null,"s10_3|30",null,null,null,null,"s15_2|30","s14_2|30"]
[19,14,null,null,"s2_4|14","s4_3|14","s2_3|14","s5_2|12","s5_2|13","s5_2|14","s4_2|14","s3_2|14","s2_2|14","s1_2|14","s14_1|14","s14_1|14","s14_1|14"]
[20,19,null,null,"s4_5|20","s3_5|23","s1_4|19","s1_3|15","s2_3|18","s9_2|08","s9_2|19","s8_2|19","s7_2|19","s6_2|19","s5_2|19","s4_2|19","s3_2|19"]
[21,11,null,null,"s4_3|12","s1_3|11","s5_2|11","s2_2|09","s4_2|12","s4_2|13","s1_2|11","s11_1|11","s11_1|11","s11_1|11","s11_1|11","s11_1|11","s11_1|11"]
[22,22,null,null,"s2_6|22","s5_4|20","s4_4|22","s6_3|20","s8_3|24","s5_3|23","s2_3|22","s11_2|22","s10_2|22","s9_2|22","s8_2|22","s7_2|22","s6_2|22"]
[23,27,null,null,"s3_7|27","s1_6|26","s3_5|27","s4_4|25","s1_4|25","s8_3|26","s7_3|27",null,null,null,"s13_2|27","s12_2|27","s11_2|27"]
[24,6,null,null,"s1_2|05","s2_2|07","s6_1|06","s7_1|07","s6_1|06","s6_1|06","s6_1|06","s6_1|06","s6_1|06","s6_1|06","s6_1|06","s6_1|06","s6_1|06"]
[25,7,null,null,"s4_2|08","s1_2|06","s1_2|07","s4_2|11","s7_1|07","s7_1|07","s7_1|07","s7_1|07","s7_1|07","s7_1|07","s7_1|07","s7_1|07","s7_1|07"]
[26,26,null,null,"s2_7|26","s2_5|22","s2_5|26","s7_3|21","s3_4|27","s9_3|27","s6_3|26",null,null,"s13_2|26","s12_2|26","s11_2|26","s10_2|26"]
[27,23,null,null,"s3_6|23","s4_4|19","s5_4|23","s6_4|27","s6_3|22","s4_3|22","s3_3|23",null,"s11_2|23","s10_2|23","s9_2|23","s8_2|23","s7_2|23"]
[28,10,null,null,"s1_3|09","s5_2|10","s4_2|10","s1_2|08","s1_2|09","s1_2|10","s10_1|10","s10_1|10","s10_1|10","s10_1|10","s10_1|10","s10_1|10","s10_1|10"]
[29,15,null,null,"s3_4|15","s5_5|25","s3_3|15","s5_3|19","s8_2|16","s6_2|15","s5_2|15","s4_2|15","s3_2|15","s2_2|15","s1_2|15","s15_1|15","s15_1|15"]
[30,18,null,null,"s1_5|17","s3_4|18","s6_3|18","s3_3|17","s4_3|20","s8_2|17","s8_2|18","s7_2|18","s6_2|18","s5_2|18","s4_2|18","s3_2|18","s2_2|18"]
[31,31,null,null,"s4_8|32",null,null,null,"s5_4|29",null,null,null,null,null,null,null,"s15_2|31"]
[32,2,null,null,"s2_1|02","s2_1|02","s2_1|02","s2_1|02","s2_1|02","s2_1|02","s2_1|02","s2_1|02","s2_1|02","s2_1|02","s2_1|02","s2_1|02","s2_1|02"]

{"sheet":"cfgSkupiny","index":7,"n_rows":101,"n_cols":22,"rows_kept":101,"cut":false,"hidden":false,"merged":[[0,19,0,20],[0,13,0,14],[0,15,0,16],[0,17,0,18],[0,1,0,2],[0,3,0,4],[0,5,0,6],[0,7,0,8],[0,9,0,10],[0,11,0,12]]}
["Počet hráčů","D1",null,"D2",null,"D3",null,"D4",null,"D5",null,"D6",null,"D7",null,"D8",null,"D9",null,"D10",null,"Počet zápasů"]
[{"$f":"B2+D2+F2+H2+J2+L2+N2+P2+R2+T2","v":1},1,"A",null,null,null,null,null,null,null,null,null,null,null,null,null,null,null,null,null,null,{"$f":"computeCountOfMatch(B2:U2)","v":0}]
[{"$f":"B3+D3+F3+H3+J3+L3+N3+P3+R3+T3","v":2},2,"A",null,null,null,null,null,null,null,null,null,null,null,null,null,null,null,null,null,null,1]
[3,3,"A",null,null,null,null,null,null,null,null,null,null,null,null,null,null,null,null,null,null,3]
[4,4,"A",null,null,null,null,null,null,null,null,null,null,null,null,null,null,null,null,null,null,6]
[5,5,"A",null,null,null,null,null,null,null,null,null,null,null,null,null,null,null,null,null,null,10]
[6,6,"A",null,null,null,null,null,null,null,null,null,null,null,null,null,null,null,null,null,null,15]
[7,7,"A",null,null,null,null,null,null,null,null,null,null,null,null,null,null,null,null,null,null,21]
[8,8,"C",null,null,null,null,null,null,null,null,null,null,null,null,null,null,null,null,null,null,{"$f":"computeCountOfMatch(B9:U9)","v":20}]
[9,9,"C",null,null,null,null,null,null,null,null,null,null,null,null,null,null,null,null,null,null,{"$f":"computeCountOfMatch(B10:U10)","v":24}]
[10,10,"C",null,null,null,null,null,null,null,null,null,null,null,null,null,null,null,null,null,null,{"$f":"computeCountOfMatch(B11:U11)","v":29}]
[11,11,"C",null,null,null,null,null,null,null,null,null,null,null,null,null,null,null,null,null,null,{"$f":"computeCountOfMatch(B12:U12)","v":35}]
[12,12,"C",null,null,null,null,null,null,null,null,null,null,null,null,null,null,null,null,null,null,{"$f":"computeCountOfMatch(B13:U13)","v":42}]
[13,8,"C",5,"A",null,null,null,null,null,null,null,null,null,null,null,null,null,null,null,null,{"$f":"computeCountOfMatch(B14:U14)","v":30}]
[14,8,"C",6,"A",null,null,null,null,null,null,null,null,null,null,null,null,null,null,null,null,35]
[15,8,"C",7,"A",null,null,null,null,null,null,null,null,null,null,null,null,null,null,null,null,41]
[16,8,"C",8,"C",null,null,null,null,null,null,null,null,null,null,null,null,null,null,null,null,40]
[17,8,"C",9,"C",null,null,null,null,null,null,null,null,null,null,null,null,null,null,null,null,44]
[18,8,"C",10,"C",null,null,null,null,null,null,null,null,null,null,null,null,null,null,null,null,49]
[19,9,"C",10,"C",null,null,null,null,null,null,null,null,null,null,null,null,null,null,null,null,53]
[20,8,"C",8,"B",4,"A",null,null,null,null,null,null,null,null,null,null,null,null,null,null,42]
[21,8,"C",8,"C",5,"A",null,null,null,null,null,null,null,null,null,null,null,null,null,null,50]
[22,8,"C",8,"C",6,"A",null,null,null,null,null,null,null,null,null,null,null,null,null,null,55]
[23,8,"C",8,"C",7,"A",null,null,null,null,null,null,null,null,null,null,null,null,null,null,61]
[24,8,"C",8,"C",8,"C",null,null,null,null,null,null,null,null,null,null,null,null,null,null,60]
[25,8,"C",8,"C",9,"C",null,null,null,null,null,null,null,null,null,null,null,null,null,null,64]
[26,8,"C",8,"C",10,"C",null,null,null,null,null,null,null,null,null,null,null,null,null,null,69]
[27,8,"C",8,"C",11,"C",null,null,null,null,null,null,null,null,null,null,null,null,null,null,75]
[28,8,"C",8,"C",6,"A",6,"A",null,null,null,null,null,null,null,null,null,null,null,null,70]
[29,8,"C",8,"C",8,"C",5,"A",null,null,null,null,null,null,null,null,null,null,null,null,70]
[30,8,"C",8,"C",8,"C",6,"A",null,null,null,null,null,null,null,null,null,null,null,null,75]
[31,8,"C",8,"C",8,"C",7,"C",null,null,null,null,null,null,null,null,null,null,null,null,75]
[32,8,"C",8,"C",8,"C",8,"C",null,null,null,null,null,null,null,null,null,null,null,null,80]
[33,8,"C",8,"C",8,"C",9,"C",null,null,null,null,null,null,null,null,null,null,null,null,84]
[34,8,"C",8,"C",8,"C",10,"C",null,null,null,null,null,null,null,null,null,null,null,null,89]
[35,8,"C",8,"C",8,"C",11,"C",null,null,null,null,null,null,null,null,null,null,null,null,95]
[36,8,"C",8,"C",8,"C",6,"C",6,"A",null,null,null,null,null,null,null,null,null,null,85]
[37,8,"C",8,"C",8,"C",8,"C",5,"A",null,null,null,null,null,null,null,null,null,null,90]
[38,8,"C",8,"C",8,"C",8,"C",6,"A",null,null,null,null,null,null,null,null,null,null,95]
[39,8,"C",8,"C",8,"C",8,"C",7,"C",null,null,null,null,null,null,null,null,null,null,95]
[40,8,"C",8,"C",8,"C",8,"C",8,"C",null,null,null,null,null,null,null,null,null,null,100]
[41,8,"C",8,"D",8,"D",8,"D",9,"D",null,null,null,null,null,null,null,null,null,null,88]
[42,8,"C",8,"D",8,"D",8,"D",10,"D",null,null,null,null,null,null,null,null,null,null,93]
[43,8,"C",8,"D",8,"D",8,"D",11,"D",null,null,null,null,null,null,null,null,null,null,98]
[44,8,"C",8,"D",8,"D",8,"D",6,"A",6,"A",null,null,null,null,null,null,null,null,98]
[45,8,"C",8,"D",8,"D",8,"D",8,"D",5,"A",null,null,null,null,null,null,null,null,94]
[46,8,"C",8,"D",8,"D",8,"D",8,"D",6,"A",null,null,null,null,null,null,null,null,99]
[47,8,"C",8,"D",8,"D",8,"D",8,"D",7,"D",null,null,null,null,null,null,null,null,96]
[48,8,"D",8,"D",8,"D",8,"D",8,"D",8,"D",null,null,null,null,null,null,null,null,96]
[49,8,"D",8,"D",8,"D",8,"D",8,"D",9,"D",null,null,null,null,null,null,null,null,100]
[50,8,"D",8,"D",8,"D",8,"D",8,"D",10,"D",null,null,null,null,null,null,null,null,105]
[51,8,"D",8,"D",8,"D",8,"D",8,"D",11,"D",null,null,null,null,null,null,null,null,110]
[52,8,"D",8,"D",8,"D",8,"D",8,"D",6,"A",6,"A",null,null,null,null,null,null,110]
[53,8,"D",8,"D",8,"D",8,"D",8,"D",8,"D",5,"A",null,null,null,null,null,null,106]
[54,8,"D",8,"D",8,"D",8,"D",8,"D",8,"D",6,"A",null,null,null,null,null,null,111]
[55,8,"D",8,"D",8,"D",8,"D",8,"D",8,"D",7,"D",null,null,null,null,null,null,108]
[56,8,"D",8,"D",8,"D",8,"D",8,"D",8,"D",8,"D",null,null,null,null,null,null,112]
[57,8,"D",8,"D",8,"D",8,"D",8,"D",8,"D",9,"D",null,null,null,null,null,null,116]
[58,8,"D",8,"D",8,"D",8,"D",8,"D",8,"D",10,"D",null,null,null,null,null,null,121]
[59,8,"D",8,"D",8,"D",8,"D",8,"D",8,"D",11,"D",null,null,null,null,null,null,126]
[60,8,"D",8,"D",8,"D",8,"D",8,"D",8,"D",6,"A",6,"A",null,null,null,null,126]
[61,8,"D",8,"D",8,"D",8,"D",8,"D",8,"D",8,"D",5,"A",null,null,null,null,122]
[62,8,"D",8,"D",8,"D",8,"D",8,"D",8,"D",8,"D",6,"A",null,null,null,null,127]
[63,8,"D",8,"D",8,"D",8,"D",8,"D",8,"D",8,"D",7,"D",null,null,null,null,124]
[64,8,"D",8,"D",8,"D",8,"D",8,"D",8,"D",8,"D",8,"D",null,null,null,null,128]
[65,8,"D",8,"D",8,"D",8,"D",8,"D",8,"D",8,"D",9,"D",null,null,null,null,132]
[{"$f":"B67+D67+F67+H67+J67+L67+N67+P67+R67+T67","v":66},8,"D",8,"D",8,"D",8,"D",8,"D",8,"D",8,"D",10,"D",null,null,null,null,137]
[67,8,"D",8,"D",8,"D",8,"D",8,"D",8,"D",8,"D",11,"D",null,null,null,null,142]
[68,8,"D",8,"D",8,"D",8,"D",8,"D",8,"D",8,"D",6,"A",6,"A",null,null,142]
[69,8,"D",8,"D",8,"D",8,"D",8,"D",8,"D",8,"D",8,"D",5,"A",null,null,138]
[70,8,"D",8,"D",8,"D",8,"D",8,"D",8,"D",8,"D",8,"D",6,"A",null,null,143]
[71,8,"D",8,"D",8,"D",8,"D",8,"D",8,"D",8,"D",8,"D",7,"D",null,null,140]
[72,8,"D",8,"D",8,"D",8,"D",8,"D",8,"D",8,"D",8,"D",8,"D",null,null,144]
[73,8,"D",8,"D",8,"D",8,"D",8,"D",8,"D",8,"D",8,"D",9,"D",null,null,148]
[74,8,"D",8,"D",8,"D",8,"D",8,"D",8,"D",8,"D",8,"D",10,"D",null,null,153]
[75,8,"D",8,"D",8,"D",8,"D",8,"D",8,"D",8,"D",8,"D",11,"D",null,null,158]
[76,8,"D",8,"D",8,"D",8,"D",8,"D",8,"D",8,"D",8,"D",6,"A",6,"A",{"$f":"computeCountOfMatch(B77:U77)","v":158}]
[77,8,"D",8,"D",8,"D",8,"D",8,"D",8,"D",8,"D",8,"D",8,"D",5,"A",154]
[78,8,"D",8,"D",8,"D",8,"D",8,"D",8,"D",8,"D",8,"D",8,"D",6,"A",159]
[79,8,"D",8,"D",8,"D",8,"D",8,"D",8,"D",8,"D",8,"D",8,"D",7,"D",156]
[80,8,"D",8,"D",8,"D",8,"D",8,"D",8,"D",8,"D",8,"D",8,"D",8,"D",160]
[81,8,"D",8,"D",8,"D",8,"D",8,"D",8,"D",8,"D",8,"D",8,"D",9,"D",164]
[null,null,null,null,null,null,null,null,null,null,null,null,null,null,null,null,null,null,null,null,null,0]
[83]
[84]
[85]
[86]
[87]
[88]
[89]
[90]
[91]
[92]
[93]
[94]
[95]
[96]
[97]
[98]
[99]
[100]

{"sheet":"cfgBtm","index":8,"n_rows":4,"n_cols":2,"rows_kept":4,"cut":false,"hidden":false,"merged":[]}
["Zkratka turnaje","BTM06"]
["Název turnaje","BTM06(Rud)"]
["Datum turnaje","23.04.2023"]
["Místo turnaje \"konaného v XXX\"","Rudné"]

{"sheet":"ovladani","index":9,"n_rows":201,"n_cols":25,"rows_kept":201,"cut":false,"hidden":false,"merged":[[44,0,57,0],[44,1,57,1],[63,20,68,20],[66,3,66,6],[67,3,67,6],[65,3,65,6],[46,20,51,20],[52,20,57,20],[86,20,91,20],[88,3,88,6],[89,3,89,6],[90,3,90,6],[63,0,68,0],[69,0,73,0],[74,0,79,0],[80,0,82,0],[24,0,41,0],[42,0,43,0],[0,2,0,19],[1,0,11,0],[12,0,16,0],[17,0,23,0],[1,1,11,1],[12,1,16,1],[17,1,23,1],[24,1,41,1],[42,1,43,1],[0,23,0,31],[1,20,5,20],[6,20,11,20],[42,20,43,20],[44,20,45,20],[12,20,16,20],[17,20,23,20],[24,20,25,20],[26,20,34,20],[35,20,41,20],[182,20,187,20],[184,3,184,6],[185,3,185,6],[186,3,186,6],[63,1,68,1],[69,1,73,1],[74,1,79,1],[80,1,82,1],[109,20,114,20],[111,3,111,6],[112,3,112,6],[113,3,113,6],[132,20,137,20],[134,3,134,6],[135,3,135,6],[136,3,136,6],[159,20,164,20],[161,3,161,6],[162,3,162,6],[163,3,163,6],[103,0,105,0],[103,1,105,1],[109,0,114,0],[109,1,114,1],[115,0,119,0],[115,1,119,1],[86,0,91,0],[86,1,91,1],[92,0,96,0],[92,1,96,1],[97,0,102,0],[97,1,102,1],[138,0,142,0],[138,1,142,1],[143,0,148,0],[143,1,148,1],[149,0,151,0],[149,1,151,1],[120,0,125,0],[120,1,125,1],[126,0,128,0],[126,1,128,1],[132,0,137,0],[132,1,137,1],[193,0,198,0],[193,1,198,1],[199,0,201,0],[199,1,201,1],[161,7,161,8],[162,7,162,8],[184,7,184,8],[185,7,185,8],[176,0,178,0],[176,1,178,1],[182,0,187,0],[182,1,187,1],[188,0,192,0],[188,1,192,1],[159,0,164,0],[159,1,164,1],[165,0,169,0],[165,1,169,1],[170,0,175,0],[170,1,175,1]]}
["Kdy","Kdo","Postup:",null,null,null,null,null,null,null,null,null,null,null,null,null,null,null,null,null,"Status",null,null,"Lze použít kdykoliv"]
["Na začátku sezóny","Předseda KM","01.","Pokud zahajuji sezonu, tak je třeba vymazat výsledky z minulé sezony na založce \"vychozi\"",null,null,null,null,null,null,null,null,null,null,null,null,null,null,null,null,"OK",null,null,"Uloží do adresáře k původnímu excelu zálohu"]
[null,null,null,"-","odstraňte všechny nasledující vyplněné sloupce od sloupce R",null,null,null,null,null,null,null,null,null,null,null,null,null,null,null,null,null,null,"-","nazev souboru YYYYMMDD_HHMMSS_[Akce]_[puvodni nazev]"]
[null,null,null,"-","smazte hodnoty ve sloupcích B až E na záložce \"výchozí\""]
[null,null,null,"-","upravte hodnoty ve sloupci  K (založka Vychozi) tak aby šli od 1 vzestupně nahoru"]
[null,null,null,"-","pokracujte dalším bodem. Body 03 a 04 je možné vynechat"]
[null,null,"02.","Vyplnit chybějící hráče a zejména vyplnit loňské žebříčkové postavení sloupec K (výchozí)",null,null,null,null,null,null,null,null,null,null,null,null,null,null,null,null,"OK",null,null,"Zamkne všechny listy excelu"]
[null,null,null,"-","seradi na listu vychozi podle sloupce K (\"Před. Rok\")"]
[null,null,null,"- ","přiřadí hráčům defaultní body ve sloupci M (\"Výchozí\") viz. tabulka na záložce \"body\" od řádku 20"]
[null,null,null,"-","provede standardní sesortování hráčů"]
[null,null,null,null,null,null,null,null,null,null,null,null,null,null,null,null,null,null,null,null,null,null,null,"Odemkne všechny listy excelu"]
[]
["1x na zač.sezony po skončení prvního  turnaje","Předseda KM","03.","Vygeneruju historii, kliknutím na tlačítko.",null,null,null,null,null,null,null,null,null,null,null,null,null,null,null,null,"OK"]
[null,null,null,"-","vytvoří z listu \"vychozi\" nový list \"historie\""]
[null,null,null,"- ","kde hráčům zaznamená aktuální žebříčkové postavení",null,null,null,null,null,null,null,null,null,null,null,null,null,null,null,null,null,null,"Nakopíruje list vychozi do listu zebricek a zformatuje pro tisk"]
[null,null,null,"-","vždy po skončení turnaje, kliknutím na \"Vygeneruj finální zebricek\" se přidá další sloupec do historie, ay bylo vidět, jak hráč zlepšoval zhoršoval svoje postavení"]
[]
["Před každým turnajem","Předseda KM","04.","Vzit excel z předchozího turnaje a přejmenovat ho (např. zvednout číslo bodovaného turnaje)",null,null,null,null,null,null,null,null,null,null,null,null,null,null,null,null,"OK"]
[null,null,null,"Otevřít ten přejmenovaný excel a kliknout na \"Priprav excel\" - provést pouze pokud předcházel nějaký turnaj v této sezone a chci pokračovat ve výsledkách",null,null,null,null,null,null,null,null,null,null,null,null,null,null,null,null,null,null,null,"Nakopíruje list finalni do listu zebricek a zformatuje pro tisk"]
[null,null,null,"-","smaže list \"vychozi\""]
[null,null,null,"-","přejmenuje list \"finalni\" na \"vychozi\""]
[]
[null,null,null,null,null,null,null,null,null,null,null,null,null,null,null,null,null,null,null,null,null,null,null,"Vygeneruje souhrnou kontingenční tabulku s účastí"]
[]
["Na začatku turnaje","Rozhodčí turnaje","05.","Vyplnit přítomnost hráčů",null,null,null,null,null,null,null,null,null,null,null,null,null,null,null,null,"OK"]
[]
[null,null,"06.","Kliknout na tlačítko \"Generuj divize\". Toto tlačítko slouží ke generování základního rozdělení divizí. Na kliknutí se provádí toto:",null,null,null,null,null,null,null,null,null,null,null,null,null,null,null,null,"OK"]
[null,null,null,"-","vymazání obsahu sloupce Vychozi.Divize"]
[null,null,null,"-","vyplnění sloupce vychozi.Divize příslušnou divizí podle vychozi.Pritomen a vychozi.Právo startu"]
[null,null,null,"-","vygeneruje list \"turnaj_divize\", zde budete následně vypisovat výsledky"]
[null,null,null,"-","vygeneruje list  \"turnaj_vysledek\", zde je po zkončení vidět výsledné seřazení hráčů, podle výsledků z listu \"turnaj_divize\""]
[]
[null,null,null,"-","vygeneruje divize do samostatnych založek"]
[null,null,null,"-","funkcionalita stejna jako u generovani do jedne zalozky"]
[]
[null,null,null,null,null,null,null,null,null,null,null,null,null,null,null,null,null,null,null,null,"-"]
[null,null,null,"Kliknout na tlačítko \"Tisk1\". Toto tlačítko slouží ke generování tiskové sestavy pro zápasy v divizích:"]
[null,null,null,"-","generuje tiskovou sestavu pro 1 kolo zapasu, zápasy se tisknou jednotlivě"]
[null,null,null,"Kliknout na tlačítko \"Tisk2\". Toto tlačítko slouží ke generování tiskové sestavy pro zápasy v divizích:"]
[null,null,null,"-","generuje tiskovou sestavu pro 2 kolo zapasu, zápasy se tisknou jednotlivě"]
[null,null,null,"Kliknout na tlačítko \"Tisk\". Toto tlačítko slouží ke generování tiskové sestavy pro zápasy v divizích:"]
[null,null,null,"-","vygeneruje list \"turnaj_tisk\", který lze případně lehce upravit a vytisknout, rozstřihnout (jednotlivé tabulky) a dát ke konkrétním stolům"]
["V průběhu turnaje","Rozhodčí turnaje","07.","Vyplňovat výsledky do listů \"turnaj_divize\" ",null,null,null,null,null,null,null,null,null,null,null,null,null,null,null,null,"OK"]
[]
["Na konci turnaje","Rozhodčí turnaje","08.","po odehrání všech zápasů zkontrolovat výsledky v záložce \"turnaj_vysledek\"",null,null,null,null,null,null,null,null,null,null,null,null,null,null,null,null,"OK"]
[]
[null,null,"09.","Po skončení turnaje, zbývá jen nechat vygenerovat finální část kliknutím na tlačítko \"Vygeneruj finální zebricek\"",null,null,null,null,null,null,null,null,null,null,null,null,null,null,null,null,"OK"]
[null,null,null,"-","vygeneruje zalozku \"finalni\" kopii z \"vychozi\""]
[null,null,null,"-","přidá nový sloupec na pozici O a do něj dá výsledky ze záložky \"turnaj_vysledky\""]
[null,null,null,"-","automaticky přepočítá žebříčkové pořadí a seřadí hráče na záložce \"finalni\""]
[null,null,null,"- ","lze pokračovat daším turnajem viz. bod 03."]
[null,null,null,"-","Systém počítá 4 nejlepší dosažené výsledky (pokud není odehrán dostatečný počet zápasů dopočtě násobek chybějících bodů z výchozího nastavení bodů)"]
[null,null,"10.","Po skončení turnaje, je dobré kliknout na tlačítko \"Zapasy\""]
[null,null,null,"-","vygeneruje zalozku \"turnaj_zapasy\" kde jsou videt všechny zapasy daneho turnaje"]
[null,null,null,"-","je implicitně seřazeno, tak že nahoře jsou nejvíce překvapivé zápasy (rozdíl pořadí na žebříčku mezi vítězem a poraženým je nejvyšší)"]
[null,null,null,"-","lze tam dohledat, zda nějaký hráč nízko na žebříčku neporazil více hráčů na žebříčku nad ním."]
[null,null,null,"-","dobrý podklad pro udělování divokých karet"]
[null,null,null,"- ","když např. uvidím že hráč XXX porazil 2 hráče, kteří jsou v žebříčku o řekněme 8 pozic výše, a s jedním těsně prohrál, tak bych mu dal divokou kartu do vyšší divize"]
[]
[]
[]
[]
[]
["V průběhu turnaje","Rozhodčí turnaje","Blok:","U11","Pozor neměnit rozmisteni prvku v této části !!!"]
[null,null,"01.","Zvolení kategorie, zjištění počtu hráčů",null,null,null,null,null,"Toto se používá jen o zkopírování tohoto bloku"]
[null,null,null,"Název záložky pro registraci hráčů:",null,null,null,"vychozi"]
[null,null,null,"Kategorie (U11,U13,U15,U18):",null,null,null,"U9,U11"]
[null,null,null,"Počet přihlášených hráčů:",null,null,null,7,null,"Spočítá hráče dané kategorie a vytvoří záložku -LOS"]
[]
["V průběhu turnaje","Rozhodčí turnaje","02.","Vygenerování hracího plánu, skupiny a následně pavouk"]
[null,null,null,"Počet skupin:",null,null,null,1,null,"Přírustkově přiřadí hráčům skupinu na záložce -LOS"]
[null,null,null,"Počet nasazených do skupin:",null,null,null,7]
[null,null,null,null,null,null,null,null,null,"Přiřadí hráčům skupinu na záložce LOS"]
[]
["V průběhu turnaje","Rozhodčí turnaje"]
[null,null,null,"Počet postupujících do pavouka:",null,null,null,4,null,"Vygeneruje záložku s kompletním rozpisem skupin a pavouka"]
[null,null,null,"Počet nasazených do pavouka:",null,null,null,7]
[null,null,null,"varianta pavouka (8, 16, 32)",null,null,null,8]
[null,null,null,null,null,null,null,null,null,"Vygeneruje záložku pouze s pavoukem. Použití pouze v případě,"]
[null,null,null,null,null,null,null,null,null,"že jsou již rozehrány skupiny a zjistí se že pavouk je špatně."]
[null,"Předseda KM"]
[null,null,null,null,null,null,null,null,null,"Smaže záložky vytvořené v rámci tohoto bloku."]
[]
[]
[]
[]
["V průběhu turnaje","Rozhodčí turnaje","Blok:","U13","Pozor neměnit rozmisteni prvku v této části !!!"]
[null,null,"01.","Zvolení kategorie, zjištění počtu hráčů",null,null,null,null,null,"Toto se používá jen o zkopírování tohoto bloku"]
[null,null,null,"Název záložky pro registraci hráčů:",null,null,null,"vychozi"]
[null,null,null,"Kategorie (U11,U13,U15,U18):",null,null,null,"U13"]
[null,null,null,"Počet přihlášených hráčů:",null,null,null,8,null,"Spočítá hráče dané kategorie a vytvoří záložku -LOS"]
[]
["V průběhu turnaje","Rozhodčí turnaje","02.","Vygenerování hracího plánu, skupiny a následně pavouk"]
[null,null,null,"Počet skupin:",null,null,null,2,null,"Přírustkově přiřadí hráčům skupinu na záložce -LOS"]
[null,null,null,"Počet nasazených do skupin:",null,null,null,8]
[null,null,null,null,null,null,null,null,null,"Přiřadí hráčům skupinu na záložce LOS"]
[]
["V průběhu turnaje","Rozhodčí turnaje"]
[null,null,null,"Počet postupujících do pavouka:",null,null,null,6,null,"Vygeneruje záložku s kompletním rozpisem skupin a pavouka"]
[null,null,null,"Počet nasazených do pavouka:",null,null,null,6]
[null,null,null,"varianta pavouka (8, 16, 32)",null,null,null,8]
[null,null,null,null,null,null,null,null,null,"Vygeneruje záložku pouze s pavoukem. Použití pouze v případě,"]
[null,null,null,null,null,null,null,null,null,"že jsou již rozehrány skupiny a zjistí se že pavouk je špatně."]
[null,"Předseda KM"]
[null,null,null,null,null,null,null,null,null,"Smaže záložky vytvořené v rámci tohoto bloku."]
[]
[]
[]
[]
["V průběhu turnaje","Rozhodčí turnaje","Blok:","U15","Pozor neměnit rozmisteni prvku v této části !!!"]
[null,null,"01.","Zvolení kategorie, zjištění počtu hráčů",null,null,null,null,null,"Toto se používá jen o zkopírování tohoto bloku"]
[null,null,null,"Název záložky pro registraci hráčů:",null,null,null,"vychozi"]
[null,null,null,"Kategorie (U11,U13,U15,U18):",null,null,null,"U15"]
[null,null,null,"Počet přihlášených hráčů:",null,null,null,19,null,"Spočítá hráče dané kategorie a vytvoří záložku -LOS"]
[]
["V průběhu turnaje","Rozhodčí turnaje","02.","Vygenerování hracího plánu, skupiny a následně pavouk"]
[null,null,null,"Počet skupin:",null,null,null,4,null,"Přírustkově přiřadí hráčům skupinu na záložce -LOS"]
[null,null,null,"Počet nasazených do skupin:",null,null,null,19]
[null,null,null,null,null,null,null,null,null,"Přiřadí hráčům skupinu na záložce LOS"]
[]
["V průběhu turnaje","Rozhodčí turnaje"]
[null,null,null,"Počet postupujících do pavouka:",null,null,null,8,null,"Vygeneruje záložku s kompletním rozpisem skupin a pavouka"]
[null,null,null,"Počet nasazených do pavouka:",null,null,null,8]
[null,null,null,"varianta pavouka (8, 16, 32)",null,null,null,8]
[null,null,null,null,null,null,null,null,null,"Vygeneruje záložku pouze s pavoukem. Použití pouze v případě,"]
[null,null,null,null,null,null,null,null,null,"že jsou již rozehrány skupiny a zjistí se že pavouk je špatně."]
[null,"Předseda KM"]
[null,null,null,null,null,null,null,null,null,"Smaže záložky vytvořené v rámci tohoto bloku."]
[]
[]
[]
[]
["V průběhu turnaje","Rozhodčí turnaje","Blok:","U18","Pozor neměnit rozmisteni prvku v této části !!!"]
[null,null,"01.","Zvolení kategorie, zjištění počtu hráčů",null,null,null,null,null,"Toto se používá jen o zkopírování tohoto bloku"]
[null,null,null,"Název záložky pro registraci hráčů:",null,null,null,"vychozi"]
[null,null,null,"Kategorie (U11,U13,U15,U18):",null,null,null,"U18"]
[null,null,null,"Počet přihlášených hráčů:",null,null,null,7,null,"Spočítá hráče dané kategorie a vytvoří záložku -LOS"]
[]
["V průběhu turnaje","Rozhodčí turnaje","02.","Vygenerování hracího plánu, skupiny a následně pavouk"]
[null,null,null,"Počet skupin:",null,null,null,1,null,"Přírustkově přiřadí hráčům skupinu na záložce -LOS"]
[null,null,null,"Počet nasazených do skupin:",null,null,null,7]
[null,null,null,null,null,null,null,null,null,"Přiřadí hráčům skupinu na záložce LOS"]
[]
["V průběhu turnaje","Rozhodčí turnaje"]
[null,null,null,"Počet postupujících do pavouka:",null,null,null,8,null,"Vygeneruje záložku s kompletním rozpisem skupin a pavouka"]
[null,null,null,"Počet nasazených do pavouka:",null,null,null,8]
[null,null,null,"varianta pavouka (8, 16, 32)",null,null,null,8]
[null,null,null,null,null,null,null,null,null,"Vygeneruje záložku pouze s pavoukem. Použití pouze v případě,"]
[null,null,null,null,null,null,null,null,null,"že jsou již rozehrány skupiny a zjistí se že pavouk je špatně."]
[null,"Předseda KM"]
[null,null,null,null,null,null,null,null,null,"Smaže záložky vytvořené v rámci tohoto bloku."]
[]
[]
[]
[]
[]
[]
[]
[]
["V průběhu turnaje","Rozhodčí turnaje","Blok:","OPMJ","Pozor neměnit rozmisteni prvku v této části !!!"]
[null,null,"01.","Zvolení kategorie, zjištění počtu hráčů",null,null,null,null,null,"Toto se používá jen o zkopírování tohoto bloku"]
[null,null,null,"Název záložky pro registraci hráčů:",null,null,null,"opMuziJedn"]
[null,null,null,"Kategorie (U11,U13,U15,U18):",null,null,null,"Jednotlivci"]
[null,null,null,"Počet přihlášených hráčů:",null,null,null,25,null,"Spočítá hráče dané kategorie a vytvoří záložku -LOS"]
[]
["V průběhu turnaje","Rozhodčí turnaje","02.","Vygenerování hracího plánu, skupiny a následně pavouk"]
[null,null,null,"Počet skupin:",null,null,null,5,null,"Přírustkově přiřadí hráčům skupinu na záložce -LOS"]
[null,null,null,"Počet nasazených do skupin:",null,null,null,25]
[null,null,null,null,null,null,null,null,null,"Přiřadí hráčům skupinu na záložce LOS"]
[]
["V průběhu turnaje","Rozhodčí turnaje"]
[null,null,null,"Počet postupujících do pavouka:",null,null,null,15,null,"Vygeneruje záložku s kompletním rozpisem skupin a pavouka"]
[null,null,null,"Počet nasazených do pavouka:",null,null,null,15]
[null,null,null,"varianta pavouka (8, 16, 32)",null,null,null,16]
[null,null,null,null,null,null,null,null,null,"Vygeneruje záložku pouze s pavoukem. Použití pouze v případě,"]
[null,null,null,null,null,null,null,null,null,"že jsou již rozehrány skupiny a zjistí se že pavouk je špatně."]
[null,"Předseda KM"]
[null,null,null,null,null,null,null,null,null,"Smaže záložky vytvořené v rámci tohoto bloku."]
[]
[]
[]
[]
["V průběhu turnaje","Rozhodčí turnaje","Blok:","OPMC","Pozor neměnit rozmisteni prvku v této části !!!"]
[null,null,"01.","Zvolení kategorie, zjištění počtu hráčů",null,null,null,null,null,"Toto se používá jen o zkopírování tohoto bloku"]
[null,null,null,"Název záložky pro registraci hráčů:",null,null,null,"opMuziCtyrh"]
[null,null,null,"Kategorie (U11,U13,U15,U18):",null,null,null,"Čtyřhra"]
[null,null,null,"Počet přihlášených hráčů:",null,null,null,12,null,"Spočítá hráče dané kategorie a vytvoří záložku -LOS"]
[]
["V průběhu turnaje","Rozhodčí turnaje","02.","Vygenerování hracího plánu, skupiny a následně pavouk"]
[null,null,null,"Počet skupin:",null,null,null,4,null,"Přírustkově přiřadí hráčům skupinu na záložce -LOS"]
[null,null,null,"Počet nasazených do skupin:",null,null,null,3]
[null,null,null,null,null,null,null,null,null,"Přiřadí hráčům skupinu na záložce LOS"]
[]
["V průběhu turnaje","Rozhodčí turnaje"]
[null,null,null,"Počet postupujících do pavouka:",null,null,null,8,null,"Vygeneruje záložku s kompletním rozpisem skupin a pavouka"]
[null,null,null,"Počet nasazených do pavouka:",null,null,null,8]
[null,null,null,"varianta pavouka (8, 16, 32)",null,null,null,8]
[null,null,null,null,null,null,null,null,null,"Vygeneruje záložku pouze s pavoukem. Použití pouze v případě,"]
[null,null,null,null,null,null,null,null,null,"že jsou již rozehrány skupiny a zjistí se že pavouk je špatně."]
[null,"Předseda KM"]
[null,null,null,null,null,null,null,null,null,"Smaže záložky vytvořené v rámci tohoto bloku."]

{"sheet":"opMuziJedn","index":10,"n_rows":346,"n_cols":7,"rows_kept":346,"cut":false,"hidden":true,"merged":[]}
["pritomen","Hráč zkr.","Hráč","Oddíl","Poradi","žebricek","EloSt"]
[null,{"$f":"getPlayerName(C2,D2)","v":"Veselý M (Roz)"},"Veselý Milan","Roztoky",1000,1,1763]
[null,{"$f":"getPlayerName(C3,D3)","v":"Jirásek J (Roz)"},"Jirásek Jiří","Roztoky",999,1,1714]
[null,"Žáček J (Roz)","Žáček Josef","Roztoky",998,1,1642]
["x","Frýdl M (Rud)","Frýdl Miloš","Rudná",997,1,1815]
[null,"Fiala J (Mní)","Fiala Jan","Mníšek",996,1,1764]
[null,"Hluchý M (Rud)","Hluchý Marek","Rudná",995,1,1706]
[null,"Cacek T (Rud)","Cacek Tomáš","Rudná",994,1,1714]
["x","Barcal P (Rud)","Barcal Petr","Rudná",993,1,1695]
[null,"Slaměník R (Lib)","Slaměník Richard","Libčice",992,1,1663]
[null,"Urban J (Mní)","Urban Jan","Mníšek",991,1,1680]
[null,"Levenec P (Roz)","Levenec Petr","Roztoky",990,10.5,1773]
[null,"Špaček M (Roz)","Špaček Michal","Roztoky",989,10.5,1793]
[null,"Smrček M (Roz)","Smrček Michal","Roztoky",988,10.5,1785]
[null,"Zika O (Roz)","Zika Ondřej","Roztoky",987,10.5,1716]
[null,"Fiala O (Mní)","Fiala Ondřej","Mníšek",986,10.5,1767]
[null,"Fišer Š (Lib)","Fišer Štefan","Libčice",985,10.5,1654]
[null,"Richter V (Lib)","Richter Vojtěch","Libčice",984,11,1664]
[null,"Drbohlav M (Mní)","Drbohlav Marek","Mníšek",983,11,1650]
[null,"Stacho L (Mní)","Stacho Libor","Mníšek",982,11,1620]
[null,"Richter J (Lib)","Richter Jaroslav ml.","Libčice",981,11,1515]
[null,"Šulc D (Lib)","Šulc Dalibor","Libčice",980,11,1534]
["x","Rudolf T (Úho)","Rudolf Tomáš","Úholičky",979,11,1723]
[null,"Horák O (Mní)","Horák Ondřej","Mníšek",978,11,1652]
[null,"Taller F (Mní)","Taller Filip","Mníšek",977,11,1654]
[null,"Sedláček L (Ves)","Sedláček Luděk","Vestec",976,11,1695]
["x","Novák M (Ves)","Novák Michal","Vestec",975,11,1638]
["x","Vojtěch D (Úho)","Vojtěch Dušan","Úholičky",974,21,1610]
[null,"Přáda J (Ves)","Přáda Jaroslav","Vestec",973,21,1573]
[null,"Kilian V (Mní)","Kilian Vít","Mníšek",972,21,1538]
["x","Novák O (Ves)","Novák Ondřej","Vestec",971,21,1474]
[null,"Pospíšil A (Mní)","Pospíšil Antonín","Mníšek",970,21,1481]
[null,"Novosad R (Úho)","Novosad Rostislav","Úholičky",969,21,1473]
["x","Mühlhauser Z (Rud)","Mühlhauser Zdeněk","Rudná",968,21,1651.9]
["x","Redlich M (Oře)","Redlich Michal","Ořech",967,21,1574]
[null,"Ptáčník M (Oře)","Ptáčník Martin","Ořech",966,21,1601]
["x","Plecitý L (Rud)","Plecitý Lukáš","Rudná",965,21,1607]
["x","Krasničan J (Oře)","Krasničan Jaroslav","Ořech",964,30.5,1548]
[null,"Coubalová M (Ves)","Coubalová Martina","Vestec",963,31,1518.4]
["x","Škoda J (Oře)","Škoda Jiří","Ořech",962,31,1470]
["x","Vodňanský M (Roz)","Vodňanský Martin","Roztoky",961,31,1511]
["x","Skřivánek J (Oře)","Skřivánek Jiří","Ořech",960,31,1542]
[null,"Deré M (Čer)","Deré Michal","Černošice",959,31,1537]
[null,"Bartoň M (Lib)","Bartoň Milan","Libčice",958,31,1493]
[null,"Faltin M (Úně)","Faltin Miloš","Únětice",957,31,1511]
[null,"Podrápský J (Lib)","Podrápský Jaroslav","Libčice",956,31,1523]
[null,"Skoupil L (Mní)","Skoupil Lukáš","Mníšek",955,31,1494]
[null,"Hozman B (Ves)","Hozman Bohumil","Vestec",954,31,1497]
[null,"Fischer J (Čer)","Fischer Jiří","Černošice",953,41,1487]
[null,"Vodička J (Let)","Vodička Jiří","Lety",952,41,1512]
[null,"Urban R (Let)","Urban Roman","Lety",951,41,1474]
["x","Eibich J (Roz)","Eibich Jan","Roztoky",950,41,1487]
[null,"Tůma M (Mní)","Tůma Martin","Mníšek",949,41,1472]
[null,"Jelínek V (Rud)","Jelínek Vladimír","Rudná",948,41,1478]
[null,"Kačerovský Z (Stř)","Kačerovský Zdeněk","Středokluky",947,41,1467]
[null,"Ráb V (Ves)","Ráb Václav","Vestec",946,41,1488]
["x","Vávra A (Oře)","Vávra Aleš","Ořech",945,41,1470]
[null,"Tolar J (Stř)","Tolar Jakub","Středokluky",944,41,1446]
[null,"Bujárek M (Mní)","Bujárek Milan","Mníšek",943,50.5,1473]
["x","Antoš V (Roz)","Antoš Vojtěch","Roztoky",942,51,1403]
["x","Soukup V (Oře)","Soukup Vojtěch","Ořech",941,51,1413]
[null,"Nágr P (Rud)","Nágr Pavel","Rudná",940,51,1433]
["x","Sedmík Z (Rud)","Sedmík Zdeněk","Rudná",939,51,1419]
[null,"Rein T (Oře)","Rein Tomáš","Ořech",938,51,1396]
["x","Poncar K (Oře)","Poncar Karel","Ořech",937,51,1382]
[null,"Kurková M (Ves)","Kurková Marie","Vestec",936,51,1412]
[null,{"$f":"getPlayerName(C67,D67)","v":"Jungvirt T (Ves)"},"Jungvirt Tomáš","Vestec",935,51,1420]
[null,"Freisleben R (Mní)","Freisleben Radek","Mníšek",934,51,1369]
[null,"Švarc M (Roz)","Švarc Martin","Roztoky",933,51,1463]
[null,"Hlaváč J (Oře)","Hlaváč Jan","Ořech",932,61,1412]
[null,"Vraštil P (Rud)","Vraštil Petr","Rudná",931,61,1387]
[null,"Cimler L (Čer)","Cimler Lukáš","Černošice",930,61,1418]
["x","Telipský J (Lib)","Telipský Josef","Libčice",929,61,1420]
[null,"Lágner P (Čer)","Lágner Petr","Černošice",928,61,1402]
[null,"Dvořák P (Let)","Dvořák Pavel","Lety",927,61,1400]
[null,"Dvořák F (Úho)","Dvořák František","Úholičky",926,61,1379]
[null,"Bulín Z (Oře)","Bulín Zdeněk","Ořech",925,61,1324]
[null,"Zamazal P (Mní)","Zamazal Pavel","Mníšek",924,61,1381]
[null,"Novák M (Úho)","Novák Martin","Úholičky",923,61,1445]
[null,"Čierny A (Oře)","Čierny Alexander","Ořech",922,70.5,1401]
[null,"Květoň J (Let)","Květoň Jan","Lety",921,71,1369]
[null,"Píš D (Oře)","Píš Daniel","Ořech",920,71,1334]
[null,"Doležal T (Mní)","Doležal Tomáš","Mníšek",919,71,1352]
["x","Zacharda A (Oře)","Zacharda Aleš","Ořech",918,71,1319]
[null,"Matoušek M (Oře)","Matoušek Michal","Ořech",917,71,1354]
[null,"Kosek J (Let)","Kosek Jiří","Lety",916,71,1370]
[null,"Zmatlík L (Čer)","Zmatlík Lukáš","Černošice",915,71,1382]
["x","Šturm V (Roz)","Šturm Vojtěch","Roztoky",914,71,1324]
[null,"Tolar P (Stř)","Tolar Petr","Středokluky",913,71,1322]
[null,"Veverka J (Oře)","Veverka Jan","Ořech",912,71,1300]
[null,"Zwiefelhofer J (Roz)","Zwiefelhofer Jiří","Roztoky",911,81,1320]
[null,"Freisleben Z (Mní)","Freisleben Zdeněk","Mníšek",910,81,1313]
[null,"Framberk J (Lib)","Framberk Jan","Libčice",909,81,1317]
[null,"Hruška O (Oře)","Hruška Ondřej","Ořech",908,81,1274]
[null,"Nykl V (Let)","Nykl Václav","Lety",907,81,1324]
[null,"Potužník V (Úně)","Potužník Václav","Únětice",906,81,1331]
[null,"Lachout M (Ves)","Lachout Miroslav","Vestec",905,81,1517]
[null,"Špiegel J (Lib)","Špiegel Jan","Libčice",904,81,1272]
["x","Pavlín J (Oře)","Pavlín Jiří","Ořech",903,81,1318]
[null,"Klinga P (Lib)","Klinga Petr","Libčice",902,81,1320]
[null,"Kohlík M (Oře)","Kohlík Miroslav ml.","Ořech",901,90.5,1337]
[null,"Malínek L (Ves)","Malínek Lukáš","Vestec",900,90.5,1269]
[null,"Macháček P (Mní)","Macháček Pavel st.","Mníšek",899,91,1288]
[null,"Silovský M (Ves)","Silovský Martin","Vestec",898,91,1297]
[null,"Křižka V (Rud)","Křižka Václav","Rudná",897,91,1254]
[null,"Sloup J (Rud)","Sloup Jiří","Rudná",896,91,1248]
[null,"Charvát V (Rud)","Charvát Vojtěch","Rudná",895,91,1247]
[null,"Řízek J (Ves)","Řízek Jiří","Vestec",894,91,1269]
[null,"Matoušek T (Oře)","Matoušek Tomáš","Ořech",893,91,1299]
[null,"Tesař O (Úho)","Tesař Ondřej","Úholičky",892,91,1277]
[null,"Holeček D (Let)","Holeček David","Lety",891,91,1267]
[null,"Trubnikov S (Úně)","Trubnikov Stanislav","Únětice",890,91,1240]
[null,"Foltyn J (Rud)","Foltyn Jiří","Rudná",889,100.5,1284]
[null,"Šimon M (Roz)","Šimon Matyáš","Roztoky",888,101,1247]
[null,"Polavka Z (Mní)","Polavka Zdeněk","Mníšek",887,101,1249]
[null,"Kruch P (Dav)","Kruch Petr","Davle",886,101,1219]
["x","Ducháčková R (Úho)","Ducháčková Radka","Úholičky",885,101,1211]
[null,"Dalihod J (Úho)","Dalihod Jakub","Úholičky",884,101,1263]
[null,"Stržínek J (Mní)","Stržínek Jiří","Mníšek",883,101,1226]
[null,"Kamenszki I (Stř)","Kamenszki Ivan","Středokluky",882,101,1185]
[null,"Král J (Ves)","Král Jan","Vestec",881,101,1192]
[null,"Tománek F (Dav)","Tománek František","Davle",880,101,1195]
[null,"Vanson P (Stř)","Vanson Patrick","Středokluky",879,101,1181]
[null,"Šenbauer J (Rud)","Šenbauer Jiří","Rudná",878,110.5,1175]
[null,"Wimmerová L (Rud)","Wimmerová Lucie","Rudná",877,110.5,1220]
[null,"Zelenka J (Rud)","Zelenka Jaromír","Rudná",876,110.5,1249]
[null,"Rábová H (Ves)","Rábová Hana","Vestec",875,110.5,1148]
[null,"Šveňha J (Ves)","Šveňha Jiří","Vestec",874,111,1203]
[null,"Knýbel P (Let)","Knýbel Pavel","Lety",873,111,1200]
[null,"Fürst M (Oře)","Fürst Mirko","Ořech",872,111,1129]
[null,{"$f":"getPlayerName(C131,D131)","v":"Matousch Š (Úho)"},"Matousch Šimon","Úholičky",871,111,1130]
[null,"Dáňa M (Mní)","Dáňa Martin","Mníšek",870,111,1125]
[null,"Kozel V (Úho)","Kozel Vilém","Úholičky",869,111,1205]
[null,"Tichý J (Čer)","Tichý Jiří","Černošice",868,111,1128]
[null,"Richter J (Lib)","Richter Jaroslav st.","Libčice",867,111,1256]
[null,"Veverka V (Oře)","Veverka Václav ml.","Ořech",866,111,1134]
[null,"Lukáš L (Roz)","Lukáš Lukáš","Roztoky",865,111,1046]
[null,"Blažek J (Oře)","Blažek Jiří","Ořech",864,120.5,1182]
[null,"Charvát P (Čer)","Charvát Petr","Černošice",863,120.5,1196]
[null,"Pelant J (Stř)","Pelant Jakub","Středokluky",862,121,1112]
[null,"Tkáč I (Mní)","Tkáč Ivan","Mníšek",861,121,1142]
[null,"Otépka R (Úho)","Otépka Radim","Úholičky",860,121,1060]
[null,"Čáp M (Čer)","Čáp Martin","Černošice",859,121,1199]
[null,"Dostál Z (Lib)","Dostál Zdeněk","Libčice",858,121,1122]
[null,"Zmatlík P (Čer)","Zmatlík Petr","Černošice",857,121,1204]
[null,"Cihelka J (Rud)","Cihelka Jaroslav","Rudná",856,121,1124]
[null,"Vágner J (Roz)","Vágner Jonáš","Roztoky",855,121,1089]
[null,"Veselý P (Čer)","Veselý Petr","Černošice",854,121,1074]
[null,"Votoček J (Lib)","Votoček Jaroslav","Libčice",853,121,1086]
[null,"Tkadlec J (Lib)","Tkadlec Jaroslav","Libčice",852,130.5,1142]
[null,"Nosek M (Čer)","Nosek Michal","Černošice",851,130.5,1060]
[null,"Nágl V (Dav)","Nágl Václav","Davle",850,131,1102]
[null,"Dvořák J (Úho)","Dvořák Jiří","Úholičky",849,131,1173]
[null,"Hrdina P (Čer)","Hrdina Pavel","Černošice",848,131,1156]
["x","Heřman M (Oře)","Heřman Miroslav","Ořech",847,131,1095]
[null,"Hikl J (Stř)","Hikl Josef","Středokluky",846,131,1081]
[null,"Yaroslavtsev V (Oře)","Yaroslavtsev Vitaly","Ořech",845,131,1070]
[null,"Suchý M (Čer)","Suchý Michal","Černošice",844,131,1086]
[null,"Kozel P (Úho)","Kozel Petr","Úholičky",843,131,1050]
[null,"Kalbáč K (Mní)","Kalbáč Karel","Mníšek",842,131,1073]
[null,"Matoušek Z (Oře)","Matoušek Zdeněk","Ořech",841,131,1043]
[null,"Souček J (Čer)","Souček Jan","Černošice",840,140.5,1028]
[null,"Popelka P (Stř)","Popelka Pavel","Středokluky",839,141,1079]
[null,"Veverka V (Oře)","Veverka Václav st.","Ořech",838,141,1051]
[null,"Krejčová B (Oře)","Krejčová Barbora","Ořech",837,141,1030]
[null,"Krásný A (Úho)","Krásný Antonín","Úholičky",836,141,1180]
[null,"Brejcha P (Stř)","Brejcha Petr","Středokluky",835,141,1123]
[null,"Kratochvíl J (Úně)","Kratochvíl Jiří","Únětice",834,141,1221]
[null,"Makovec M (Dav)","Makovec Milan","Davle",833,141,994]
[null,"Hurych V (Úně)","Hurych Vlastislav","Únětice",832,141,1037]
[null,"Severa M (Oře)","Severa Martin","Ořech",831,141,1004]
[null,"Krupička R (Úně)","Krupička Radim","Únětice",830,141,973]
[null,"Černý R (Let)","Černý Radek","Lety",829,150.5,1132]
[null,"Kolbušovský M (Rud)","Kolbušovský Michal","Rudná",828,150.5,908]
[null,"Franc M (Úně)","Franc Martin","Únětice",827,150.5,1017]
[null,"Tříska L (Stř)","Tříska Luboš","Středokluky",826,150.5,1057]
[null,"Vondrová K (Roz)","Vondrová Kristýna nejst.","Roztoky",825,151,928]
[null,"Tobolář K (Lib)","Tobolář Karel","Libčice",824,151,970]
[null,"Šteiger D (Čer)","Šteiger Dominik","Černošice",823,151,925]
[null,"Prudík T (Dav)","Prudík Tomáš","Davle",822,151,918]
[null,"Dvořáková M (Úho)","Dvořáková Martina","Úholičky",821,151,828]
[null,"Freisleben R (Úně)","Freisleben Robin","Únětice",820,151,1091]
[null,"Faltin B (Úně)","Faltin Bohumil","Únětice",819,151,838]
[null,"Anderson B (Úně)","Anderson Ben","Únětice",818,160.5,0]
[null,"Konvalinka M (Lib)","Konvalinka Michal","Libčice",817,160.5,0]
[null,"Boháčová S (Lib)","Boháčová Simona","Libčice",816,160.5,0]
[null,"Horony T (Úho)","Horony Tibor","Úholičky",815,160.5,0]
[null,"Hodač J (Lib)","Hodač Jan","Libčice",814,160.5,0]
[null,"Šťastný J (Oře)","Šťastný Jan","Ořech",813,160.5,0]
[null,"Šťastná D (Oře)","Šťastná Dominika","Ořech",812,160.5,0]
[null,"Šťastná N (Oře)","Šťastná Nataly","Ořech",811,160.5,0]
[null,"Bárta K (Roz)","Bárta Kryštof","Roztoky",800,200,0]
[null,"Vacek J (Roz)","Vacek Jiří","Roztoky",800,200,0]
[null,"Manek J (Lib)","Manek Jakub","Libčice",800,200,0]
[null,{"$f":"getPlayerName(C195,D195)","v":"Selement J (Mní)"},"Selement Jaroslav","Mníšek",800,200,0]
[null,"Mitáš J (Rud)","Mitáš Josef","Rudná",800,200,0]
[null,"Jakoubek J (Roz)","Jakoubek Jakub","Roztoky",800,200,0]
[null,"Pöschl M (Roz)","Pöschl Miroslav st.","Roztoky",800,200,0]
[null,"Hadrava M (Úho)","Hadrava Miloslav","Úholičky",800,200,0]
[null,"Novák M (Oře)","Novák Marek","Ořech",800,200,0]
[null,"Fryje J (Let)","Fryje Jindřich","Lety",800,200,0]
[null,"Ihl R (Ves)","Ihl Roman","Vestec",800,200,0]
[null,"Hudák T (Oře)","Hudák Tomáš","Ořech",800,200,0]
[null,"Ducháček P (Úho)","Ducháček Petr","Úholičky",800,200,0]
[null,"Icha R (Mní)","Icha Richard","Mníšek",800,200,0]
[null,"Petkanič V (Mní)","Petkanič Vladimír","Mníšek",800,200,0]
[null,"Hloch J (Dav)","Hloch Jan","Davle",800,200,0]
[null,"Fišman A (Roz)","Fišman Alexandr","Roztoky",800,200,0]
[null,"Tolárek D (Roz)","Tolárek David","Roztoky",800,200,0]
[null,"Lukáš F (Roz)","Lukáš Filip nejml.","Roztoky",800,200,0]
[null,"Lukáš J (Roz)","Lukáš Jakub","Roztoky",800,200,0]
[null,"Cabicar Š (Roz)","Cabicar Šimon","Roztoky",800,200,0]
[null,"Stříbrný J (Roz)","Stříbrný Jiří Maxmilián","Roztoky",800,200,0]
[null,"Hora O (Rud)","Hora Ondřej","Rudná",800,200,0]
[null,"Jambor V (Oře)","Jambor Václav","Ořech",800,200,0]
[null,"Kaláb A (Roz)","Kaláb Adam","Roztoky",800,200,0]
[null,"Kalinová H (Roz)","Kalinová Hana","Roztoky",800,200,0]
[null,"Kuchtová K (Roz)","Kuchtová Klára","Roztoky",800,200,0]
[null,"Lauermann M (Roz)","Lauermann Matěj","Roztoky",800,200,0]
[null,"Lederer J (Roz)","Lederer Jan","Roztoky",800,200,0]
[null,"Machek J (Roz)","Machek Jan ml.","Roztoky",800,200,0]
[null,"Netušil D (Roz)","Netušil David","Roztoky",800,200,0]
[null,"Příhonský E (Roz)","Příhonský Ernesto","Roztoky",800,200,0]
[null,"Valek T (Roz)","Valek Tomáš","Roztoky",800,200,0]
[null,"Vašků K (Roz)","Vašků Karolína","Roztoky",800,200,0]
[null,"Carboch O (Čer)","Carboch Ondřej","Černošice",800,200,0]
[null,"Hron M (Čer)","Hron Matyáš","Černošice",800,200,0]
[null,"Keclík R (Čer)","Keclík Rostislav","Černošice",800,200,0]
[null,"Pajer F (Čer)","Pajer Filip","Černošice",800,200,0]
[null,"Roztočilová T (Čer)","Roztočilová Tereza","Černošice",800,200,0]
[null,"Wolf V (Čer)","Wolf Vojtěch","Černošice",800,200,0]
[null,"Bartoš J (Úně)","Bartoš Jiří","Únětice",800,200,0]
[null,"Freislebenová S (Úně)","Freislebenová Sára","Únětice",800,200,0]
[null,"Honek J (Úně)","Honek Jan","Únětice",800,200,0]
[null,"Potužník A (Úně)","Potužník Adam","Únětice",800,200,0]
[null,"Sitta R (Úně)","Sitta Radomír","Únětice",800,200,0]
[null,"Dostál O (Lib)","Dostál Ondřej","Libčice",800,200,0]
[null,"Dostálová A (Lib)","Dostálová Aneta","Libčice",800,200,0]
[null,"Janura J (Lib)","Janura Jakub","Libčice",800,200,0]
[null,"Auf T (Oře)","Auf Tadeáš","Ořech",800,200,0]
[null,"Blecha T (Oře)","Blecha Tomáš","Ořech",800,200,0]
[null,"Brůna J (Oře)","Brůna Jiří","Ořech",800,200,0]
[null,"Cafourek T (Oře)","Cafourek Tomáš","Ořech",800,200,0]
[null,"Chaloupka V (Oře)","Chaloupka Vlastimil","Ořech",800,200,0]
[null,"Flusser M (Oře)","Flusser Martin","Ořech",800,200,0]
[null,"Kohlík M (Oře)","Kohlík Miroslav st.","Ořech",800,200,0]
[null,"Kotěšovská T (Oře)","Kotěšovská Tereza","Ořech",800,200,0]
[null,"Kotěšovský J (Oře)","Kotěšovský Jan","Ořech",800,200,0]
[null,"Krolop D (Oře)","Krolop David","Ořech",800,200,0]
[null,"Němejc M (Oře)","Němejc Melichar","Ořech",800,200,0]
[null,"Novák T (Oře)","Novák Tomáš","Ořech",800,200,0]
[null,"Pavlín Š (Oře)","Pavlín Šimon","Ořech",800,200,0]
[null,"Píš O (Oře)","Píš Ondřej","Ořech",800,200,0]
[null,"Pražský M (Oře)","Pražský Michal","Ořech",800,200,0]
[null,"Sezemský J (Oře)","Sezemský Jaroslav","Ořech",800,200,0]
[null,"Šimáček L (Oře)","Šimáček Libor","Ořech",800,200,0]
[null,"Škoda P (Oře)","Škoda Petr","Ořech",800,200,0]
[null,"Sladovník D (Oře)","Sladovník David","Ořech",800,200,0]
[null,{"$f":"getPlayerName(C259,D259)","v":"Šrenk Š (Oře)"},"Šrenk Štěpán","Ořech",800,200,0]
[null,"Chval I (Stř)","Chval Ivan","Středokluky",800,200,0]
[null,"Krlín B (Stř)","Krlín Bohumil","Středokluky",800,200,0]
[null,"Rusová B (Ves)","Rusová Barbora","Vestec",800,200,0]
[null,"Carvan M (Úho)","Carvan Miloslav","Úholičky",800,200,0]
[null,"Kapusta A (Úho)","Kapusta Arnošt","Úholičky",800,200,0]
[null,"Kočárek M (Úho)","Kočárek Martin","Úholičky",800,200,0]
[null,"Konopásková K (Úho)","Konopásková Kristina","Úholičky",800,200,0]
[null,"Král M (Úho)","Král Martin","Úholičky",800,200,0]
[null,"Navrátil L (Úho)","Navrátil Lukáš","Úholičky",800,200,0]
[null,"Vorm P (Úho)","Vorm Petr","Úholičky",800,200,0]
[null,"Krisová M (Let)","Krisová Marcela","Lety",800,200,0]
[null,"Báck B (Rud)","Báck Bohdan","Rudná",800,200,0]
[null,"Cihelka R (Rud)","Cihelka Radek","Rudná",800,200,0]
[null,"Kohoutek K (Rud)","Kohoutek Kamil","Rudná",800,200,0]
[null,"Matějovský J (Rud)","Matějovský Jan","Rudná",800,200,0]
[null,"Kalousek J (Mní)","Kalousek Jindřich","Mníšek",800,200,0]
[null,"Kokeš O (Mní)","Kokeš Oldřich","Mníšek",800,200,0]
[null,"Hloch M (Roz)","Hloch Matěj","Roztoky",800,200,0]
[null,"Franěk M (Čer)","Franěk Matyáš","Černošice",800,200,0]
[null,"Hlaváček D (Čer)","Hlaváček Daniel","Černošice",800,200,0]
[null,"Hlavenka J (Čer)","Hlavenka Joel Mathias","Černošice",800,200,0]
[null,"Hlavenka E (Čer)","Hlavenka Eli Theodor","Černošice",800,200,0]
[null,"Kuliš D (Čer)","Kuliš David","Černošice",800,200,0]
[null,"Strakoš J (Čer)","Strakoš Jan","Černošice",800,200,0]
[null,"Suchý M (Čer)","Suchý Marek","Černošice",800,200,0]
[null,"Podolský T (Úně)","Podolský Tomáš","Únětice",800,200,0]
[null,"Bartik O (Lib)","Bartik Ondřej","Libčice",800,200,0]
[null,"Beltrám J (Lib)","Beltrám Javier Ernesto","Libčice",800,200,0]
[null,"Boháč A (Lib)","Boháč Antonín","Libčice",800,200,0]
[null,"Česák M (Lib)","Česák Michal","Libčice",800,200,0]
[null,"Framberk M (Lib)","Framberk Mikuláš","Libčice",800,200,0]
[null,"Juda F (Lib)","Juda František","Libčice",800,200,0]
[null,"Nováková K (Lib)","Nováková Karolina","Libčice",800,200,0]
[null,"Patras M (Lib)","Patras Matyáš","Libčice",800,200,0]
[null,"Pojerová G (Lib)","Pojerová Gabriela","Libčice",800,200,0]
[null,"Ponáhlo M (Lib)","Ponáhlo Michal","Libčice",800,200,0]
[null,"Slapnička O (Lib)","Slapnička Ondřej","Libčice",800,200,0]
[null,"Tobolář J (Lib)","Tobolář Jindřich","Libčice",800,200,0]
[null,"Andrlík D (Oře)","Andrlík Dalibor","Ořech",800,200,0]
[null,"Fiala T (Oře)","Fiala Tobiáš","Ořech",800,200,0]
[null,"Horáčková A (Oře)","Horáčková Anežka","Ořech",800,200,0]
[null,"Kabátník O (Oře)","Kabátník Ondra","Ořech",800,200,0]
[null,"Kranát P (Oře)","Kranát Petr","Ořech",800,200,0]
[null,"Pražská L (Oře)","Pražská Lenka","Ořech",800,200,0]
[null,"Šimák J (Oře)","Šimák Jaroslav","Ořech",800,200,0]
[null,"Špaček M (Oře)","Špaček Matěj","Ořech",800,200,0]
[null,"Šulc A (Oře)","Šulc Adam","Ořech",800,200,0]
[null,"Veselý M (Oře)","Veselý Miroslav","Ořech",800,200,0]
[null,"Vinš A (Stř)","Vinš Antonín","Středokluky",800,200,0]
[null,"Halodová P (Ves)","Halodová Petra","Vestec",800,200,0]
[null,"Michal F (Ves)","Michal František","Vestec",800,200,0]
[null,"Šperl M (Ves)","Šperl Michal","Vestec",800,200,0]
[null,"Břečková A (Úho)","Břečková Aneta","Úholičky",800,200,0]
[null,"Ducháček M (Úho)","Ducháček Michal","Úholičky",800,200,0]
[null,"Horony M (Úho)","Horony Martin","Úholičky",800,200,0]
[null,"Kříž F (Úho)","Kříž Filip","Úholičky",800,200,0]
[null,"Sazimová A (Úho)","Sazimová Adéla","Úholičky",800,200,0]
[null,"Yosypenko M (Úho)","Yosypenko Michal","Úholičky",800,200,0]
[null,"Jagoš V (Let)","Jagoš Václav","Lety",800,200,0]
[null,"Neumann R (Let)","Neumann Radim","Lety",800,200,0]
[null,"Bosch M (Rud)","Bosch Maxmilian","Rudná",800,200,0]
[null,"Bosch M (Rud)","Bosch Maya","Rudná",800,200,0]
[null,"Frýdl L (Rud)","Frýdl Lukáš","Rudná",800,200,0]
[null,{"$f":"getPlayerName(C323,D323)","v":"Frýdlová T (Rud)"},"Frýdlová Tereza","Rudná",800,200,0]
[null,"Juan T (Rud)","Juan Tiago","Rudná",800,200,0]
[null,"Jurenka D (Rud)","Jurenka David","Rudná",800,200,0]
[null,"Kreyndl I (Rud)","Kreyndl Ilya","Rudná",800,200,0]
[null,"Kutil T (Rud)","Kutil Tomáš","Rudná",800,200,0]
[null,"Kutilová K (Rud)","Kutilová Krystýna","Rudná",800,200,0]
[null,"Mayer L (Rud)","Mayer Lukáš","Rudná",800,200,0]
[null,"Petříková J (Rud)","Petříková Johana","Rudná",800,200,0]
[null,"Švarcová L (Rud)","Švarcová Liana","Rudná",800,200,0]
[null,"Wimmer V (Rud)","Wimmer Vítek","Rudná",800,200,0]
[null,"Knotek M (Dav)","Knotek Martin","Davle",800,200,0]
[null,"Lundák P (Dav)","Lundák Pavel","Davle",800,200,0]
[null,"Skyva M (Dav)","Skyva Michal","Davle",800,200,0]
[null,"Vybíral V (Dav)","Vybíral Václav","Davle",800,200,0]
[null,"Bernard R (Mní)","Bernard Robin","Mníšek",800,200,0]
[null,"Drašar J (Mní)","Drašar Jakub","Mníšek",800,200,0]
[null,"Freudl D (Mní)","Freudl David","Mníšek",800,200,0]
[null,"Frinta M (Mní)","Frinta Matyáš","Mníšek",800,200,0]
[null,"Hošek O (Mní)","Hošek Ondřej","Mníšek",800,200,0]
[null,"Jesenský J (Mní)","Jesenský Ján","Mníšek",800,200,0]
[null,"Kameník A (Mní)","Kameník Adam","Mníšek",800,200,0]
[null,"Kosmina N (Mní)","Kosmina Natalia","Mníšek",800,200,0]
[null,"Nguyen T (Mní)","Nguyen Tuan Tu","Mníšek",800,200,0]
[null,"Saltanovska M (Mní)","Saltanovska Marharyta","Mníšek",800,200,0]

{"sheet":"Tisk základ template","index":11,"n_rows":56,"n_cols":16,"rows_kept":56,"cut":false,"hidden":true,"merged":[[1,0,6,0],[1,4,1,13],[8,0,13,0],[8,4,8,13],[2,4,2,5],[2,6,2,7],[2,8,2,9],[2,10,2,11],[15,0,20,0],[15,4,15,13],[22,0,27,0],[22,4,22,13],[22,2,23,2],[22,3,23,3],[23,4,23,5],[23,12,23,13],[43,15,44,16],[44,4,44,5],[29,0,35,0],[29,4,29,13],[36,0,41,0],[36,4,36,13],[29,2,30,2],[29,3,30,3],[43,0,48,0],[43,4,43,13],[36,2,37,2],[36,3,37,3],[36,15,37,16],[37,4,37,5],[37,6,37,7],[37,8,37,9],[50,0,55,0],[50,4,50,13],[43,2,44,2],[43,3,44,3],[1,2,2,2],[1,3,2,3],[9,4,9,5],[9,6,9,7],[9,8,9,9],[8,2,9,2],[8,3,9,3],[15,2,16,2],[15,3,16,3],[23,6,23,7],[23,8,23,9],[23,10,23,11],[15,15,16,16],[16,4,16,5],[16,6,16,7],[16,8,16,9],[16,10,16,11],[16,12,16,13],[1,15,2,16],[8,15,9,16],[2,12,2,13],[9,10,9,11],[9,12,9,13],[22,15,23,16],[29,15,30,16],[30,4,30,5],[30,6,30,7],[30,8,30,9],[30,10,30,11],[30,12,30,13],[37,10,37,11],[37,12,37,13],[44,6,44,7],[44,8,44,9],[44,10,44,11],[44,12,44,13],[50,2,51,2],[50,3,51,3],[50,15,51,16],[51,4,51,5],[51,6,51,7],[51,8,51,9],[51,10,51,11],[51,12,51,13]]}
[]
["1 DIVIZE",null,"Hráči dle žebříčku","Hráči dolosovaní (5.-8.)","Výsledek hry",null,null,null,null,null,null,null,null,null,null,"Výsledek utkání"]
[null,null,null,null,"Set 1",null,"Set 2.",null,"Set 3.",null,"Set 4.",null,"Set 5."]
[null,"1."]
[null,"2."]
[null,"3."]
[null,"4."]
[]
["2 DIVIZE",null,"Hráči dle žebříčku","Hráči dolosovaní (13.-16.)","Výsledek hry",null,null,null,null,null,null,null,null,null,null,"Výsledek utkání"]
[null,null,null,null,"Set 1",null,"Set 2.",null,"Set 3.",null,"Set 4.",null,"Set 5."]
[null,"1."]
[null,"2."]
[null,"3."]
[null,"4."]
[]
["3 DIVIZE",null,"Hráči dle žebříčku","Hráči dolosovaní (21.-24.)","Výsledek hry",null,null,null,null,null,null,null,null,null,null,"Výsledek utkání"]
[]
[null,"1."]
[null,"2."]
[null,"3."]
[null,"4."]
[]
["4 DIVIZE",null,"Hráči dle žebříčku","Hráči dolosovaní (29.-32.)","Výsledek hry",null,null,null,null,null,null,null,null,null,null,"Výsledek utkání"]
[]
[null,"1."]
[null,"2."]
[null,"3."]
[null,"4."]
[]
["5 DIVIZE",null,"Hráči dle žebříčku","Hráči dolosovaní (37.-40.)","Výsledek hry",null,null,null,null,null,null,null,null,null,null,"Výsledek utkání"]
[]
[null,"1."]
[null,"2."]
[null,"3."]
[null,"4."]
[]
["6 DIVIZE",null,"Hráči dle žebříčku","Hráči dolosovaní (45.-48.)","Výsledek hry",null,null,null,null,null,null,null,null,null,null,"Výsledek utkání"]
[]
[null,"1.",{"$f":"#REF!","v":{"$error":"#REF!"}},{"$f":"#REF!","v":{"$error":"#REF!"}}]
[null,"2.",{"$f":"#REF!","v":{"$error":"#REF!"}},{"$f":"#REF!","v":{"$error":"#REF!"}}]
[null,"3.",{"$f":"#REF!","v":{"$error":"#REF!"}},{"$f":"#REF!","v":{"$error":"#REF!"}}]
[null,"4.",{"$f":"#REF!","v":{"$error":"#REF!"}},{"$f":"#REF!","v":{"$error":"#REF!"}}]
[]
["7 DIVIZE",null,"Hráči dle žebříčku","Hráči dolosovaní (53.-56.)","Výsledek hry",null,null,null,null,null,null,null,null,null,null,"Výsledek utkání"]
[]
[null,"1.",{"$f":"#REF!","v":{"$error":"#REF!"}},{"$f":"#REF!","v":{"$error":"#REF!"}}]
[null,"2.",{"$f":"#REF!","v":{"$error":"#REF!"}},{"$f":"#REF!","v":{"$error":"#REF!"}}]
[null,"3.",{"$f":"#REF!","v":{"$error":"#REF!"}},{"$f":"#REF!","v":{"$error":"#REF!"}}]
[null,"4.",{"$f":"#REF!","v":{"$error":"#REF!"}},{"$f":"#REF!","v":{"$error":"#REF!"}}]
[]
["8 DIVIZE",null,"Hráči dle žebříčku","Hráči dolosovaní (61.-64.)","Výsledek hry",null,null,null,null,null,null,null,null,null,null,"Výsledek utkání"]
[]
[null,"1.",{"$f":"#REF!","v":{"$error":"#REF!"}},{"$f":"#REF!","v":{"$error":"#REF!"}}]
[null,"2.",{"$f":"#REF!","v":{"$error":"#REF!"}},{"$f":"#REF!","v":{"$error":"#REF!"}}]
[null,"3.",{"$f":"#REF!","v":{"$error":"#REF!"}},{"$f":"#REF!","v":{"$error":"#REF!"}}]
[null,"4.",{"$f":"#REF!","v":{"$error":"#REF!"}},{"$f":"#REF!","v":{"$error":"#REF!"}}]

{"sheet":"Tisk druhá část Template","index":12,"n_rows":64,"n_cols":93,"rows_kept":64,"cut":false,"hidden":true,"merged":[[1,39,1,40],[1,41,1,42],[1,30,1,31],[1,1,1,2],[1,3,1,4],[1,5,1,6],[1,7,1,8],[1,9,1,10],[1,20,1,21],[1,11,1,12],[17,20,17,21],[17,22,17,23],[17,24,17,25],[17,26,17,27],[1,85,1,86],[1,87,1,88],[1,64,1,65],[1,66,1,67],[1,77,1,78],[1,79,1,80],[1,81,1,82],[1,83,1,84],[1,68,1,69],[1,43,1,44],[1,45,1,46],[1,47,1,48],[1,58,1,59],[1,60,1,61],[1,62,1,63],[1,49,1,50],[1,22,1,23],[1,24,1,25],[1,26,1,27],[1,28,1,29],[33,1,33,2],[33,3,33,4],[33,5,33,6],[33,7,33,8],[33,9,33,10],[33,11,33,12],[17,79,17,80],[17,81,17,82],[17,83,17,84],[17,58,17,59],[17,60,17,61],[17,62,17,63],[17,64,17,65],[17,66,17,67],[17,77,17,78],[17,68,17,69],[17,28,17,29],[17,39,17,40],[17,41,17,42],[17,43,17,44],[17,45,17,46],[17,47,17,48],[17,30,17,31],[17,1,17,2],[33,58,33,59],[33,60,33,61],[33,20,33,21],[33,22,33,23],[33,24,33,25],[33,26,33,27],[33,28,33,29],[33,39,33,40],[33,30,33,31],[49,1,49,2],[49,3,49,4],[49,5,49,6],[49,7,49,8],[49,9,49,10],[49,11,49,12],[49,20,49,21],[49,22,49,23],[49,24,49,25],[49,47,49,48],[49,58,49,59],[49,60,49,61],[49,62,49,63],[49,64,49,65],[49,66,49,67],[49,49,49,50],[49,26,49,27],[49,28,49,29],[49,39,49,40],[49,41,49,42],[49,43,49,44],[49,45,49,46],[49,30,49,31],[37,7,37,8],[36,5,36,6],[37,5,37,6],[9,3,9,4],[10,3,10,4],[11,3,11,4],[12,3,12,4],[13,3,13,4],[14,3,14,4],[17,3,17,4],[17,5,17,6],[17,7,17,8],[35,5,35,6],[36,7,36,8],[21,7,21,8],[37,9,37,10],[17,11,17,12],[18,3,18,4],[18,5,18,6],[18,7,18,8],[18,9,18,10],[18,11,18,12],[19,3,19,4],[34,9,34,10],[34,11,34,12],[35,11,35,12],[36,11,36,12],[37,11,37,12],[35,9,35,10],[36,9,36,10],[34,3,34,4],[35,3,35,4],[36,3,36,4],[37,3,37,4],[34,5,34,6],[34,7,34,8],[35,7,35,8],[21,3,21,4],[21,5,21,6],[2,3,2,4],[2,5,2,6],[2,7,2,8],[2,9,2,10],[19,5,19,6],[19,7,19,8],[19,9,19,10],[19,11,19,12],[17,9,17,10],[2,11,2,12],[3,3,3,4],[3,5,3,6],[3,7,3,8],[3,9,3,10],[3,11,3,12],[21,9,21,10],[21,11,21,12],[20,3,20,4],[20,5,20,6],[20,7,20,8],[20,9,20,10],[20,11,20,12],[4,3,4,4],[4,5,4,6],[4,7,4,8],[4,9,4,10],[4,11,4,12],[5,3,5,4],[5,5,5,6],[5,7,5,8],[5,9,5,10],[5,11,5,12],[41,3,41,4],[42,3,42,4],[43,3,43,4],[44,3,44,4],[45,3,45,4],[46,3,46,4],[31,3,31,4],[26,3,26,4],[27,3,27,4],[28,3,28,4],[29,3,29,4],[30,3,30,4],[52,9,52,10],[52,11,52,12],[53,3,53,4],[53,5,53,6],[53,7,53,8],[53,9,53,10],[53,11,53,12],[50,3,50,4],[50,5,50,6],[50,7,50,8],[50,9,50,10],[50,11,50,12],[51,3,51,4],[51,5,51,6],[51,7,51,8],[51,9,51,10],[51,11,51,12],[58,3,58,4],[59,3,59,4],[60,3,60,4],[61,3,61,4],[62,3,62,4],[63,3,63,4],[52,3,52,4],[52,5,52,6],[52,7,52,8],[4,28,4,29],[4,30,4,31],[5,22,5,23],[5,24,5,25],[5,26,5,27],[5,28,5,29],[5,30,5,31],[2,22,2,23],[2,24,2,25],[2,26,2,27],[2,28,2,29],[2,30,2,31],[3,22,3,23],[3,24,3,25],[3,26,3,27],[3,28,3,29],[3,30,3,31],[9,22,9,23],[10,22,10,23],[11,22,11,23],[12,22,12,23],[13,22,13,23],[14,22,14,23],[4,22,4,23],[4,24,4,25],[4,26,4,27],[20,28,20,29],[20,30,20,31],[21,22,21,23],[21,24,21,25],[21,26,21,27],[21,28,21,29],[21,30,21,31],[18,22,18,23],[18,24,18,25],[18,26,18,27],[18,28,18,29],[18,30,18,31],[19,22,19,23],[19,24,19,25],[19,26,19,27],[19,28,19,29],[19,30,19,31],[26,22,26,23],[27,22,27,23],[28,22,28,23],[29,22,29,23],[30,22,30,23],[31,22,31,23],[20,22,20,23],[20,24,20,25],[20,26,20,27],[36,28,36,29],[36,30,36,31],[37,22,37,23],[37,24,37,25],[37,26,37,27],[37,28,37,29],[37,30,37,31],[34,22,34,23],[34,24,34,25],[34,26,34,27],[34,28,34,29],[34,30,34,31],[35,22,35,23],[35,24,35,25],[35,26,35,27],[35,28,35,29],[35,30,35,31],[41,22,41,23],[42,22,42,23],[43,22,43,23],[44,22,44,23],[45,22,45,23],[46,22,46,23],[36,22,36,23],[36,24,36,25],[36,26,36,27],[52,28,52,29],[52,30,52,31],[53,22,53,23],[53,24,53,25],[53,26,53,27],[53,28,53,29],[53,30,53,31],[50,22,50,23],[50,24,50,25],[50,26,50,27],[50,28,50,29],[50,30,50,31],[51,22,51,23],[51,24,51,25],[51,26,51,27],[51,28,51,29],[51,30,51,31],[58,22,58,23],[59,22,59,23],[60,22,60,23],[61,22,61,23],[62,22,62,23],[63,22,63,23],[52,22,52,23],[52,24,52,25],[52,26,52,27],[2,41,2,42],[2,43,2,44],[2,45,2,46],[2,47,2,48],[2,49,2,50],[3,41,3,42],[3,43,3,44],[3,45,3,46],[3,47,3,48],[3,49,3,50],[4,41,4,42],[4,43,4,44],[4,45,4,46],[4,47,4,48],[4,49,4,50],[5,41,5,42],[5,43,5,44],[5,45,5,46],[5,47,5,48],[5,49,5,50],[17,49,17,50],[18,41,18,42],[18,43,18,44],[18,45,18,46],[18,47,18,48],[18,49,18,50],[9,41,9,42],[10,41,10,42],[11,41,11,42],[12,41,12,42],[13,41,13,42],[14,41,14,42],[19,41,19,42],[19,43,19,44],[19,45,19,46],[19,47,19,48],[19,49,19,50],[20,41,20,42],[20,43,20,44],[20,45,20,46],[20,47,20,48],[20,49,20,50],[27,41,27,42],[28,41,28,42],[29,41,29,42],[30,41,30,42],[31,41,31,42],[33,49,33,50],[21,41,21,42],[21,43,21,44],[21,45,21,46],[21,47,21,48],[21,49,21,50],[26,41,26,42],[33,41,33,42],[33,43,33,44],[33,45,33,46],[33,47,33,48],[36,47,36,48],[36,49,36,50],[37,41,37,42],[37,43,37,44],[37,45,37,46],[37,47,37,48],[37,49,37,50],[34,41,34,42],[34,43,34,44],[34,45,34,46],[34,47,34,48],[34,49,34,50],[35,41,35,42],[35,43,35,44],[35,45,35,46],[35,47,35,48],[35,49,35,50],[41,41,41,42],[42,41,42,42],[43,41,43,42],[44,41,44,42],[45,41,45,42],[46,41,46,42],[36,41,36,42],[36,43,36,44],[36,45,36,46],[52,47,52,48],[52,49,52,50],[53,41,53,42],[53,43,53,44],[53,45,53,46],[53,47,53,48],[53,49,53,50],[50,41,50,42],[50,43,50,44],[50,45,50,46],[50,47,50,48],[50,49,50,50],[51,41,51,42],[51,43,51,44],[51,45,51,46],[51,47,51,48],[51,49,51,50],[58,41,58,42],[59,41,59,42],[60,41,60,42],[61,41,61,42],[62,41,62,42],[63,41,63,42],[52,41,52,42],[52,43,52,44],[52,45,52,46],[4,66,4,67],[4,68,4,69],[5,60,5,61],[5,62,5,63],[5,64,5,65],[5,66,5,67],[5,68,5,69],[2,60,2,61],[2,62,2,63],[2,64,2,65],[2,66,2,67],[2,68,2,69],[3,60,3,61],[3,62,3,63],[3,64,3,65],[3,66,3,67],[3,68,3,69],[9,60,9,61],[10,60,10,61],[11,60,11,61],[12,60,12,61],[13,60,13,61],[14,60,14,61],[4,60,4,61],[4,62,4,63],[4,64,4,65],[18,60,18,61],[18,62,18,63],[18,64,18,65],[18,66,18,67],[18,68,18,69],[19,60,19,61],[19,62,19,63],[19,64,19,65],[19,66,19,67],[19,68,19,69],[20,60,20,61],[20,62,20,63],[20,64,20,65],[20,66,20,67],[20,68,20,69],[21,60,21,61],[21,62,21,63],[21,64,21,65],[21,66,21,67],[21,68,21,69],[33,68,33,69],[34,60,34,61],[34,62,34,63],[34,64,34,65],[34,66,34,67],[34,68,34,69],[26,60,26,61],[27,60,27,61],[28,60,28,61],[29,60,29,61],[30,60,30,61],[31,60,31,61],[33,62,33,63],[33,64,33,65],[33,66,33,67],[35,60,35,61],[35,62,35,63],[35,64,35,65],[35,66,35,67],[35,68,35,69],[36,60,36,61],[36,62,36,63],[36,64,36,65],[36,66,36,67],[36,68,36,69],[42,60,42,61],[43,60,43,61],[44,60,44,61],[45,60,45,61],[46,60,46,61],[49,68,49,69],[37,60,37,61],[37,62,37,63],[37,64,37,65],[37,66,37,67],[37,68,37,69],[41,60,41,61],[52,66,52,67],[52,68,52,69],[53,60,53,61],[53,62,53,63],[53,64,53,65],[53,66,53,67],[53,68,53,69],[50,60,50,61],[50,62,50,63],[50,64,50,65],[50,66,50,67],[50,68,50,69],[51,60,51,61],[51,62,51,63],[51,64,51,65],[51,66,51,67],[51,68,51,69],[58,60,58,61],[59,60,59,61],[60,60,60,61],[61,60,61,61],[62,60,62,61],[63,60,63,61],[52,60,52,61],[52,62,52,63],[52,64,52,65],[2,79,2,80],[2,81,2,82],[2,83,2,84],[2,85,2,86],[2,87,2,88],[3,79,3,80],[3,81,3,82],[3,83,3,84],[3,85,3,86],[3,87,3,88],[4,79,4,80],[4,81,4,82],[4,83,4,84],[4,85,4,86],[4,87,4,88],[5,79,5,80],[5,81,5,82],[5,83,5,84],[5,85,5,86],[5,87,5,88],[17,87,17,88],[18,79,18,80],[18,81,18,82],[18,83,18,84],[18,85,18,86],[18,87,18,88],[9,79,9,80],[10,79,10,80],[11,79,11,80],[12,79,12,80],[13,79,13,80],[14,79,14,80],[17,85,17,86],[21,87,21,88],[26,79,26,80],[19,79,19,80],[19,81,19,82],[19,83,19,84],[19,85,19,86],[19,87,19,88],[20,79,20,80],[20,81,20,82],[20,83,20,84],[20,85,20,86],[20,87,20,88],[27,79,27,80],[28,79,28,80],[29,79,29,80],[30,79,30,80],[31,79,31,80],[21,79,21,80],[21,81,21,82],[21,83,21,84],[21,85,21,86]]}
[]
[null,"1. Divize - A.",null,{"$f":"C3","v":{"$error":"#REF!"}},null,{"$f":"C4","v":{"$error":"#REF!"}},null,{"$f":"C5","v":{"$error":"#REF!"}},null,{"$f":"C6","v":{"$error":"#REF!"}},null,"Sety","Body","Pořadí","Body",null,null,1,null,null,"3. Divize - A.",null,{"$f":"V3","v":{"$error":"#REF!"}},null,{"$f":"V4","v":{"$error":"#REF!"}},null,{"$f":"V5","v":{"$error":"#REF!"}},null,{"$f":"V6","v":{"$error":"#REF!"}},null,"Sety","Body","Pořadí","Body",null,null,1,null,null,"5. Divize - A.",null,null,null,null,null,null,null,null,null,"Sety","Body","Pořadí","Body",null,null,1,null,null,"7. Divize - A.",null,null,null,null,null,null,null,null,null,"Sety","Body","Pořadí",null,null,null,1,null,null,"9. Divize - A.",null,null,null,null,null,null,null,null,null,"Sety","Body","Pořadí"]
[null,null,{"$f":"#REF!","v":{"$error":"#REF!"}},null,null,null,null,null,null,null,null,null,null,null,null,null,null,null,null,null,null,{"$f":"#REF!","v":{"$error":"#REF!"}}]
[null,null,{"$f":"#REF!","v":{"$error":"#REF!"}},null,null,null,null,null,null,null,null,null,null,null,null,null,null,null,null,null,null,{"$f":"#REF!","v":{"$error":"#REF!"}}]
[null,null,{"$f":"#REF!","v":{"$error":"#REF!"}},null,null,null,null,null,null,null,null,null,null,null,null,null,null,null,null,null,null,{"$f":"#REF!","v":{"$error":"#REF!"}}]
[null,null,{"$f":"#REF!","v":{"$error":"#REF!"}},null,null,null,null,null,null,null,null,null,null,null,null,null,null,null,null,null,null,{"$f":"#REF!","v":{"$error":"#REF!"}}]
[]
[]
[null,null,"Pořadí zápasů",null,null,"první set",null,"druhý set",null,"třetí set",null," čtvrtý set",null,"pátý set",null,null,"výsledek",null,null,null,null,"Pořadí zápasů",null,null,"první set",null,"druhý set",null,"třetí set",null," čtvrtý set",null,"pátý set",null,null,"výsledek",null,null,null,null,"Pořadí zápasů",null,null,"první set",null,"druhý set",null,"třetí set",null," čtvrtý set",null,"pátý set",null,null,"výsledek",null,null,null,null,"Pořadí zápasů",null,null,"první set",null,"druhý set",null,"třetí set",null," čtvrtý set",null,"pátý set",null,null,"výsledek",null,null,null,null,"Pořadí zápasů",null,null,"první set",null,"druhý set",null,"třetí set",null," čtvrtý set",null,"pátý set",null,{"$f":"#REF!","v":{"$error":"#REF!"}},"výsledek"]
[]
[]
[]
[]
[]
[]
[]
[]
[null,"1. Divize - B.",null,{"$f":"C19","v":{"$error":"#REF!"}},null,{"$f":"C20","v":{"$error":"#REF!"}},null,{"$f":"C21","v":{"$error":"#REF!"}},null,{"$f":"C22","v":{"$error":"#REF!"}},null,"Sety","Body","Pořadí","Body",null,null,1,null,null,"3. Divize - B.",null,null,null,null,null,null,null,null,null,"Sety","Body","Pořadí","Body",null,null,1,null,null,"5. Divize - B.",null,null,null,null,null,null,null,null,null,"Sety","Body","Pořadí","Body",null,null,1,null,null,"7. Divize - B.",null,null,null,null,null,null,null,null,null,"Sety","Body","Pořadí",null,null,null,1,null,null,"9. Divize - B.",null,null,null,null,null,null,null,null,null,"Sety","Body","Pořadí"]
[null,null,{"$f":"#REF!","v":{"$error":"#REF!"}}]
[null,null,{"$f":"#REF!","v":{"$error":"#REF!"}}]
[null,null,{"$f":"#REF!","v":{"$error":"#REF!"}}]
[null,null,{"$f":"#REF!","v":{"$error":"#REF!"}}]
[]
[]
[]
[null,null,"Pořadí zápasů",null,null,"první set",null,"druhý set",null,"třetí set",null," čtvrtý set",null,"pátý set",null,null,"výsledek",null,null,null,null,"Pořadí zápasů",null,null,"první set",null,"druhý set",null,"třetí set",null," čtvrtý set",null,"pátý set",null,null,"výsledek",null,null,null,null,"Pořadí zápasů",null,null,"první set",null,"druhý set",null,"třetí set",null," čtvrtý set",null,"pátý set",null,null,"výsledek",null,null,null,null,"Pořadí zápasů",null,null,"první set",null,"druhý set",null,"třetí set",null," čtvrtý set",null,"pátý set",null,null,"výsledek",null,null,null,null,"Pořadí zápasů",null,null,"první set",null,"druhý set",null,"třetí set",null," čtvrtý set",null,"pátý set",null,{"$f":"#REF!","v":{"$error":"#REF!"}},"výsledek"]
[]
[]
[]
[]
[]
[]
[]
[null,{"$f":"#REF!","v":{"$error":"#REF!"}},null,{"$f":"#REF!","v":{"$error":"#REF!"}},null,{"$f":"#REF!","v":{"$error":"#REF!"}},null,{"$f":"#REF!","v":{"$error":"#REF!"}},null,{"$f":"#REF!","v":{"$error":"#REF!"}},null,"Sety",null,"Pořadí","Body",null,null,null,null,null,"4. Divize - A.",null,null,null,null,null,null,null,null,null,"Sety","Body","Pořadí","Body",null,null,null,null,null,"6. Divize - A.",null,null,null,null,null,null,null,null,null,"Sety","Body","Pořadí","Body",null,null,null,null,null,"8. Divize - A.",null,null,null,null,null,null,null,null,null,"Sety","Body","Pořadí",{"$f":"#REF!","v":{"$error":"#REF!"}}]
[null,null,{"$f":"#REF!","v":{"$error":"#REF!"}}]
[null,null,{"$f":"#REF!","v":{"$error":"#REF!"}}]
[null,null,{"$f":"#REF!","v":{"$error":"#REF!"}}]
[null,null,{"$f":"#REF!","v":{"$error":"#REF!"}}]
[]
[]
[null,null,"Pořadí zápasů",null,null,"první set",null,"druhý set",null,"třetí set",null," čtvrtý set",null,"pátý set",null,null,"výsledek",null,null,null,null,"Pořadí zápasů",null,null,"první set",null,"druhý set",null,"třetí set",null," čtvrtý set",null,"pátý set",null,null,"výsledek",null,null,null,null,"Pořadí zápasů",null,null,"první set",null,"druhý set",null,"třetí set",null," čtvrtý set",null,"pátý set",null,null,"výsledek",null,null,null,null,"Pořadí zápasů",null,null,"první set",null,"druhý set",null,"třetí set",null," čtvrtý set",null,"pátý set",null,null,"výsledek"]
[]
[]
[]
[]
[]
[]
[]
[]
[null,{"$f":"#REF!","v":{"$error":"#REF!"}},null,{"$f":"#REF!","v":{"$error":"#REF!"}},null,{"$f":"#REF!","v":{"$error":"#REF!"}},null,{"$f":"#REF!","v":{"$error":"#REF!"}},null,{"$f":"#REF!","v":{"$error":"#REF!"}},null,{"$f":"#REF!","v":{"$error":"#REF!"}},null,"Pořadí","Body",null,null,null,null,null,"4. Divize - B.",null,null,null,null,null,null,null,null,null,"Sety","Body","Pořadí","Body",null,null,null,null,null,"6. Divize - B.",null,{"$f":"AO51","v":{"$error":"#REF!"}},null,{"$f":"AO52","v":{"$error":"#REF!"}},null,{"$f":"AO53","v":{"$error":"#REF!"}},null,{"$f":"AO54","v":{"$error":"#REF!"}},null,"Sety","Body","Pořadí","Body",null,null,null,null,null,"8. Divize - B.",null,{"$f":"BH51","v":{"$error":"#REF!"}},null,{"$f":"BH52","v":{"$error":"#REF!"}},null,{"$f":"BH53","v":{"$error":"#REF!"}},null,{"$f":"BH54","v":{"$error":"#REF!"}},null,"Sety","Body","Pořadí",{"$f":"#REF!","v":{"$error":"#REF!"}}]
[null,null,{"$f":"#REF!","v":{"$error":"#REF!"}},null,null,null,null,null,null,null,null,null,null,null,null,null,null,null,null,null,null,null,null,null,null,null,null,null,null,null,null,null,null,null,null,null,null,null,null,null,{"$f":"#REF!","v":{"$error":"#REF!"}},null,null,null,null,null,null,null,null,null,null,null,null,null,null,null,null,null,null,{"$f":"#REF!","v":{"$error":"#REF!"}}]
[null,null,{"$f":"#REF!","v":{"$error":"#REF!"}},null,null,null,null,null,null,null,null,null,null,null,null,null,null,null,null,null,null,null,null,null,null,null,null,null,null,null,null,null,null,null,null,null,null,null,null,null,{"$f":"#REF!","v":{"$error":"#REF!"}},null,null,null,null,null,null,null,null,null,null,null,null,null,null,null,null,null,null,{"$f":"#REF!","v":{"$error":"#REF!"}}]
[null,null,{"$f":"#REF!","v":{"$error":"#REF!"}},null,null,null,null,null,null,null,null,null,null,null,null,null,null,null,null,null,null,null,null,null,null,null,null,null,null,null,null,null,null,null,null,null,null,null,null,null,{"$f":"#REF!","v":{"$error":"#REF!"}},null,null,null,null,null,null,null,null,null,null,null,null,null,null,null,null,null,null,{"$f":"#REF!","v":{"$error":"#REF!"}}]
[null,null,{"$f":"#REF!","v":{"$error":"#REF!"}},null,null,null,null,null,null,null,null,null,null,null,null,null,null,null,null,null,null,null,null,null,null,null,null,null,null,null,null,null,null,null,null,null,null,null,null,null,{"$f":"#REF!","v":{"$error":"#REF!"}},null,null,null,null,null,null,null,null,null,null,null,null,null,null,null,null,null,null,{"$f":"#REF!","v":{"$error":"#REF!"}}]
[null,null,null,{"$f":"#REF!","v":{"$error":"#REF!"}},{"$f":"#REF!","v":{"$error":"#REF!"}},{"$f":"#REF!","v":{"$error":"#REF!"}},{"$f":"#REF!","v":{"$error":"#REF!"}},{"$f":"#REF!","v":{"$error":"#REF!"}},{"$f":"#REF!","v":{"$error":"#REF!"}},{"$f":"#REF!","v":{"$error":"#REF!"}},{"$f":"#REF!","v":{"$error":"#REF!"}},{"$f":"#REF!","v":{"$error":"#REF!"}},{"$f":"#REF!","v":{"$error":"#REF!"}},{"$f":"#REF!","v":{"$error":"#REF!"}},{"$f":"#REF!","v":{"$error":"#REF!"}},null,null,null,null,null,null,null,{"$f":"#REF!","v":{"$error":"#REF!"}},{"$f":"#REF!","v":{"$error":"#REF!"}},{"$f":"#REF!","v":{"$error":"#REF!"}},{"$f":"#REF!","v":{"$error":"#REF!"}},{"$f":"#REF!","v":{"$error":"#REF!"}},{"$f":"#REF!","v":{"$error":"#REF!"}},{"$f":"#REF!","v":{"$error":"#REF!"}},{"$f":"#REF!","v":{"$error":"#REF!"}},{"$f":"#REF!","v":{"$error":"#REF!"}},{"$f":"#REF!","v":{"$error":"#REF!"}},{"$f":"#REF!","v":{"$error":"#REF!"}},{"$f":"#REF!","v":{"$error":"#REF!"}},null,null,null,null,null,null,null,{"$f":"#REF!","v":{"$error":"#REF!"}},{"$f":"#REF!","v":{"$error":"#REF!"}},{"$f":"#REF!","v":{"$error":"#REF!"}},{"$f":"#REF!","v":{"$error":"#REF!"}},{"$f":"#REF!","v":{"$error":"#REF!"}},{"$f":"#REF!","v":{"$error":"#REF!"}},{"$f":"#REF!","v":{"$error":"#REF!"}},{"$f":"#REF!","v":{"$error":"#REF!"}},{"$f":"#REF!","v":{"$error":"#REF!"}},{"$f":"#REF!","v":{"$error":"#REF!"}},{"$f":"#REF!","v":{"$error":"#REF!"}},{"$f":"#REF!","v":{"$error":"#REF!"}},null,null,null,null,null,null,null,{"$f":"#REF!","v":{"$error":"#REF!"}},{"$f":"#REF!","v":{"$error":"#REF!"}},{"$f":"#REF!","v":{"$error":"#REF!"}},{"$f":"#REF!","v":{"$error":"#REF!"}},{"$f":"#REF!","v":{"$error":"#REF!"}},{"$f":"#REF!","v":{"$error":"#REF!"}},{"$f":"#REF!","v":{"$error":"#REF!"}},{"$f":"#REF!","v":{"$error":"#REF!"}},{"$f":"#REF!","v":{"$error":"#REF!"}},{"$f":"#REF!","v":{"$error":"#REF!"}},{"$f":"#REF!","v":{"$error":"#REF!"}},{"$f":"#REF!","v":{"$error":"#REF!"}}]
[]
[]
[null,null,"Pořadí zápasů",null,null,"první set",null,"druhý set",null,"třetí set",null," čtvrtý set",null,"pátý set",null,null,"výsledek",null,null,null,null,"Pořadí zápasů",null,null,"první set",null,"druhý set",null,"třetí set",null," čtvrtý set",null,"pátý set",null,null,"výsledek",null,null,null,null,"Pořadí zápasů",null,null,"první set",null,"druhý set",null,"třetí set",null," čtvrtý set",null,"pátý set",null,null,"výsledek",null,null,null,null,"Pořadí zápasů",null,null,"první set",null,"druhý set",null,"třetí set",null," čtvrtý set",null,"pátý set",null,null,"výsledek"]
[null,null,null,null,null,null,null,null,null,null,null,null,null,null,null,null,null,null,null,null,null,null,null,null,null,null,null,null,null,null,null,null,null,null,null,null,null,null,null,null,{"$f":"#REF!","v":{"$error":"#REF!"}},{"$f":"#REF!","v":{"$error":"#REF!"}},null,null,null,null,null,null,null,null,null,null,null,null,null,null,null,null,null,{"$f":"#REF!","v":{"$error":"#REF!"}},{"$f":"#REF!","v":{"$error":"#REF!"}}]
[null,null,null,null,null,null,null,null,null,null,null,null,null,null,null,null,null,null,null,null,null,null,null,null,null,null,null,null,null,null,null,null,null,null,null,null,null,null,null,null,{"$f":"#REF!","v":{"$error":"#REF!"}},{"$f":"#REF!","v":{"$error":"#REF!"}},null,null,null,null,null,null,null,null,null,null,null,null,null,null,null,null,null,{"$f":"#REF!","v":{"$error":"#REF!"}},{"$f":"#REF!","v":{"$error":"#REF!"}}]
[null,null,null,null,null,null,null,null,null,null,null,null,null,null,null,null,null,null,null,null,null,null,null,null,null,null,null,null,null,null,null,null,null,null,null,null,null,null,null,null,{"$f":"#REF!","v":{"$error":"#REF!"}},{"$f":"#REF!","v":{"$error":"#REF!"}},null,null,null,null,null,null,null,null,null,null,null,null,null,null,null,null,null,{"$f":"#REF!","v":{"$error":"#REF!"}},{"$f":"#REF!","v":{"$error":"#REF!"}}]
[null,null,null,null,null,null,null,null,null,null,null,null,null,null,null,null,null,null,null,null,null,null,null,null,null,null,null,null,null,null,null,null,null,null,null,null,null,null,null,null,{"$f":"#REF!","v":{"$error":"#REF!"}},{"$f":"#REF!","v":{"$error":"#REF!"}},null,null,null,null,null,null,null,null,null,null,null,null,null,null,null,null,null,{"$f":"#REF!","v":{"$error":"#REF!"}},{"$f":"#REF!","v":{"$error":"#REF!"}}]
[null,null,null,null,null,null,null,null,null,null,null,null,null,null,null,null,null,null,null,null,null,null,null,null,null,null,null,null,null,null,null,null,null,null,null,null,null,null,null,null,{"$f":"#REF!","v":{"$error":"#REF!"}},{"$f":"#REF!","v":{"$error":"#REF!"}},null,null,null,null,null,null,null,null,null,null,null,null,null,null,null,null,null,{"$f":"#REF!","v":{"$error":"#REF!"}},{"$f":"#REF!","v":{"$error":"#REF!"}}]
[null,null,null,null,null,null,null,null,null,null,null,null,null,null,null,null,null,null,null,null,null,null,null,null,null,null,null,null,null,null,null,null,null,null,null,null,null,null,null,null,{"$f":"#REF!","v":{"$error":"#REF!"}},{"$f":"#REF!","v":{"$error":"#REF!"}},null,null,null,null,null,null,null,null,null,null,null,null,null,null,null,null,null,{"$f":"#REF!","v":{"$error":"#REF!"}},{"$f":"#REF!","v":{"$error":"#REF!"}}]

{"sheet":"Conf","index":13,"n_rows":20,"n_cols":9,"rows_kept":20,"cut":false,"hidden":false,"merged":[[0,2,0,3]]}
[null,null,"Věk"]
["Věk.kateg.","Kategorie","Od","Do",null,"Ročník","Let","Kategorie",2024]
["U7","Mlad.přípravka",5,7,null,{"$f":"+I2-4","v":2020},{"$f":"$I$2-F3","v":4},"U7"]
["U9","Starší přípravka",8,9,null,{"$f":"+F3-1","v":2019},{"$f":"$I$2-F4","v":5},"U7"]
["U11","Nejmladší žáci",10,11,null,{"$f":"+F4-1","v":2018},6,"U7"]
["U13","Mladší žáci",12,13,null,2017,7,"U7"]
["U15","Starší žáci",14,15,null,2016,8,"U9"]
["U17","Mladší dorost",16,17,null,2015,9,"U9"]
["U19","Starší dorost",18,19,null,2014,10,"U11"]
[null,null,null,null,null,2013,11,"U11"]
[null,null,null,null,null,2012,12,"U13"]
[null,null,null,null,null,2011,13,"U13"]
[null,null,null,null,null,2010,14,"U15"]
[null,null,null,null,null,2009,15,"U15"]
[null,null,null,null,null,2008,16,"U18"]
[null,null,null,null,null,2007,17,"U18"]
[null,null,null,null,null,2006,18,"U18"]
[null,null,null,null,null,2005,19,"U19"]
[null,null,null,null,null,2004,20,"Juniori"]
[null,null,null,null,null,2003,21,"Juniori"]

{"sheet":"opMuziCtyrh","index":14,"n_rows":114,"n_cols":16,"rows_kept":114,"cut":false,"hidden":true,"merged":[]}
["pritomen","Hráč zkr.","Hráč","Oddíl","Poradi","žebricek","Hráč zkr.","Hráč","Oddíl","Poradi","žebricek","Hráč zkr.","Hráč","Oddíl","Poradi","žebricek"]
["x",{"$f":"getPlayerName(C2,D2)","v":"Rudolf T (Úho)"},"Rudolf Tomáš","Úholičky",979,11,{"$f":"getPlayerName(H2,I2)","v":"Vojtěch D (Úho)"},"Vojtěch Dušan","Úholičky",974,21,{"$f":"getPlayerName(M2,N2)","v":"Rudolf,Vojtěch (Úho,Úho)"},{"$f":"CONCATENATE(C2,\",\",H2)","v":"Rudolf Tomáš,Vojtěch Dušan"},{"$f":"CONCATENATE(D2,\",\",I2)","v":"Úholičky,Úholičky"},{"$f":"E2+J2","v":1953},{"$f":"F2+K2","v":32}]
["x","Frýdl M (Rud)","Frýdl Miloš","Rudná",997,1,{"$f":"getPlayerName(H3,I3)","v":"Mühlhauser Z (Rud)"},"Mühlhauser Zdeněk","Rudná",968,21,"Frýdl,Mühlhauser (Rud,Rud)","Frýdl Miloš,Mühlhauser Zdeněk","Rudná,Rudná",1965,22]
["x","Soukup V (Oře)","Soukup Vojtěch","Ořech",941,51,"Poncar K (Oře)","Poncar Karel","Ořech",937,51,{"$f":"getPlayerName(M4,N4)","v":"Soukup,Poncar (Oře,Oře)"},{"$f":"CONCATENATE(C4,\",\",H4)","v":"Soukup Vojtěch,Poncar Karel"},{"$f":"CONCATENATE(D4,\",\",I4)","v":"Ořech,Ořech"},{"$f":"E4+J4","v":1878},{"$f":"F4+K4","v":102}]
["x","Redlich M (Oře)","Redlich Michal","Ořech",967,21,"Škoda J (Oře)","Škoda Jiří","Ořech",962,31,"Redlich,Škoda (Oře,Oře)","Redlich Michal,Škoda Jiří","Ořech,Ořech",1929,52]
["x","Krasničan J (Oře)","Krasničan Jaroslav","Ořech",964,30.5,"Heřman M (Oře)","Heřman Miroslav","Ořech",847,131,"Krasničan,Heřman (Oře,Oře)","Krasničan Jaroslav,Heřman Miroslav","Ořech,Ořech",1811,161.5]
["x","Skřivánek J (Oře)","Skřivánek Jiří","Ořech",960,31,"Plecitý L (Rud)","Plecitý Lukáš","Rudná",965,21,"Skřivánek,Plecitý (Oře,Rud)","Skřivánek Jiří,Plecitý Lukáš","Ořech,Rudná",1925,52]
["x","Novák M (Ves)","Novák Michal","Vestec",975,11,"Novák O (Ves)","Novák Ondřej","Vestec",971,21,"Novák,Novák (Ves,Ves)","Novák Michal,Novák Ondřej","Vestec,Vestec",1946,32]
["x","Eibich J (Roz)","Eibich Jan","Roztoky",950,41,"Šturm V (Roz)","Šturm Vojtěch","Roztoky",914,71,"Eibich,Šturm (Roz,Roz)","Eibich Jan,Šturm Vojtěch","Roztoky,Roztoky",1864,112]
["x","Vodňanský M (Roz)","Vodňanský Martin","Roztoky",961,31,"Antoš V (Roz)","Antoš Vojtěch","Roztoky",942,51,"Vodňanský,Antoš (Roz,Roz)","Vodňanský Martin,Antoš Vojtěch","Roztoky,Roztoky",1903,82]
["x","Barcal P (Rud)","Barcal Petr","Rudná",993,1,"Sedmík Z (Rud)","Sedmík Zdeněk","Rudná",939,51,"Barcal,Sedmík (Rud,Rud)","Barcal Petr,Sedmík Zdeněk","Rudná,Rudná",1932,52]
["x","Vávra A (Oře)","Vávra Aleš","Ořech",945,41,"Zacharda A (Oře)","Zacharda Aleš","Ořech",918,71,"Vávra,Zacharda (Oře,Oře)","Vávra Aleš,Zacharda Aleš","Ořech,Ořech",1863,112]
["x","Pavlín J (Oře)","Pavlín Jiří","Ořech",903,81,"Ducháčková R (Úho)","Ducháčková Radka","Úholičky",885,101,"Pavlín,Ducháčková (Oře,Úho)","Pavlín Jiří,Ducháčková Radka","Ořech,Úholičky",1788,182]
[null,null,null,null,null,null,null,null,null,null,null,{"$error":"#VALUE!"},",",",",0,0]
[null,null,null,null,null,null,null,null,null,null,null,{"$error":"#VALUE!"},",",",",0,0]
[null,null,null,null,null,null,null,null,null,null,null,{"$error":"#VALUE!"},",",",",0,0]
[null,null,null,null,null,null,null,null,null,null,null,{"$error":"#VALUE!"},",",",",0,0]
[null,null,null,null,null,null,null,null,null,null,null,{"$error":"#VALUE!"},",",",",0,0]
[null,null,null,null,null,null,null,null,null,null,null,{"$error":"#VALUE!"},",",",",0,0]
[null,null,null,null,null,null,null,null,null,null,null,{"$error":"#VALUE!"},",",",",0,0]
[null,null,null,null,null,null,null,null,null,null,null,{"$error":"#VALUE!"},",",",",0,0]
[null,null,null,null,null,null,null,null,null,null,null,{"$error":"#VALUE!"},",",",",0,0]
[null,null,null,null,null,null,null,null,null,null,null,{"$error":"#VALUE!"},",",",",0,0]
[null,null,null,null,null,null,null,null,null,null,null,{"$error":"#VALUE!"},",",",",0,0]
[null,null,null,null,null,null,null,null,null,null,null,{"$error":"#VALUE!"},",",",",0,0]
[null,null,null,null,null,null,null,null,null,null,null,{"$error":"#VALUE!"},",",",",0,0]
[null,null,null,null,null,null,null,null,null,null,null,{"$error":"#VALUE!"},",",",",0,0]
[null,null,null,null,null,null,null,null,null,null,null,{"$error":"#VALUE!"},",",",",0,0]
[null,null,null,null,null,null,null,null,null,null,null,{"$error":"#VALUE!"},",",",",0,0]
[null,null,null,null,null,null,null,null,null,null,null,{"$error":"#VALUE!"},",",",",0,0]
[null,null,null,null,null,null,null,null,null,null,null,{"$error":"#VALUE!"},",",",",0,0]
[null,null,null,null,null,null,null,null,null,null,null,{"$error":"#VALUE!"},",",",",0,0]
[null,null,null,null,null,null,null,null,null,null,null,{"$error":"#VALUE!"},",",",",0,0]
[null,null,null,null,null,null,null,null,null,null,null,{"$error":"#VALUE!"},",",",",0,0]
[null,null,null,null,null,null,null,null,null,null,null,{"$error":"#VALUE!"},",",",",0,0]
[null,null,null,null,null,null,null,null,null,null,null,{"$error":"#VALUE!"},",",",",0,0]
[null,null,null,null,null,null,null,null,null,null,null,{"$error":"#VALUE!"},",",",",0,0]
[null,null,null,null,null,null,null,null,null,null,null,{"$error":"#VALUE!"},",",",",0,0]
[null,null,null,null,null,null,null,null,null,null,null,{"$error":"#VALUE!"},",",",",0,0]
[null,null,null,null,null,null,null,null,null,null,null,{"$error":"#VALUE!"},",",",",0,0]
[null,null,null,null,null,null,null,null,null,null,null,{"$error":"#VALUE!"},",",",",0,0]
[null,null,null,null,null,null,null,null,null,null,null,{"$error":"#VALUE!"},",",",",0,0]
[null,null,null,null,null,null,null,null,null,null,null,{"$error":"#VALUE!"},",",",",0,0]
[null,null,null,null,null,null,null,null,null,null,null,{"$error":"#VALUE!"},",",",",0,0]
[null,null,null,null,null,null,null,null,null,null,null,{"$error":"#VALUE!"},",",",",0,0]
[null,null,null,null,null,null,null,null,null,null,null,{"$error":"#VALUE!"},",",",",0,0]
[null,null,null,null,null,null,null,null,null,null,null,{"$error":"#VALUE!"},",",",",0,0]
[null,null,null,null,null,null,null,null,null,null,null,{"$error":"#VALUE!"},",",",",0,0]
[null,null,null,null,null,null,null,null,null,null,null,{"$error":"#VALUE!"},",",",",0,0]
[null,null,null,null,null,null,null,null,null,null,null,{"$error":"#VALUE!"},",",",",0,0]
[null,null,null,null,null,null,null,null,null,null,null,{"$error":"#VALUE!"},",",",",0,0]
[null,null,null,null,null,null,null,null,null,null,null,{"$error":"#VALUE!"},",",",",0,0]
[null,null,null,null,null,null,null,null,null,null,null,{"$error":"#VALUE!"},",",",",0,0]
[null,null,null,null,null,null,null,null,null,null,null,{"$error":"#VALUE!"},",",",",0,0]
[null,null,null,null,null,null,null,null,null,null,null,{"$error":"#VALUE!"},",",",",0,0]
[null,null,null,null,null,null,null,null,null,null,null,{"$error":"#VALUE!"},",",",",0,0]
[null,null,null,null,null,null,null,null,null,null,null,{"$error":"#VALUE!"},",",",",0,0]
[null,null,null,null,null,null,null,null,null,null,null,{"$error":"#VALUE!"},",",",",0,0]
[null,null,null,null,null,null,null,null,null,null,null,{"$error":"#VALUE!"},",",",",0,0]
[null,null,null,null,null,null,null,null,null,null,null,{"$error":"#VALUE!"},",",",",0,0]
[null,null,null,null,null,null,null,null,null,null,null,{"$error":"#VALUE!"},",",",",0,0]
[null,null,null,null,null,null,null,null,null,null,null,{"$error":"#VALUE!"},",",",",0,0]
[null,null,null,null,null,null,null,null,null,null,null,{"$error":"#VALUE!"},",",",",0,0]
[null,null,null,null,null,null,null,null,null,null,null,{"$error":"#VALUE!"},",",",",0,0]
[null,null,null,null,null,null,null,null,null,null,null,{"$error":"#VALUE!"},",",",",0,0]
[null,null,null,null,null,null,null,null,null,null,null,{"$error":"#VALUE!"},",",",",0,0]
[null,null,null,null,null,null,null,null,null,null,null,{"$f":"getPlayerName(M67,N67)","v":{"$error":"#VALUE!"}},{"$f":"CONCATENATE(C67,\",\",H67)","v":","},{"$f":"CONCATENATE(D67,\",\",I67)","v":","},{"$f":"E67+J67","v":0},{"$f":"F67+K67","v":0}]
[null,null,null,null,null,null,null,null,null,null,null,{"$error":"#VALUE!"},",",",",0,0]
[null,null,null,null,null,null,null,null,null,null,null,{"$error":"#VALUE!"},",",",",0,0]
[null,null,null,null,null,null,null,null,null,null,null,{"$error":"#VALUE!"},",",",",0,0]
[null,null,null,null,null,null,null,null,null,null,null,{"$error":"#VALUE!"},",",",",0,0]
[null,null,null,null,null,null,null,null,null,null,null,{"$error":"#VALUE!"},",",",",0,0]
[null,null,null,null,null,null,null,null,null,null,null,{"$error":"#VALUE!"},",",",",0,0]
[null,null,null,null,null,null,null,null,null,null,null,{"$error":"#VALUE!"},",",",",0,0]
[null,null,null,null,null,null,null,null,null,null,null,{"$error":"#VALUE!"},",",",",0,0]
[null,null,null,null,null,null,null,null,null,null,null,{"$error":"#VALUE!"},",",",",0,0]
[null,null,null,null,null,null,null,null,null,null,null,{"$error":"#VALUE!"},",",",",0,0]
[null,null,null,null,null,null,null,null,null,null,null,{"$error":"#VALUE!"},",",",",0,0]
[null,null,null,null,null,null,null,null,null,null,null,{"$error":"#VALUE!"},",",",",0,0]
[null,null,null,null,null,null,null,null,null,null,null,{"$error":"#VALUE!"},",",",",0,0]
[null,null,null,null,null,null,null,null,null,null,null,{"$error":"#VALUE!"},",",",",0,0]
[null,null,null,null,null,null,null,null,null,null,null,{"$error":"#VALUE!"},",",",",0,0]
[null,null,null,null,null,null,null,null,null,null,null,{"$error":"#VALUE!"},",",",",0,0]
[null,null,null,null,null,null,null,null,null,null,null,{"$error":"#VALUE!"},",",",",0,0]
[null,null,null,null,null,null,null,null,null,null,null,{"$error":"#VALUE!"},",",",",0,0]
[null,null,null,null,null,null,null,null,null,null,null,{"$error":"#VALUE!"},",",",",0,0]
[null,null,null,null,null,null,null,null,null,null,null,{"$error":"#VALUE!"},",",",",0,0]
[null,null,null,null,null,null,null,null,null,null,null,{"$error":"#VALUE!"},",",",",0,0]
[null,null,null,null,null,null,null,null,null,null,null,{"$error":"#VALUE!"},",",",",0,0]
[null,null,null,null,null,null,null,null,null,null,null,{"$error":"#VALUE!"},",",",",0,0]
[null,null,null,null,null,null,null,null,null,null,null,{"$error":"#VALUE!"},",",",",0,0]
[null,null,null,null,null,null,null,null,null,null,null,{"$error":"#VALUE!"},",",",",0,0]
[null,null,null,null,null,null,null,null,null,null,null,{"$error":"#VALUE!"},",",",",0,0]
[null,null,null,null,null,null,null,null,null,null,null,{"$error":"#VALUE!"},",",",",0,0]
[null,null,null,null,null,null,null,null,null,null,null,{"$error":"#VALUE!"},",",",",0,0]
[null,null,null,null,null,null,null,null,null,null,null,{"$error":"#VALUE!"},",",",",0,0]
[null,null,null,null,null,null,null,null,null,null,null,{"$error":"#VALUE!"},",",",",0,0]
[null,null,null,null,null,null,null,null,null,null,null,{"$error":"#VALUE!"},",",",",0,0]
[null,null,null,null,null,null,null,null,null,null,null,{"$error":"#VALUE!"},",",",",0,0]
[null,null,null,null,null,null,null,null,null,null,null,{"$error":"#VALUE!"},",",",",0,0]
[null,null,null,null,null,null,null,null,null,null,null,{"$error":"#VALUE!"},",",",",0,0]
[null,null,null,null,null,null,null,null,null,null,null,{"$error":"#VALUE!"},",",",",0,0]
[null,null,null,null,null,null,null,null,null,null,null,{"$error":"#VALUE!"},",",",",0,0]
[null,null,null,null,null,null,null,null,null,null,null,{"$error":"#VALUE!"},",",",",0,0]
[null,null,null,null,null,null,null,null,null,null,null,{"$error":"#VALUE!"},",",",",0,0]
[null,null,null,null,null,null,null,null,null,null,null,{"$error":"#VALUE!"},",",",",0,0]
[null,null,null,null,null,null,null,null,null,null,null,{"$error":"#VALUE!"},",",",",0,0]
[null,null,null,null,null,null,null,null,null,null,null,{"$error":"#VALUE!"},",",",",0,0]
[null,null,null,null,null,null,null,null,null,null,null,{"$error":"#VALUE!"},",",",",0,0]
[null,null,null,null,null,null,null,null,null,null,null,{"$error":"#VALUE!"},",",",",0,0]
[null,null,null,null,null,null,null,null,null,null,null,{"$error":"#VALUE!"},",",",",0,0]
[null,null,null,null,null,null,null,null,null,null,null,{"$error":"#VALUE!"},",",",",0,0]
[null,null,null,null,null,null,null,null,null,null,null,{"$error":"#VALUE!"},",",",",0,0]
[null,null,null,null,null,null,null,null,null,null,null,{"$error":"#VALUE!"},",",",",0,0]

{"sheet":"vychozi","index":15,"n_rows":68,"n_cols":17,"rows_kept":68,"cut":false,"hidden":false,"merged":[]}
["Hráč zkr.","Divize","Přítomen","Právo startu","Sestup","Hráč","Oddíl","Narozen","Kategorie","kateg.","Před. rok","Divize","Výchozí","Neucast","pozice","Aktual","Pomocny"]
[{"$f":"IFERROR(CONCATENATE(LEFT(F2,FIND(\" \",F2)+4),\". \",\"(\",MID(G2,1,3),\")\"),\"\")","v":"Franěk Maty. (Čer)"},null,null,null,null,"Franěk Matyáš","Černošice",2008,{"$f":"VLOOKUP(H2,Conf!F:H,3,0)","v":"U18"},"hráč",1,{"$f":"CONCATENATE(\"D\",INT((ROW()-2)/8)+1,\"-\",MOD(ROW()-2,8)+1)","v":"D1-1"},2000,{"$f":"-getSubstractionPointKoeficient()*(COUNTA(INDIRECT(\"Q1:AX1\"))-1-COUNT($Q2:$AQ2))","v":0},{"$f":"ROW(A2)-1","v":1},{"$f":"IF(COUNTA(INDIRECT(\"Q1:AX1\"))<2,M2,IF(ISERR(LARGE(Q2:AQ2,1)),IF(M2>0,M2+N2,0),LARGE(Q2:AQ2,1)))+IF(COUNTA(INDIRECT(\"Q1:AX1\"))<3,0,IF(ISERR(LARGE(Q2:AQ2,2)),IF(M2>0,M2+N2,0),LARGE(Q2:AQ2,2)))+IF(COUNTA(INDIRECT(\"Q1:AX1\"))<4,0,IF(ISERR(LARGE(Q2:AQ2,3)),IF(M2>0,M2+N2,0),LARGE(Q2:AQ2,3)))+IF(COUNTA(INDIRECT(\"Q1:AX1\"))<5,0,IF(ISERR(LARGE(Q2:AQ2,4)),IF(M2>0,M2+N2,0),LARGE(Q2:AQ2,4)))+IF(ISERR(LARGE(Q2:AQ2,5)),0,LARGE(Q2:AQ2,5))/10+IF(ISERR(LARGE(Q2:AQ2,6)),0,LARGE(Q2:AQ2,6))/20","v":2000}]
["Hlavenka Joel. (Čer)",null,null,null,null,"Hlavenka Joel Mathias","Černošice",2007,{"$f":"VLOOKUP(H3,Conf!F:H,3,0)","v":"U18"},"hráč",2,"D1-2",1983,0,2,1983]
["Ducháček Petr. (Úho)",null,null,null,null,"Ducháček Petr","Úholičky",2009,{"$f":"VLOOKUP(H4,Conf!F:H,3,0)","v":"U15"},"hráč",4,"D1-3",1966,0,3,1966]
["Hron Maty. (Čer)",null,null,null,null,"Hron Matyáš","Černošice",2009,{"$f":"VLOOKUP(H5,Conf!F:H,3,0)","v":"U15"},"hráč",5,"D1-4",1950,0,4,1950]
["Knotek Mart. (Dav)",null,null,null,null,"Knotek Martin","Davle",2008,{"$f":"VLOOKUP(H6,Conf!F:H,3,0)","v":"U18"},"hráč",6,"D1-5",1934,0,5,1934]
["Hlaváček Dani. (Čer)",null,null,null,null,"Hlaváček Daniel","Černošice",2009,{"$f":"VLOOKUP(H7,Conf!F:H,3,0)","v":"U15"},"hráč",7,"D1-6",1918,0,6,1918]
["Drašar Jaku. (Mní)",null,null,null,null,"Drašar Jakub","Mníšek",2009,{"$f":"VLOOKUP(H8,Conf!F:H,3,0)","v":"U15"},"hráč",8,"D1-7",1902,0,7,1902]
["Yosypenko Mich. (Úho)",null,null,null,null,"Yosypenko Michal","Úholičky",2008,{"$f":"VLOOKUP(H9,Conf!F:H,3,0)","v":"U18"},"hráč",9,"D1-8",1886,0,8,1886]
["Boháč Anto. (Lib)",null,null,null,null,"Boháč Antonín","Libčice",2008,{"$f":"VLOOKUP(H10,Conf!F:H,3,0)","v":"U18"},"hráč",10,"D2-1",1870,0,9,1870]
["Dostál Ondř. (Lib)",null,null,null,null,"Dostál Ondřej","Libčice",2009,{"$f":"VLOOKUP(H11,Conf!F:H,3,0)","v":"U15"},"hráč",11,"D2-2",1853,0,10,1853]
["Kameník Adam. (Mní)",null,null,null,null,"Kameník Adam","Mníšek",2010,{"$f":"VLOOKUP(H12,Conf!F:H,3,0)","v":"U15"},"hráč",12,"D2-3",1836,0,11,1836]
["Jurenka Davi. (Rud)",null,null,null,null,"Jurenka David","Rudná",2007,{"$f":"VLOOKUP(H13,Conf!F:H,3,0)","v":"U18"},"hráč",14,"D2-4",1820,0,12,1820]
["Vybíral Václ. (Dav)",null,null,null,null,"Vybíral Václav","Davle",2010,{"$f":"VLOOKUP(H14,Conf!F:H,3,0)","v":"U15"},"hráč",15,"D2-5",1804,0,13,1804]
["Břečková Anet. (Úho)",null,null,null,null,"Břečková Aneta","Úholičky",2008,{"$f":"VLOOKUP(H15,Conf!F:H,3,0)","v":"U18"},"hráč",16,"D2-6",1788,0,14,1788]
["Frinta Maty. (Mní)",null,null,null,null,"Frinta Matyáš","Mníšek",2009,{"$f":"VLOOKUP(H16,Conf!F:H,3,0)","v":"U15"},"hráč",17,"D2-7",1772,0,15,1772]
["Jesenský Ján. (Mní)",null,null,null,null,"Jesenský Ján","Mníšek",2010,{"$f":"VLOOKUP(H17,Conf!F:H,3,0)","v":"U15"},"hráč",18,"D2-8",1756,0,16,1756]
["Prokůpek Jiří. (Dav)",null,null,null,null,"Prokůpek Jiří","Davle",2009,{"$f":"VLOOKUP(H18,Conf!F:H,3,0)","v":"U15"},"hráč",20,"D3-1",1740,0,17,1740]
["Hlavenka Eli . (Čer)",null,null,null,null,"Hlavenka Eli Theodor","Černošice",2010,{"$f":"VLOOKUP(H19,Conf!F:H,3,0)","v":"U15"},"hráč",21,"D3-2",1723,0,18,1723]
["Lundák Pave. (Dav)",null,null,null,null,"Lundák Pavel","Davle",2011,{"$f":"VLOOKUP(H20,Conf!F:H,3,0)","v":"U13"},"hráč",22,"D3-3",1706,0,19,1706]
["Dostálová Anet. (Lib)",null,null,null,null,"Dostálová Aneta","Libčice",2006,{"$f":"VLOOKUP(H21,Conf!F:H,3,0)","v":"U18"},"hráč",23,"D3-4",1690,0,20,1690]
["Chromych Jan. (Dav)",null,null,null,null,"Chromych Jan","Davle",2006,{"$f":"VLOOKUP(H22,Conf!F:H,3,0)","v":"U18"},"hráč",24,"D3-5",1674,0,21,1674]
["Sazimová Adél. (Úho)",null,null,null,null,"Sazimová Adéla","Úholičky",2008,{"$f":"VLOOKUP(H23,Conf!F:H,3,0)","v":"U18"},"hráč",25,"D3-6",1658,0,22,1658]
["Kuliš Davi. (Čer)",null,null,null,null,"Kuliš David","Černošice",2007,{"$f":"VLOOKUP(H24,Conf!F:H,3,0)","v":"U18"},"hráč",27,"D3-7",1642,0,23,1642]
["Valo Václ. (Úho)",null,null,null,null,"Valo Václav","Úholičky",2009,{"$f":"VLOOKUP(H25,Conf!F:H,3,0)","v":"U15"},"hráč",28,"D3-8",1626,0,24,1626]
["Lacina Thom. (Mní)",null,null,null,null,"Lacina Thomas","Mníšek",2012,{"$f":"VLOOKUP(H26,Conf!F:H,3,0)","v":"U13"},"hráč",29,"D4-1",1610,0,25,1610]
["Fiala Tobi. (Oře)",null,null,null,null,"Fiala Tobiáš","Ořech",2010,{"$f":"VLOOKUP(H27,Conf!F:H,3,0)","v":"U15"},"hráč",30,"D4-2",1593,0,26,1593]
["Kunc Luká. (Úho)",null,null,null,null,"Kunc Lukáš","Úholičky",2008,{"$f":"VLOOKUP(H28,Conf!F:H,3,0)","v":"U18"},"hráč",31,"D4-3",1576,0,27,1576]
["Petříková Joha. (Rud)",null,null,null,null,"Petříková Johana","Rudná",2013,{"$f":"VLOOKUP(H29,Conf!F:H,3,0)","v":"U11"},"hráč",33,"D4-4",1560,0,28,1560]
["Nguyen Tuan. (Mní)",null,null,null,null,"Nguyen Tuan Tu","Mníšek",2012,{"$f":"VLOOKUP(H30,Conf!F:H,3,0)","v":"U13"},"hráč",35,"D4-5",1544,0,29,1544]
["Juan Tiag. (Rud)",null,null,null,null,"Juan Tiago","Rudná",2014,{"$f":"VLOOKUP(H31,Conf!F:H,3,0)","v":"U11"},"hráč",36,"D4-6",1528,0,30,1528]
["Bosch Maya. (Rud)",null,null,null,null,"Bosch Maya","Rudná",2008,{"$f":"VLOOKUP(H32,Conf!F:H,3,0)","v":"U18"},"hráč",37,"D4-7",1512,0,31,1512]
["Klika Jaku. (Rud)",null,null,null,null,"Klika Jakub","Rudná",2009,{"$f":"VLOOKUP(H33,Conf!F:H,3,0)","v":"U15"},"hráč",41,"D4-8",1496,0,32,1496]
[{"$f":"IFERROR(CONCATENATE(LEFT(F34,FIND(\" \",F34)+4),\". \",\"(\",MID(G34,1,3),\")\"),\"\")","v":"Kabátník Ondr. (Oře)"},null,null,null,null,"Kabátník Ondra","Ořech",2010,{"$f":"VLOOKUP(H34,Conf!F:H,3,0)","v":"U15"},"hráč",42,{"$f":"CONCATENATE(\"D\",INT((ROW()-2)/8)+1,\"-\",MOD(ROW()-2,8)+1)","v":"D5-1"},1480,{"$f":"-getSubstractionPointKoeficient()*(COUNTA(INDIRECT(\"Q1:AX1\"))-1-COUNT($Q34:$AQ34))","v":0},{"$f":"ROW(A34)-1","v":33},{"$f":"IF(COUNTA(INDIRECT(\"Q1:AX1\"))<2,M34,IF(ISERR(LARGE(Q34:AQ34,1)),IF(M34>0,M34+N34,0),LARGE(Q34:AQ34,1)))+IF(COUNTA(INDIRECT(\"Q1:AX1\"))<3,0,IF(ISERR(LARGE(Q34:AQ34,2)),IF(M34>0,M34+N34,0),LARGE(Q34:AQ34,2)))+IF(COUNTA(INDIRECT(\"Q1:AX1\"))<4,0,IF(ISERR(LARGE(Q34:AQ34,3)),IF(M34>0,M34+N34,0),LARGE(Q34:AQ34,3)))+IF(COUNTA(INDIRECT(\"Q1:AX1\"))<5,0,IF(ISERR(LARGE(Q34:AQ34,4)),IF(M34>0,M34+N34,0),LARGE(Q34:AQ34,4)))+IF(ISERR(LARGE(Q34:AQ34,5)),0,LARGE(Q34:AQ34,5))/10+IF(ISERR(LARGE(Q34:AQ34,6)),0,LARGE(Q34:AQ34,6))/20","v":1480}]
["Ducháček Mich. (Úho)",null,null,null,null,"Ducháček Michal","Úholičky",2013,{"$f":"VLOOKUP(H35,Conf!F:H,3,0)","v":"U11"},"hráč",43,"D5-2",1463,0,34,1463]
["Olexa Jaku. (Rud)",null,null,null,null,"Olexa Jakub","Rudná",2011,{"$f":"VLOOKUP(H36,Conf!F:H,3,0)","v":"U13"},"hráč",44,"D5-3",1446,0,35,1446]
["Frýdlová Tere. (Rud)",null,null,null,null,"Frýdlová Tereza","Rudná",2013,{"$f":"VLOOKUP(H37,Conf!F:H,3,0)","v":"U11"},"hráč",45,"D5-4",1430,0,36,1430]
["Hošek Ondř. (Mní)",null,null,null,null,"Hošek Ondřej","Mníšek",2012,{"$f":"VLOOKUP(H38,Conf!F:H,3,0)","v":"U13"},"hráč",46,"D5-5",1414,0,37,1414]
["Andrlík Dali. (Oře)",null,null,null,null,"Andrlík Dalibor","Ořech",2010,{"$f":"VLOOKUP(H39,Conf!F:H,3,0)","v":"U15"},"hráč",48,"D5-6",1398,0,38,1398]
["Fajt Jaku. (Čer)",null,null,null,null,"Fajt Jakub","Černošice",2009,{"$f":"VLOOKUP(H40,Conf!F:H,3,0)","v":"U15"},"hráč",49,"D5-7",1382,0,39,1382]
["Stára Jaku. (Úho)",null,null,null,null,"Stára Jakub","Úholičky",2008,{"$f":"VLOOKUP(H41,Conf!F:H,3,0)","v":"U18"},"hráč",50,"D5-8",1366,0,40,1366]
["Wimmer Víte. (Rud)",null,null,null,null,"Wimmer Vítek","Rudná",2012,{"$f":"VLOOKUP(H42,Conf!F:H,3,0)","v":"U13"},"hráč",51,"D6-1",1350,0,41,1350]
["Horáčková Anež. (Oře)",null,null,null,null,"Horáčková Anežka","Ořech",2009,{"$f":"VLOOKUP(H43,Conf!F:H,3,0)","v":"U15"},"člen",52,"D6-2",1333,0,42,1333]
["Adlof Luká. (Úho)",null,null,null,null,"Adlof Lukáš","Úholičky",2007,{"$f":"VLOOKUP(H44,Conf!F:H,3,0)","v":"U18"},"hráč",53,"D6-3",1316,0,43,1316]
["Framberk Miku. (Lib)",null,null,null,null,"Framberk Mikuláš","Libčice",2013,{"$f":"VLOOKUP(H45,Conf!F:H,3,0)","v":"U11"},"hráč",54,"D6-4",1300,0,44,1300]
["Tobolář Jind. (Lib)",null,null,null,null,"Tobolář Jindřich","Libčice",2009,{"$f":"VLOOKUP(H46,Conf!F:H,3,0)","v":"U15"},"hráč",55,"D6-5",1284,0,45,1284]
["Feitz Fran. (Úho)",null,null,null,null,"Feitz František","Úholičky",2008,{"$f":"VLOOKUP(H47,Conf!F:H,3,0)","v":"U18"},"hráč",56,"D6-6",1268,0,46,1268]
["Špaček Matě. (Oře)",null,null,null,null,"Špaček Matěj","Ořech",2010,{"$f":"VLOOKUP(H48,Conf!F:H,3,0)","v":"U15"},"hráč",57,"D6-7",1252,0,47,1252]
["Juda Fran. (Lib)",null,null,null,null,"Juda František","Libčice",2006,{"$f":"VLOOKUP(H49,Conf!F:H,3,0)","v":"U18"},"hráč",58,"D6-8",1236,0,48,1236]
["Šulc Adam. (Oře)",null,null,null,null,"Šulc Adam","Ořech",2009,{"$f":"VLOOKUP(H50,Conf!F:H,3,0)","v":"U15"},"hráč",60,"D7-1",1220,0,49,1220]
["Patras Maty. (Lib)",null,null,null,null,"Patras Matyáš","Libčice",2007,{"$f":"VLOOKUP(H51,Conf!F:H,3,0)","v":"U18"},"hráč",61,"D7-2",1203,0,50,1203]
["Šimák Jaro. (Oře)",null,null,null,null,"Šimák Jaroslav","Ořech",2010,{"$f":"VLOOKUP(H52,Conf!F:H,3,0)","v":"U15"},"hráč",63,"D7-3",1186,0,51,1186]
["Novotný Davi. (Rud)",null,null,null,null,"Novotný David","Rudná",2013,{"$f":"VLOOKUP(H53,Conf!F:H,3,0)","v":"U11"},"hráč",64,"D7-4",1170,0,52,1170]
["Musil Ondř. (Lib)",null,null,null,null,"Musil Ondřej","Libčice",2009,{"$f":"VLOOKUP(H54,Conf!F:H,3,0)","v":"U15"},"hráč",65,"D7-5",1154,0,53,1154]
["Müller Vojt. (Dav)",null,null,null,null,"Müller Vojtěch","Davle",2009,{"$f":"VLOOKUP(H55,Conf!F:H,3,0)","v":"U15"},"člen",100,"D7-6",1138,0,54,1138]
["Středa Luká. (Dav)",null,null,null,null,"Středa Lukáš","Davle",2010,{"$f":"VLOOKUP(H56,Conf!F:H,3,0)","v":"U15"},"člen",100,"D7-7",1138,0,55,1138]
["Cacek Miku. (Rud)",null,null,null,null,"Cacek Mikuláš","Rudná",2015,{"$f":"VLOOKUP(H57,Conf!F:H,3,0)","v":"U9"},"hráč",100,"D7-8",1138,0,56,1138]
["Kranát Petr. (Oře)",null,null,null,null,"Kranát Petr","Ořech",2009,{"$f":"VLOOKUP(H58,Conf!F:H,3,0)","v":"U15"},"hráč",100,"D8-1",1138,0,57,1138]
["Toman Olin. (Dav)",null,null,null,null,"Toman Olin","Davle",2008,{"$f":"VLOOKUP(H59,Conf!F:H,3,0)","v":"U18"},"člen",100,"D8-2",1138,0,58,1138]
["Skyva Mich. (Dav)",null,null,null,null,"Skyva Michal","Davle",2006,{"$f":"VLOOKUP(H60,Conf!F:H,3,0)","v":"U18"},"hráč",100,"D8-3",1138,0,59,1138]
["Ponáhlo Mich. (Lib)",null,null,null,null,"Ponáhlo Michal","Libčice",2007,{"$f":"VLOOKUP(H61,Conf!F:H,3,0)","v":"U18"},"hráč",100,"D8-4",1138,0,60,1138]
["Šťastná Nata. (Oře)",null,null,null,null,"Šťastná Nataly","Ořech",2008,{"$f":"VLOOKUP(H62,Conf!F:H,3,0)","v":"U18"},"hráč",100,"D8-5",1138,0,61,1138]
["Šťastná Domi. (Oře)",null,null,null,null,"Šťastná Dominika","Ořech",2008,{"$f":"VLOOKUP(H63,Conf!F:H,3,0)","v":"U18"},"hráč",100,"D8-6",1138,0,62,1138]
["Šťastný Jan. (Oře)",null,null,null,null,"Šťastný Jan","Ořech",2008,{"$f":"VLOOKUP(H64,Conf!F:H,3,0)","v":"U18"},"hráč",100,"D8-7",1138,0,63,1138]
["Koteljuk Adam. (Oře)",null,null,null,null,"Koteljuk Adam","Ořech",2010,{"$f":"VLOOKUP(H65,Conf!F:H,3,0)","v":"U15"},"hráč",100,"D8-8",1138,0,64,1138]
["Paliatka Jaku. (Oře)",null,null,null,null,"Paliatka Jakub","Ořech",2009,{"$f":"VLOOKUP(H66,Conf!F:H,3,0)","v":"U15"},"hráč",100,"D9-1",1138,0,65,{"$f":"IF(COUNTA(INDIRECT(\"Q1:AX1\"))<2,M66,IF(ISERR(LARGE(Q66:AQ66,1)),IF(M66>0,M66+N66,0),LARGE(Q66:AQ66,1)))+IF(COUNTA(INDIRECT(\"Q1:AX1\"))<3,0,IF(ISERR(LARGE(Q66:AQ66,2)),IF(M66>0,M66+N66,0),LARGE(Q66:AQ66,2)))+IF(COUNTA(INDIRECT(\"Q1:AX1\"))<4,0,IF(ISERR(LARGE(Q66:AQ66,3)),IF(M66>0,M66+N66,0),LARGE(Q66:AQ66,3)))+IF(COUNTA(INDIRECT(\"Q1:AX1\"))<5,0,IF(ISERR(LARGE(Q66:AQ66,4)),IF(M66>0,M66+N66,0),LARGE(Q66:AQ66,4)))+IF(ISERR(LARGE(Q66:AQ66,5)),0,LARGE(Q66:AQ66,5))/10+IF(ISERR(LARGE(Q66:AQ66,6)),0,LARGE(Q66:AQ66,6))/20","v":1138}]
["Auf Tade. (Oře)",null,null,null,null,"Auf Tadeáš","Ořech",2006,{"$f":"VLOOKUP(H67,Conf!F:H,3,0)","v":"U18"},"člen",100,"D9-2",1138,0,66,1138]
["Švehla Fili. (Rud)",null,null,null,null,"Švehla Filip","Rudná",2009,{"$f":"VLOOKUP(H68,Conf!F:H,3,0)","v":"U15"},"hráč",100,"D9-3",1138,0,67,1138]

{"sheet":"zebricek_2022","index":16,"n_rows":107,"n_cols":17,"rows_kept":107,"cut":false,"hidden":false,"merged":[[0,0,0,10]]}
["Zebricek mladeze finální za sezonu 2022-2023 (z žebříčku vyloučeni ti co nebyli ani na jednom turnaji)"]
["Hráč","Oddíl","Narozen","Kategorie","kateg.","Před. rok","Divize","Výchozí","Neucast","pozice","Aktual","BTM06(Rud)","BTM05(Úho)","BTM04(Oře)","BTM03(Úho)","BTM02(Rud)","BTM01(Uhol)"]
["Franěk Matyáš","Černošice",2008,"U15","hráč",70,"D1-1",null,0,1,8237.5,2000,2000,1970,2000,1870,1610]
["Hlavenka Joel Mathias","Černošice",2007,"U18","hráč",23,"D1-2",null,0,2,8105.5,1940,1970,1920,1940,1970,1870]
["Icha Richard","Mníšek",2005,"U18","hráč",8,"D1-3",null,0,3,7995,1920,1900,1900,1900,1920,1970]
["Ducháček Petr","Úholičky",2009,"U15","hráč",11,"D1-4",null,0,4,7941,1900,1940,1860,1920,1880,1900]
["Hron Matyáš","Černošice",2009,"U15","hráč",1,"D1-5",null,0,5,7940,1970,null,2000,1970,null,2000]
["Knotek Martin","Davle",2008,"U15","člen",2,"D1-6",null,0,6,7796,1880,1860,1840,1840,1860,1920]
["Hlaváček Daniel","Černošice",2009,"U15","hráč",69,"D1-7",null,0,7,7713,1840,1810,1940,1870,1740,1580]
["Drašar Jakub","Mníšek",2009,"U15","hráč",36,"D1-8",null,0,8,7545,1840,1870,1790,1680,1790,1710]
["Yosypenko Michal","Úholičky",2008,"U15","hráč",25,"D2-1",null,0,9,7480,1860,1840,null,null,1940,1840]
["Boháč Antonín","Libčice",2008,"U15","hráč",7,"D2-2",null,0,10,7430,1730,null,null,1860,1900,1940]
["Dostál Ondřej","Libčice",2009,"U15","hráč",17,"D2-3",null,0,11,7417,null,1840,1770,1790,1770,1840]
["Kameník Adam","Mníšek",2010,"U13","hráč",18,"D2-4",null,0,12,7360,null,1880,1810,1810,null,1860]
["Bosch Maxmilian","Rudná",2005,"U18","hráč",13,"D2-5",null,0,13,7310,1810,1920,1840,1740]
["Jurenka David","Rudná",2007,"U18","hráč",6,"D2-6",null,0,14,7240,1790,null,1870,1770,1810]
["Vybíral Václav","Davle",2010,"U13","člen",57,"D2-7",null,0,15,7225,1640,null,1880,1840,1710,1550]
["Břečková Aneta","Úholičky",2008,"U15","hráč",20,"D2-8",null,0,16,7216.5,1710,1710,1710,1710,1730,1810]
["Frinta Matyáš","Mníšek",2009,"U15","hráč",34,"D3-1",null,0,17,7140,1740,null,null,1880,1840,1680]
["Jesenský Ján","Mníšek",2010,"U13","hráč",21,"D3-2",null,0,18,7108,1580,1770,1750,1660,null,1770]
["Švarcová Liana","Rudná",2009,"U15","hráč",16,"D3-3",null,0,19,7050,1600,null,null,1730,1840,1880]
["Prokůpek Jiří","Davle",2009,"U15","hráč",61,"D3-4",null,0,20,7036.5,1660,1790,1710,1620,1640,1490]
["Hlavenka Eli Theodor","Černošice",2010,"U13","člen",48,"D3-5",null,0,21,6978,1710,1750,1740,1580,null,1620]
["Lundák Pavel","Davle",2011,"U13","člen",47,"D3-6",null,0,22,6965,1750,1710,1550,null,1710,1640]
["Dostálová Aneta","Libčice",2006,"U18","hráč",9,"D3-7",null,0,23,6960,null,1730,1730,1750,1750]
["Chromych Jan","Davle",2006,"U18","hráč",59,"D3-8",null,0,24,6861,1680,1680,1680,1610,null,1660]
["Sazimová Adéla","Úholičky",2008,"U15","hráč",38,"D4-1",null,0,25,6697,1580,1600,1640,1640,1580,1580]
["Teichman Petr","Rudná",2007,"U18","člen",32,"D4-2",null,0,26,6610,null,1620,1600,null,1680,1710]
["Kuliš David","Černošice",2007,"U18","hráč",40,"D4-3",null,0,27,6470,1610,1640,1610,null,1610]
["Valo Václav","Úholičky",2009,"U15","hráč",64,"D4-4",null,0,28,6437,1510,1580,null,1580,1620,1470]
["Lacina Thomas","Mníšek",2012,"U11","hráč",71,"D4-5",null,0,29,6405,1620,1610,1450,1550,1480]
["Fiala Tobiáš","Ořech",2010,"U13","hráč",66,"D4-6",null,0,30,6270,null,null,1580,1600,1580,1510]
["Kunc Lukáš","Úholičky",2008,"U15","hráč",62,"D4-7",null,0,31,6225,1490,1550,null,1530,1510,1450]
["Kutilová Krystýna","Rudná",2009,"U15","člen",45,"D4-8",null,0,32,6200,1470,null,1580,null,1550,1600]
["Petříková Johana","Rudná",2013,"U11","hráč",71,"D5-1",null,0,33,5870,1450,1530,1300,1420,1340]
["Hrabě Michal","Rudná",2008,"U15","člen",52,"D5-2",null,0,34,5810,null,null,1470,1510,1420,1410]
["Nguyen Tuan Tu","Mníšek",2012,"U11","hráč",71,"D5-3",null,0,35,5790,1380,null,1490,1470,1450]
["Juan Tiago","Rudná",2014,"U9","hráč",71,"D5-4",null,0,36,5622,1340,1470,1320,1360,1320]
["Bosch Maya","Rudná",2008,"U15","hráč",26,"D5-5",null,0,37,5220,1770,1740,null,1710]
["Marval Jan","Rudná",2008,"U15","člen",30,"D5-6",null,0,38,5110,null,1660,1660,null,null,1790]
["Kutil Tomáš","Rudná",2008,"U15","člen",31,"D5-7",null,0,39,5010,null,null,1620,null,1660,1730]
["Teichman Radim","Rudná",2009,"U15","člen",53,"D5-8",null,0,40,4620,null,1580,1510,null,1530]
["Klika Jakub","Rudná",2009,"U15","hráč",71,"D6-1",null,0,41,4430,1530,1480,1420]
["Kabátník Ondra","Ořech",2010,"U13","hráč",67,"D6-2",null,0,42,4410,null,null,1530,null,1450,1430]
["Ducháček Michal","Úholičky",2013,"U11","hráč",50,"D6-3",null,0,43,4330,null,1450,null,1490,null,1390]
["Olexa Jakub","Rudná",2011,"U13","hráč",71,"D6-4",null,0,44,4300,1480,1420,1400]
["Frýdlová Tereza","Rudná",2013,"U11","hráč",71,"D6-5",null,0,45,4290,null,1510,1380,1400]
["Hošek Ondřej","Mníšek",2012,"U11","hráč",71,"D6-6",null,0,46,4260,1450,null,null,1450,1360]
["Kolbušovský Michal","Rudná",2005,"U18","hráč",4,"D6-7",null,0,47,3870,1870,null,null,null,2000]
["Andrlík Dalibor","Ořech",2010,"U13","hráč",65,"D6-8",null,0,48,3130,null,null,null,null,1600,1530]
["Fajt Jakub","Černošice",2009,"U15","člen",71,"D7-1",null,0,49,3000,1550,1450]
["Stára Jakub","Úholičky",2008,"U15","hráč",71,"D7-2",null,0,50,2900,1420,null,1480]
["Wimmer Vítek","Rudná",2012,"U11","hráč",71,"D7-3",null,0,51,2850,null,null,null,1450,1400]
["Horáčková Anežka","Ořech",2009,"U15","hráč",71,"D7-4",null,0,52,2830,null,null,1450,null,1380]
["Adlof Lukáš","Úholičky",2007,"U18","člen",71,"D7-5",null,0,53,2800,1400,1400]
["Framberk Mikuláš","Libčice",2013,"U11","hráč",58,"D7-6",null,0,54,2750,null,1490,1260]
["Tobolář Jindřich","Libčice",2009,"U15","hráč",71,"D7-7",null,0,55,2740,null,1360,null,1380]
["Feitz František","Úholičky",2008,"U15","člen",71,"D7-8",null,0,56,2740,1360,1380]
["Špaček Matěj","Ořech",2010,"U13","hráč",71,"D8-1",null,0,57,2660,1320,null,1340]
["Juda František","Libčice",2006,"U18","hráč",33,"D8-2",null,0,58,1750,null,null,null,null,null,1750]
["Suchý Marek","Černošice",2008,"U15","člen",39,"D8-3",null,0,59,1740,null,null,null,null,null,1740]
["Šulc Adam","Ořech",2009,"U15","hráč",63,"D8-4",null,0,60,1490,null,null,null,null,1490]
["Patras Matyáš","Libčice",2007,"U18","hráč",51,"D8-5",null,0,61,1480,null,null,null,1480]
["Kohoutková Karolína","Rudná",2010,"U13","člen",46,"D8-6",null,0,62,1470,null,null,null,null,1470]
["Šimák Jaroslav","Ořech",2010,"U13","hráč",68,"D8-7",null,0,63,1360,null,null,1360]
["Novotný David","Rudná",2013,"U11","člen",71,"D8-8",null,0,64,1300,1300]
["Musil Ondřej","Libčice",2009,"U15","hráč",71,"D9-1",null,0,65,1280,null,null,1280]
["Housa Jiří","Černošice",2007,"U18","člen",71,"D9-2",null,0,66,0]
["Pojerová Gabriela","Libčice",2010,"U13","hráč",71,"D9-3",null,0,67,0]
["Slapnička Ondřej","Libčice",2009,"U15","hráč",71,"D9-4",null,0,68,0]
["Horony Martin","Úholičky",2007,"U18","hráč",71,"D9-5",null,0,69,0]
["Kříž Filip","Úholičky",2007,"U18","hráč",71,"D9-6",null,0,70,0]
["Müller Vojtěch","Davle",2009,"U15","člen",71,"D9-7",null,0,71,0]
["Středa Lukáš","Davle",2010,"U13","člen",71,"D9-8",null,0,72,0]
["Hloch Matěj","Roztoky",2011,"U13","hráč",71,"D10-1",null,0,73,0]
["Kaláb Adam","Roztoky",2006,"U18","hráč",71,"D10-2",null,0,74,0]
["Kuchtová Klára","Roztoky",2005,"U18","hráč",71,"D10-3",null,0,75,0]
["Čepela Ondřej","Roztoky",2008,"U15","člen",71,"D10-4",null,0,76,0]
["Provazník Adam","Černošice",2005,"U18","člen",71,"D10-5",null,0,77,0]
["Freislebenová Sára","Únětice",2005,"U18","hráč",71,"D10-6",null,0,78,0]
["Rein Tomáš","Ořech",2005,"U18","hráč",71,"D10-7",null,0,79,0]
["Němejc Melichar","Ořech",2005,"U18","člen",71,"D10-8",null,0,80,0]
["Cacek Mikuláš","Rudná",2015,"U9","člen",71,"D11-1",null,0,81,0]
["Smetanková Amálie","Rudná",2010,"U13","člen",71,"D11-2",null,0,82,0]
["Kranát Petr","Ořech",2009,"U15","hráč",60,"D11-3",null,0,83,0]
["Toman Olin","Davle",2008,"U15","člen",56,"D11-4",null,0,84,0]
["Skyva Michal","Davle",2006,"U18","člen",55,"D11-5",null,0,85,0]
["Ponáhlo Michal","Libčice",2007,"U18","hráč",54,"D11-6",null,0,86,0]
["Kalinová Hana","Roztoky",2009,"U15","hráč",49,"D11-7",null,0,87,0]
["Cabicar Šimon","Roztoky",2005,"U18","hráč",44,"D11-8",null,0,88,0]
["Lukáš Filip nejml.","Roztoky",2011,"U13","hráč",43,"D12-1",null,0,89,0]
["Vágner Jonáš","Roztoky",2005,"U18","hráč",42,"D12-2",null,0,90,0]
["Freudl David","Mníšek",2009,"U15","hráč",41,"D12-3",null,0,91,0]
["Příhonský Ernesto","Roztoky",2010,"U13","hráč",37,"D12-4",null,0,92,0]
["Machek Jan ml.","Roztoky",2008,"U15","hráč",35,"D12-5",null,0,93,0]
["Šťastná Nataly","Ořech",2008,"U15","hráč",29,"D12-6",null,0,94,0]
["Hanzlík František","Rudná",2006,"U18","člen",28,"D12-7",null,0,95,0]
["Pajer Filip","Černošice",2005,"U18","člen",27,"D12-8",null,0,96,0]
["Nováková Karolina","Libčice",2005,"U18","hráč",24,"D13-1",null,0,97,0]
["Lukáš Lukáš","Roztoky",2006,"U18","hráč",22,"D13-2",null,0,98,0]
["Vašků Karolína","Roztoky",2010,"U13","hráč",19,"D13-3",null,0,99,0]
["Šťastná Dominika","Ořech",2008,"U15","hráč",15,"D13-4",null,0,100,0]
["Šťastný Jan","Ořech",2008,"U15","hráč",14,"D13-5",null,0,101,0]
["Stříbrný Jiří Maxmilián","Roztoky",2006,"U18","hráč",12,"D13-6",null,0,102,0]
["Bernard Robin","Mníšek",2006,"U18","hráč",10,"D13-7",null,0,103,0]
["Frýdl Lukáš","Rudná",2010,"U13","hráč",5,"D13-8",null,0,104,0]
["Hora Ondřej","Rudná",2007,"U18","hráč",3,"D14-1",null,0,105,0]

{"sheet":"evidence_20221105","index":17,"n_rows":347,"n_cols":6,"rows_kept":347,"cut":false,"hidden":true,"merged":[]}
["hrac","oddil","rok narozeni","věk","registrace","Neni na karte Vychozi?"]
["Antoš Vojtěch","Roztoky","2003",{"$f":"YEAR(NOW())-C2","v":20},"300Kč",{"$f":"ISNA(VLOOKUP(A2,#REF!,4,FALSE))","v":false}]
["Bárta Kryštof","Roztoky","1998",25,"300Kč",{"$f":"ISNA(VLOOKUP(A3,#REF!,4,FALSE))","v":false}]
["Cabicar Šimon","Roztoky","2005",18,"150Kč",{"$f":"ISNA(VLOOKUP(A4,#REF!,4,FALSE))","v":false}]
["Eibich Jan","Roztoky","1999",24,"300Kč",{"$f":"ISNA(VLOOKUP(A5,#REF!,4,FALSE))","v":false}]
["Fišman Alexandr","Roztoky","2003",20,"300Kč",{"$f":"ISNA(VLOOKUP(A6,#REF!,4,FALSE))","v":false}]
["Hloch Matěj","Roztoky","2011",12,"150Kč",{"$f":"ISNA(VLOOKUP(A7,#REF!,4,FALSE))","v":false}]
["Jakoubek Jakub","Roztoky","1998",25,"300Kč",{"$f":"ISNA(VLOOKUP(A8,#REF!,4,FALSE))","v":false}]
["Jirásek Jiří","Roztoky","1975",48,"300Kč",{"$f":"ISNA(VLOOKUP(A9,#REF!,4,FALSE))","v":false}]
["Kaláb Adam","Roztoky","2006",17,"150Kč",{"$f":"ISNA(VLOOKUP(A10,#REF!,4,FALSE))","v":false}]
["Kalinová Hana","Roztoky","2009",14,"150Kč",{"$f":"ISNA(VLOOKUP(A11,#REF!,4,FALSE))","v":false}]
["Kuchtová Klára","Roztoky","2005",18,"150Kč",{"$f":"ISNA(VLOOKUP(A12,#REF!,4,FALSE))","v":false}]
["Lauermann Matěj","Roztoky","2002",21,"300Kč",{"$f":"ISNA(VLOOKUP(A13,#REF!,4,FALSE))","v":false}]
["Levenec Petr","Roztoky","1978",45,"300Kč",{"$f":"ISNA(VLOOKUP(A14,#REF!,4,FALSE))","v":false}]
["Lukáš Filip nejml.","Roztoky","2011",12,"150Kč",{"$f":"ISNA(VLOOKUP(A15,#REF!,4,FALSE))","v":false}]
["Lukáš Jakub","Roztoky","1979",44,"300Kč",{"$f":"ISNA(VLOOKUP(A16,#REF!,4,FALSE))","v":false}]
["Lukáš Lukáš","Roztoky","2006",17,"150Kč",{"$f":"ISNA(VLOOKUP(A17,#REF!,4,FALSE))","v":false}]
["Machek Jan ml.","Roztoky","2008",15,"150Kč",{"$f":"ISNA(VLOOKUP(A18,#REF!,4,FALSE))","v":false}]
["Pöschl Miroslav st.","Roztoky","1960",63,"300Kč",{"$f":"ISNA(VLOOKUP(A19,#REF!,4,FALSE))","v":false}]
["Příhonský Ernesto","Roztoky","2010",13,"150Kč",{"$f":"ISNA(VLOOKUP(A20,#REF!,4,FALSE))","v":false}]
["Šimon Matyáš","Roztoky","2003",20,"300Kč",{"$f":"ISNA(VLOOKUP(A21,#REF!,4,FALSE))","v":false}]
["Smrček Michal","Roztoky","1984",39,"300Kč",{"$f":"ISNA(VLOOKUP(A22,#REF!,4,FALSE))","v":false}]
["Stříbrný Jiří Maxmilián","Roztoky","2006",17,"150Kč",{"$f":"ISNA(VLOOKUP(A23,#REF!,4,FALSE))","v":false}]
["Šturm Vojtěch","Roztoky","2002",21,"300Kč",{"$f":"ISNA(VLOOKUP(A24,#REF!,4,FALSE))","v":false}]
["Švarc Martin","Roztoky","1976",47,"300Kč",{"$f":"ISNA(VLOOKUP(A25,#REF!,4,FALSE))","v":false}]
["Tolárek David","Roztoky","2002",21,"300Kč",{"$f":"ISNA(VLOOKUP(A26,#REF!,4,FALSE))","v":false}]
["Vacek Jiří","Roztoky","1978",45,"300Kč",{"$f":"ISNA(VLOOKUP(A27,#REF!,4,FALSE))","v":false}]
["Vágner Jonáš","Roztoky","2005",18,"150Kč",{"$f":"ISNA(VLOOKUP(A28,#REF!,4,FALSE))","v":false}]
["Vašků Karolína","Roztoky","2010",13,"150Kč",{"$f":"ISNA(VLOOKUP(A29,#REF!,4,FALSE))","v":false}]
["Veselý Milan","Roztoky","1989",34,"300Kč",{"$f":"ISNA(VLOOKUP(A30,#REF!,4,FALSE))","v":false}]
["Vodňanský Martin","Roztoky","1981",42,"300Kč",{"$f":"ISNA(VLOOKUP(A31,#REF!,4,FALSE))","v":false}]
["Vondrová Kristýna nejst.","Roztoky","2003",20,"300Kč",{"$f":"ISNA(VLOOKUP(A32,#REF!,4,FALSE))","v":false}]
["Žáček Josef","Roztoky","1970",53,"300Kč",{"$f":"ISNA(VLOOKUP(A33,#REF!,4,FALSE))","v":false}]
["Zwiefelhofer Jiří","Roztoky","1964",59,"300Kč",{"$f":"ISNA(VLOOKUP(A34,#REF!,4,FALSE))","v":false}]
["Čepela Ondřej","Roztoky","2008",15,"30Kč",{"$f":"ISNA(VLOOKUP(A35,#REF!,4,FALSE))","v":false}]
["Lojek Jakub","Roztoky","2000",23,"30Kč",{"$f":"ISNA(VLOOKUP(A36,#REF!,4,FALSE))","v":false}]
["Netušil David","Roztoky","2002",21,"30Kč",{"$f":"ISNA(VLOOKUP(A37,#REF!,4,FALSE))","v":false}]
["Čáp Martin","Černošice","1975",48,"300Kč",{"$f":"ISNA(VLOOKUP(A38,#REF!,4,FALSE))","v":false}]
["Charvát Petr","Černošice","1947",76,"300Kč",{"$f":"ISNA(VLOOKUP(A39,#REF!,4,FALSE))","v":false}]
["Cimler Lukáš","Černošice","1987",36,"300Kč",{"$f":"ISNA(VLOOKUP(A40,#REF!,4,FALSE))","v":false}]
["Deré Michal","Černošice","1974",49,"300Kč",{"$f":"ISNA(VLOOKUP(A41,#REF!,4,FALSE))","v":false}]
["Fischer Jiří","Černošice","1964",59,"300Kč",{"$f":"ISNA(VLOOKUP(A42,#REF!,4,FALSE))","v":false}]
["Franěk Matyáš","Černošice","2008",15,"150Kč",{"$f":"ISNA(VLOOKUP(A43,#REF!,4,FALSE))","v":false}]
["Hlaváček Daniel","Černošice","2009",14,"150Kč",{"$f":"ISNA(VLOOKUP(A44,#REF!,4,FALSE))","v":false}]
["Hlavenka Joel Mathias","Černošice","2007",16,"150Kč",{"$f":"ISNA(VLOOKUP(A45,#REF!,4,FALSE))","v":false}]
["Hlavenka Eli Theodor","Černošice","2010",13,"150Kč",{"$f":"ISNA(VLOOKUP(A46,#REF!,4,FALSE))","v":false}]
["Hrdina Pavel","Černošice","1971",52,"300Kč",{"$f":"ISNA(VLOOKUP(A47,#REF!,4,FALSE))","v":false}]
["Hron Matyáš","Černošice","2009",14,"150Kč",{"$f":"ISNA(VLOOKUP(A48,#REF!,4,FALSE))","v":false}]
["Kuliš David","Černošice","2007",16,"150Kč",{"$f":"ISNA(VLOOKUP(A49,#REF!,4,FALSE))","v":false}]
["Lágner Petr","Černošice","1974",49,"300Kč",{"$f":"ISNA(VLOOKUP(A50,#REF!,4,FALSE))","v":false}]
["Nosek Michal","Černošice","1985",38,"300Kč",{"$f":"ISNA(VLOOKUP(A51,#REF!,4,FALSE))","v":false}]
["Roztočilová Tereza","Černošice","2001",22,"300Kč",{"$f":"ISNA(VLOOKUP(A52,#REF!,4,FALSE))","v":false}]
["Souček Jan","Černošice","2000",23,"300Kč",{"$f":"ISNA(VLOOKUP(A53,#REF!,4,FALSE))","v":false}]
["Šteiger Dominik","Černošice","2002",21,"300Kč",{"$f":"ISNA(VLOOKUP(A54,#REF!,4,FALSE))","v":false}]
["Strakoš Jan","Černošice","1974",49,"300Kč",{"$f":"ISNA(VLOOKUP(A55,#REF!,4,FALSE))","v":false}]
["Suchý Marek","Černošice","2008",15,"150Kč",{"$f":"ISNA(VLOOKUP(A56,#REF!,4,FALSE))","v":false}]
["Suchý Michal","Černošice","1976",47,"300Kč",{"$f":"ISNA(VLOOKUP(A57,#REF!,4,FALSE))","v":false}]
["Tichý Jiří","Černošice","1947",76,"300Kč",{"$f":"ISNA(VLOOKUP(A58,#REF!,4,FALSE))","v":false}]
["Veselý Petr","Černošice","1987",36,"300Kč",{"$f":"ISNA(VLOOKUP(A59,#REF!,4,FALSE))","v":false}]
["Zmatlík Lukáš","Černošice","1993",30,"300Kč",{"$f":"ISNA(VLOOKUP(A60,#REF!,4,FALSE))","v":false}]
["Zmatlík Petr","Černošice","1957",66,"300Kč",{"$f":"ISNA(VLOOKUP(A61,#REF!,4,FALSE))","v":false}]
["Housa Jiří","Černošice","2007",16,"30Kč",{"$f":"ISNA(VLOOKUP(A62,#REF!,4,FALSE))","v":false}]
["Otavová Klaudie","Černošice","2003",20,"30Kč",{"$f":"ISNA(VLOOKUP(A63,#REF!,4,FALSE))","v":false}]
["Pajer Filip","Černošice","2005",18,"30Kč",{"$f":"ISNA(VLOOKUP(A64,#REF!,4,FALSE))","v":false}]
["Provazník Adam","Černošice","2005",18,"30Kč",{"$f":"ISNA(VLOOKUP(A65,#REF!,4,FALSE))","v":false}]
["Wolf Vojtěch","Černošice","2004",{"$f":"YEAR(NOW())-C66","v":19},"30Kč",{"$f":"ISNA(VLOOKUP(A66,#REF!,4,FALSE))","v":false}]
["Anderson Ben","Únětice","1958",65,"300Kč",{"$f":"ISNA(VLOOKUP(A67,#REF!,4,FALSE))","v":false}]
["Bartoš Jiří","Únětice","1957",66,"300Kč",{"$f":"ISNA(VLOOKUP(A68,#REF!,4,FALSE))","v":false}]
["Faltin Bohumil","Únětice","2003",20,"300Kč",{"$f":"ISNA(VLOOKUP(A69,#REF!,4,FALSE))","v":false}]
["Faltin Miloš","Únětice","1972",51,"300Kč",{"$f":"ISNA(VLOOKUP(A70,#REF!,4,FALSE))","v":false}]
["Franc Martin","Únětice","1973",50,"300Kč",{"$f":"ISNA(VLOOKUP(A71,#REF!,4,FALSE))","v":false}]
["Freisleben Robin","Únětice","1971",52,"300Kč",{"$f":"ISNA(VLOOKUP(A72,#REF!,4,FALSE))","v":false}]
["Freislebenová Sára","Únětice","2005",18,"150Kč",{"$f":"ISNA(VLOOKUP(A73,#REF!,4,FALSE))","v":false}]
["Hurych Vlastislav","Únětice","1972",51,"300Kč",{"$f":"ISNA(VLOOKUP(A74,#REF!,4,FALSE))","v":false}]
["Kratochvíl Jiří","Únětice","1969",54,"300Kč",{"$f":"ISNA(VLOOKUP(A75,#REF!,4,FALSE))","v":false}]
["Krupička Radim","Únětice","1974",49,"300Kč",{"$f":"ISNA(VLOOKUP(A76,#REF!,4,FALSE))","v":false}]
["Podolský Tomáš","Únětice","1989",34,"300Kč",{"$f":"ISNA(VLOOKUP(A77,#REF!,4,FALSE))","v":false}]
["Potužník Adam","Únětice","2003",20,"300Kč",{"$f":"ISNA(VLOOKUP(A78,#REF!,4,FALSE))","v":false}]
["Potužník Václav","Únětice","1972",51,"300Kč",{"$f":"ISNA(VLOOKUP(A79,#REF!,4,FALSE))","v":false}]
["Sitta Radomír","Únětice","1969",54,"300Kč",{"$f":"ISNA(VLOOKUP(A80,#REF!,4,FALSE))","v":false}]
["Trubnikov Stanislav","Únětice","1965",58,"300Kč",{"$f":"ISNA(VLOOKUP(A81,#REF!,4,FALSE))","v":false}]
["Bartik Ondřej","Libčice","1991",32,"300Kč",{"$f":"ISNA(VLOOKUP(A82,#REF!,4,FALSE))","v":false}]
["Bartoň Milan","Libčice","1975",48,"300Kč",{"$f":"ISNA(VLOOKUP(A83,#REF!,4,FALSE))","v":false}]
["Beltrám Javier Ernesto","Libčice","1978",45,"300Kč",{"$f":"ISNA(VLOOKUP(A84,#REF!,4,FALSE))","v":false}]
["Boháč Antoním","Libčice","2008",15,"150Kč",{"$f":"ISNA(VLOOKUP(A85,#REF!,4,FALSE))","v":false}]
["Boháčová Simona","Libčice","1976",47,"300Kč",{"$f":"ISNA(VLOOKUP(A86,#REF!,4,FALSE))","v":false}]
["Česák Michal","Libčice","1991",32,"300Kč",{"$f":"ISNA(VLOOKUP(A87,#REF!,4,FALSE))","v":false}]
["Dostál Ondřej","Libčice","2009",14,"150Kč",{"$f":"ISNA(VLOOKUP(A88,#REF!,4,FALSE))","v":false}]
["Dostál Zdeněk","Libčice","1976",47,"300Kč",{"$f":"ISNA(VLOOKUP(A89,#REF!,4,FALSE))","v":false}]
["Dostálová Aneta","Libčice","2006",17,"150Kč",{"$f":"ISNA(VLOOKUP(A90,#REF!,4,FALSE))","v":false}]
["Fišer Štefan","Libčice","1984",39,"300Kč",{"$f":"ISNA(VLOOKUP(A91,#REF!,4,FALSE))","v":false}]
["Framberk Jan","Libčice","1977",46,"300Kč",{"$f":"ISNA(VLOOKUP(A92,#REF!,4,FALSE))","v":false}]
["Framberk Mikuláš","Libčice","2013",10,"150Kč",{"$f":"ISNA(VLOOKUP(A93,#REF!,4,FALSE))","v":false}]
["Hodač Jan","Libčice","1981",42,"300Kč",{"$f":"ISNA(VLOOKUP(A94,#REF!,4,FALSE))","v":false}]
["Juda František","Libčice","2006",17,"150Kč",{"$f":"ISNA(VLOOKUP(A95,#REF!,4,FALSE))","v":false}]
["Klinga Petr","Libčice","1963",60,"300Kč",{"$f":"ISNA(VLOOKUP(A96,#REF!,4,FALSE))","v":false}]
["Konvalinka Michal","Libčice","1985",38,"300Kč",{"$f":"ISNA(VLOOKUP(A97,#REF!,4,FALSE))","v":false}]
["Nováková Karolina","Libčice","2005",18,"150Kč",{"$f":"ISNA(VLOOKUP(A98,#REF!,4,FALSE))","v":false}]
["Patras Matyáš","Libčice","2007",16,"150Kč",{"$f":"ISNA(VLOOKUP(A99,#REF!,4,FALSE))","v":false}]
["Podrápský Jaroslav","Libčice","1972",51,"300Kč",{"$f":"ISNA(VLOOKUP(A100,#REF!,4,FALSE))","v":false}]
["Pojerová Gabriela","Libčice","2010",13,"150Kč",{"$f":"ISNA(VLOOKUP(A101,#REF!,4,FALSE))","v":false}]
["Ponáhlo Michal","Libčice","2007",16,"150Kč",{"$f":"ISNA(VLOOKUP(A102,#REF!,4,FALSE))","v":false}]
["Richter Jaroslav ml.","Libčice","1973",50,"300Kč",{"$f":"ISNA(VLOOKUP(A103,#REF!,4,FALSE))","v":false}]
["Richter Jaroslav st.","Libčice","1951",72,"300Kč",{"$f":"ISNA(VLOOKUP(A104,#REF!,4,FALSE))","v":false}]
["Richter Vojtěch","Libčice","1974",49,"300Kč",{"$f":"ISNA(VLOOKUP(A105,#REF!,4,FALSE))","v":false}]
["Slaměník Richard","Libčice","1961",62,"300Kč",{"$f":"ISNA(VLOOKUP(A106,#REF!,4,FALSE))","v":false}]
["Slapnička Ondřej","Libčice","2009",14,"150Kč",{"$f":"ISNA(VLOOKUP(A107,#REF!,4,FALSE))","v":false}]
["Špiegel Jan","Libčice","1961",62,"300Kč",{"$f":"ISNA(VLOOKUP(A108,#REF!,4,FALSE))","v":false}]
["Šulc Dalibor","Libčice","1953",70,"300Kč",{"$f":"ISNA(VLOOKUP(A109,#REF!,4,FALSE))","v":false}]
["Telipský Josef","Libčice","1968",55,"300Kč",{"$f":"ISNA(VLOOKUP(A110,#REF!,4,FALSE))","v":false}]
["Tkadlec Jaroslav","Libčice","1951",72,"300Kč",{"$f":"ISNA(VLOOKUP(A111,#REF!,4,FALSE))","v":false}]
["Tobolář Karel","Libčice","1976",47,"300Kč",{"$f":"ISNA(VLOOKUP(A112,#REF!,4,FALSE))","v":false}]
["Votoček Jaroslav","Libčice","1950",73,"300Kč",{"$f":"ISNA(VLOOKUP(A113,#REF!,4,FALSE))","v":false}]
["Kosnar Vladimír","Libčice","1944",79,"30Kč",{"$f":"ISNA(VLOOKUP(A114,#REF!,4,FALSE))","v":false}]
["Manek Jakub","Libčice","2000",23,"30Kč",{"$f":"ISNA(VLOOKUP(A115,#REF!,4,FALSE))","v":false}]
["Andrlík Dalibor","Ořech","2010",13,"150Kč",{"$f":"ISNA(VLOOKUP(A116,#REF!,4,FALSE))","v":false}]
["Blažek Jiří","Ořech","1994",29,"300Kč",{"$f":"ISNA(VLOOKUP(A117,#REF!,4,FALSE))","v":false}]
["Bulín Zdeněk","Ořech","1972",51,"300Kč",{"$f":"ISNA(VLOOKUP(A118,#REF!,4,FALSE))","v":false}]
["Cafourek Tomáš","Ořech","2000",23,"300Kč",{"$f":"ISNA(VLOOKUP(A119,#REF!,4,FALSE))","v":false}]
["Čierny Alexander","Ořech","1971",52,"300Kč",{"$f":"ISNA(VLOOKUP(A120,#REF!,4,FALSE))","v":false}]
["Fiala Tobiáš","Ořech","2010",13,"150Kč",{"$f":"ISNA(VLOOKUP(A121,#REF!,4,FALSE))","v":false}]
["Flusser Martin","Ořech","1991",32,"300Kč",{"$f":"ISNA(VLOOKUP(A122,#REF!,4,FALSE))","v":false}]
["Fürst Mirko","Ořech","1946",77,"300Kč",{"$f":"ISNA(VLOOKUP(A123,#REF!,4,FALSE))","v":false}]
["Heřman Miroslav","Ořech","1978",45,"300Kč",{"$f":"ISNA(VLOOKUP(A124,#REF!,4,FALSE))","v":false}]
["Hlaváč Jan","Ořech","2001",22,"300Kč",{"$f":"ISNA(VLOOKUP(A125,#REF!,4,FALSE))","v":false}]
["Horáčková Anežka","Ořech","2009",14,"150Kč",{"$f":"ISNA(VLOOKUP(A126,#REF!,4,FALSE))","v":false}]
["Hruška Ondřej","Ořech","1995",28,"300Kč",{"$f":"ISNA(VLOOKUP(A127,#REF!,4,FALSE))","v":false}]
["Hudák Tomáš","Ořech","2004",19,"150Kč",{"$f":"ISNA(VLOOKUP(A128,#REF!,4,FALSE))","v":false}]
["Jambor Václav","Ořech","1945",78,"300Kč",{"$f":"ISNA(VLOOKUP(A129,#REF!,4,FALSE))","v":false}]
["Kabátník Ondra","Ořech","2010",{"$f":"YEAR(NOW())-C130","v":13},"150Kč",{"$f":"ISNA(VLOOKUP(A130,#REF!,4,FALSE))","v":false}]
["Kohlík Miroslav ml.","Ořech","1973",50,"300Kč",{"$f":"ISNA(VLOOKUP(A131,#REF!,4,FALSE))","v":false}]
["Kotěšovská Tereza","Ořech","2002",21,"300Kč",{"$f":"ISNA(VLOOKUP(A132,#REF!,4,FALSE))","v":false}]
["Kotěšovský Jan","Ořech","2002",21,"300Kč",{"$f":"ISNA(VLOOKUP(A133,#REF!,4,FALSE))","v":false}]
["Kranát Petr","Ořech","2009",14,"150Kč",{"$f":"ISNA(VLOOKUP(A134,#REF!,4,FALSE))","v":false}]
["Krasničan Jaroslav","Ořech","1977",46,"300Kč",{"$f":"ISNA(VLOOKUP(A135,#REF!,4,FALSE))","v":false}]
["Krejčová Barbora","Ořech","1996",27,"300Kč",{"$f":"ISNA(VLOOKUP(A136,#REF!,4,FALSE))","v":false}]
["Matoušek Michal","Ořech","1982",41,"300Kč",{"$f":"ISNA(VLOOKUP(A137,#REF!,4,FALSE))","v":false}]
["Matoušek Tomáš","Ořech","1985",38,"300Kč",{"$f":"ISNA(VLOOKUP(A138,#REF!,4,FALSE))","v":false}]
["Matoušek Zdeněk","Ořech","1956",67,"300Kč",{"$f":"ISNA(VLOOKUP(A139,#REF!,4,FALSE))","v":false}]
["Novák Marek","Ořech","1996",27,"300Kč",{"$f":"ISNA(VLOOKUP(A140,#REF!,4,FALSE))","v":false}]
["Pavlín Jiří","Ořech","1962",61,"300Kč",{"$f":"ISNA(VLOOKUP(A141,#REF!,4,FALSE))","v":false}]
["Pavlín Šimon","Ořech","1997",26,"300Kč",{"$f":"ISNA(VLOOKUP(A142,#REF!,4,FALSE))","v":false}]
["Píš Daniel","Ořech","1969",54,"300Kč",{"$f":"ISNA(VLOOKUP(A143,#REF!,4,FALSE))","v":false}]
["Píš Ondřej","Ořech","1995",28,"300Kč",{"$f":"ISNA(VLOOKUP(A144,#REF!,4,FALSE))","v":false}]
["Poncar Karel","Ořech","2001",22,"300Kč",{"$f":"ISNA(VLOOKUP(A145,#REF!,4,FALSE))","v":false}]
["Pražská Lenka","Ořech","1966",57,"300Kč",{"$f":"ISNA(VLOOKUP(A146,#REF!,4,FALSE))","v":false}]
["Ptáčník Martin","Ořech","1989",34,"300Kč",{"$f":"ISNA(VLOOKUP(A147,#REF!,4,FALSE))","v":false}]
["Redlich Michal","Ořech","2003",20,"300Kč",{"$f":"ISNA(VLOOKUP(A148,#REF!,4,FALSE))","v":false}]
["Rein Tomáš","Ořech","2005",18,"150Kč",{"$f":"ISNA(VLOOKUP(A149,#REF!,4,FALSE))","v":false}]
["Severa Martin","Ořech","1968",55,"300Kč",{"$f":"ISNA(VLOOKUP(A150,#REF!,4,FALSE))","v":false}]
["Šimák Jaroslav","Ořech","2010",13,"150Kč",{"$f":"ISNA(VLOOKUP(A151,#REF!,4,FALSE))","v":false}]
["Škoda Jiří","Ořech","1992",31,"300Kč",{"$f":"ISNA(VLOOKUP(A152,#REF!,4,FALSE))","v":false}]
["Skřivánek Jiří","Ořech","1973",50,"300Kč",{"$f":"ISNA(VLOOKUP(A153,#REF!,4,FALSE))","v":false}]
["Soukup Vojtěch","Ořech","2002",21,"300Kč",{"$f":"ISNA(VLOOKUP(A154,#REF!,4,FALSE))","v":false}]
["Šrenk Štěpán","Ořech","2001",22,"300Kč",{"$f":"ISNA(VLOOKUP(A155,#REF!,4,FALSE))","v":false}]
["Šťastná Dominika","Ořech","2008",15,"150Kč",{"$f":"ISNA(VLOOKUP(A156,#REF!,4,FALSE))","v":false}]
["Šťastná Nataly","Ořech","2008",15,"150Kč",{"$f":"ISNA(VLOOKUP(A157,#REF!,4,FALSE))","v":false}]
["Šťastný Jan","Ořech","2008",15,"150Kč",{"$f":"ISNA(VLOOKUP(A158,#REF!,4,FALSE))","v":false}]
["Šulc Adam","Ořech","2009",14,"150Kč",{"$f":"ISNA(VLOOKUP(A159,#REF!,4,FALSE))","v":false}]
["Vávra Aleš","Ořech","1998",25,"300Kč",{"$f":"ISNA(VLOOKUP(A160,#REF!,4,FALSE))","v":false}]
["Veselý Miroslav","Ořech","1965",58,"300Kč",{"$f":"ISNA(VLOOKUP(A161,#REF!,4,FALSE))","v":false}]
["Veverka Jan","Ořech","1997",26,"300Kč",{"$f":"ISNA(VLOOKUP(A162,#REF!,4,FALSE))","v":false}]
["Veverka Václav ml.","Ořech","2000",23,"300Kč",{"$f":"ISNA(VLOOKUP(A163,#REF!,4,FALSE))","v":false}]
["Veverka Václav st.","Ořech","1961",62,"300Kč",{"$f":"ISNA(VLOOKUP(A164,#REF!,4,FALSE))","v":false}]
["Yaroslavtsev Vitaly","Ořech","1959",64,"300Kč",{"$f":"ISNA(VLOOKUP(A165,#REF!,4,FALSE))","v":false}]
["Zacharda Aleš","Ořech","1972",51,"300Kč",{"$f":"ISNA(VLOOKUP(A166,#REF!,4,FALSE))","v":false}]
["Helt Miroslav","Ořech","1951",72,"30Kč",{"$f":"ISNA(VLOOKUP(A167,#REF!,4,FALSE))","v":false}]
["Kohlík Miroslav st.","Ořech","1949",74,"30Kč",{"$f":"ISNA(VLOOKUP(A168,#REF!,4,FALSE))","v":false}]
["Němejc Melichar","Ořech","2005",18,"30Kč",{"$f":"ISNA(VLOOKUP(A169,#REF!,4,FALSE))","v":false}]
["Pražský Michal","Ořech","1997",26,"30Kč",{"$f":"ISNA(VLOOKUP(A170,#REF!,4,FALSE))","v":false}]
["Brejcha Petr","Středokluky","1961",62,"300Kč",{"$f":"ISNA(VLOOKUP(A171,#REF!,4,FALSE))","v":false}]
["Chval Ivan","Středokluky","1962",61,"300Kč",{"$f":"ISNA(VLOOKUP(A172,#REF!,4,FALSE))","v":false}]
["Hikl Josef","Středokluky","1947",76,"300Kč",{"$f":"ISNA(VLOOKUP(A173,#REF!,4,FALSE))","v":false}]
["Kačerovský Zdeněk","Středokluky","1975",48,"300Kč",{"$f":"ISNA(VLOOKUP(A174,#REF!,4,FALSE))","v":false}]
["Kamenszki Ivan","Středokluky","1972",51,"300Kč",{"$f":"ISNA(VLOOKUP(A175,#REF!,4,FALSE))","v":false}]
["Pelant Jakub","Středokluky","1980",43,"300Kč",{"$f":"ISNA(VLOOKUP(A176,#REF!,4,FALSE))","v":false}]
["Popelka Pavel","Středokluky","1973",50,"300Kč",{"$f":"ISNA(VLOOKUP(A177,#REF!,4,FALSE))","v":false}]
["Tolar Jakub","Středokluky","1995",28,"300Kč",{"$f":"ISNA(VLOOKUP(A178,#REF!,4,FALSE))","v":false}]
["Tolar Petr","Středokluky","1970",53,"300Kč",{"$f":"ISNA(VLOOKUP(A179,#REF!,4,FALSE))","v":false}]
["Tříska Luboš","Středokluky","1961",62,"300Kč",{"$f":"ISNA(VLOOKUP(A180,#REF!,4,FALSE))","v":false}]
["Vanson Patrick","Středokluky","1967",56,"300Kč",{"$f":"ISNA(VLOOKUP(A181,#REF!,4,FALSE))","v":false}]
["Vinš Antonín","Středokluky","1995",28,"300Kč",{"$f":"ISNA(VLOOKUP(A182,#REF!,4,FALSE))","v":false}]
["Coubalová Martina","Vestec","1974",49,"300Kč",{"$f":"ISNA(VLOOKUP(A183,#REF!,4,FALSE))","v":false}]
["Halodová Petra","Vestec","1974",49,"300Kč",{"$f":"ISNA(VLOOKUP(A184,#REF!,4,FALSE))","v":false}]
["Hozman Bohumil","Vestec","1954",69,"300Kč",{"$f":"ISNA(VLOOKUP(A185,#REF!,4,FALSE))","v":false}]
["Ihl Roman","Vestec","1967",56,"300Kč",{"$f":"ISNA(VLOOKUP(A186,#REF!,4,FALSE))","v":false}]
["Jungvirt Tomáš","Vestec","1981",42,"300Kč",{"$f":"ISNA(VLOOKUP(A187,#REF!,4,FALSE))","v":false}]
["Král Jan","Vestec","1955",68,"300Kč",{"$f":"ISNA(VLOOKUP(A188,#REF!,4,FALSE))","v":false}]
["Kurková Marie","Vestec","1973",50,"300Kč",{"$f":"ISNA(VLOOKUP(A189,#REF!,4,FALSE))","v":false}]
["Lachout Miroslav","Vestec","1954",69,"300Kč",{"$f":"ISNA(VLOOKUP(A190,#REF!,4,FALSE))","v":false}]
["Malínek Lukáš","Vestec","1972",51,"300Kč",{"$f":"ISNA(VLOOKUP(A191,#REF!,4,FALSE))","v":false}]
["Michal František","Vestec","1982",41,"300Kč",{"$f":"ISNA(VLOOKUP(A192,#REF!,4,FALSE))","v":false}]
["Novák Michal","Vestec","1998",25,"300Kč",{"$f":"ISNA(VLOOKUP(A193,#REF!,4,FALSE))","v":false}]
["Novák Ondřej","Vestec","1992",{"$f":"YEAR(NOW())-C194","v":31},"300Kč",{"$f":"ISNA(VLOOKUP(A194,#REF!,4,FALSE))","v":false}]
["Přáda Jaroslav","Vestec","1958",65,"300Kč",{"$f":"ISNA(VLOOKUP(A195,#REF!,4,FALSE))","v":false}]
["Ráb Václav","Vestec","1983",40,"300Kč",{"$f":"ISNA(VLOOKUP(A196,#REF!,4,FALSE))","v":false}]
["Rábová Hana","Vestec","1989",34,"300Kč",{"$f":"ISNA(VLOOKUP(A197,#REF!,4,FALSE))","v":false}]
["Řízek Jiří","Vestec","1956",67,"300Kč",{"$f":"ISNA(VLOOKUP(A198,#REF!,4,FALSE))","v":false}]
["Rusová Barbora","Vestec","1985",38,"300Kč",{"$f":"ISNA(VLOOKUP(A199,#REF!,4,FALSE))","v":false}]
["Sedláček Luděk","Vestec","1973",50,"300Kč",{"$f":"ISNA(VLOOKUP(A200,#REF!,4,FALSE))","v":false}]
["Silovský Martin","Vestec","1966",57,"300Kč",{"$f":"ISNA(VLOOKUP(A201,#REF!,4,FALSE))","v":false}]
["Šperl Michal","Vestec","1969",54,"300Kč",{"$f":"ISNA(VLOOKUP(A202,#REF!,4,FALSE))","v":false}]
["Šveňha Jiří","Vestec","1951",72,"300Kč",{"$f":"ISNA(VLOOKUP(A203,#REF!,4,FALSE))","v":false}]
["Břečková Aneta","Úholičky","2008",15,"150Kč",{"$f":"ISNA(VLOOKUP(A204,#REF!,4,FALSE))","v":false}]
["Carvan Miloslav","Úholičky","1957",66,"300Kč",{"$f":"ISNA(VLOOKUP(A205,#REF!,4,FALSE))","v":false}]
["Dalihod Jakub","Úholičky","2001",22,"300Kč",{"$f":"ISNA(VLOOKUP(A206,#REF!,4,FALSE))","v":false}]
["Ducháček Michal","Úholičky","2013",10,"150Kč",{"$f":"ISNA(VLOOKUP(A207,#REF!,4,FALSE))","v":false}]
["Ducháček Petr","Úholičky","2009",14,"150Kč",{"$f":"ISNA(VLOOKUP(A208,#REF!,4,FALSE))","v":false}]
["Ducháčková Radka","Úholičky","1979",44,"300Kč",{"$f":"ISNA(VLOOKUP(A209,#REF!,4,FALSE))","v":false}]
["Dvořák František","Úholičky","2002",21,"300Kč",{"$f":"ISNA(VLOOKUP(A210,#REF!,4,FALSE))","v":false}]
["Dvořák Jiří","Úholičky","1970",53,"300Kč",{"$f":"ISNA(VLOOKUP(A211,#REF!,4,FALSE))","v":false}]
["Dvořáková Martina","Úholičky","1971",52,"300Kč",{"$f":"ISNA(VLOOKUP(A212,#REF!,4,FALSE))","v":false}]
["Hadrava Miloslav","Úholičky","1955",68,"300Kč",{"$f":"ISNA(VLOOKUP(A213,#REF!,4,FALSE))","v":false}]
["Horony Martin","Úholičky","2007",16,"150Kč",{"$f":"ISNA(VLOOKUP(A214,#REF!,4,FALSE))","v":false}]
["Horony Tibor","Úholičky","1971",52,"300Kč",{"$f":"ISNA(VLOOKUP(A215,#REF!,4,FALSE))","v":false}]
["Kočárek Martin","Úholičky","1976",47,"300Kč",{"$f":"ISNA(VLOOKUP(A216,#REF!,4,FALSE))","v":false}]
["Konopásková Kristina","Úholičky","2004",19,"150Kč",{"$f":"ISNA(VLOOKUP(A217,#REF!,4,FALSE))","v":false}]
["Kozel Petr","Úholičky","1968",55,"300Kč",{"$f":"ISNA(VLOOKUP(A218,#REF!,4,FALSE))","v":false}]
["Kozel Vilém","Úholičky","1966",57,"300Kč",{"$f":"ISNA(VLOOKUP(A219,#REF!,4,FALSE))","v":false}]
["Krásný Antonín","Úholičky","1952",71,"300Kč",{"$f":"ISNA(VLOOKUP(A220,#REF!,4,FALSE))","v":false}]
["Kříž Filip","Úholičky","2007",16,"150Kč",{"$f":"ISNA(VLOOKUP(A221,#REF!,4,FALSE))","v":false}]
["Matousch Šimon","Úholičky","2001",22,"300Kč",{"$f":"ISNA(VLOOKUP(A222,#REF!,4,FALSE))","v":false}]
["Novák Martin","Úholičky","1974",49,"300Kč",{"$f":"ISNA(VLOOKUP(A223,#REF!,4,FALSE))","v":false}]
["Novosad Rostislav","Úholičky","1960",63,"300Kč",{"$f":"ISNA(VLOOKUP(A224,#REF!,4,FALSE))","v":false}]
["Otépka Radim","Úholičky","1968",55,"300Kč",{"$f":"ISNA(VLOOKUP(A225,#REF!,4,FALSE))","v":false}]
["Rudolf Tomáš","Úholičky","1973",50,"300Kč",{"$f":"ISNA(VLOOKUP(A226,#REF!,4,FALSE))","v":false}]
["Sazimová Adéla","Úholičky","2008",15,"150Kč",{"$f":"ISNA(VLOOKUP(A227,#REF!,4,FALSE))","v":false}]
["Tesař Ondřej","Úholičky","1982",41,"300Kč",{"$f":"ISNA(VLOOKUP(A228,#REF!,4,FALSE))","v":false}]
["Vojtěch Dušan","Úholičky","1973",50,"300Kč",{"$f":"ISNA(VLOOKUP(A229,#REF!,4,FALSE))","v":false}]
["Vorm Petr","Úholičky","1977",46,"300Kč",{"$f":"ISNA(VLOOKUP(A230,#REF!,4,FALSE))","v":false}]
["Yosypenko Michal","Úholičky","2008",15,"150Kč",{"$f":"ISNA(VLOOKUP(A231,#REF!,4,FALSE))","v":false}]
["Kunc Lukáš","Úholičky","2008",15,"30Kč",{"$f":"ISNA(VLOOKUP(A232,#REF!,4,FALSE))","v":false}]
["Valo Václav","Úholičky","2009",14,"30Kč",{"$f":"ISNA(VLOOKUP(A233,#REF!,4,FALSE))","v":false}]
["Černý Radek","Lety","1987",36,"300Kč",{"$f":"ISNA(VLOOKUP(A234,#REF!,4,FALSE))","v":false}]
["Dvořák Pavel","Lety","1975",48,"300Kč",{"$f":"ISNA(VLOOKUP(A235,#REF!,4,FALSE))","v":false}]
["Fryje Jindřich","Lety","1946",77,"300Kč",{"$f":"ISNA(VLOOKUP(A236,#REF!,4,FALSE))","v":false}]
["Holeček David","Lety","1975",48,"300Kč",{"$f":"ISNA(VLOOKUP(A237,#REF!,4,FALSE))","v":false}]
["Jagoš Václav","Lety","1959",64,"300Kč",{"$f":"ISNA(VLOOKUP(A238,#REF!,4,FALSE))","v":false}]
["Knýbel Pavel","Lety","1976",47,"300Kč",{"$f":"ISNA(VLOOKUP(A239,#REF!,4,FALSE))","v":false}]
["Kosek Jiří","Lety","1971",52,"300Kč",{"$f":"ISNA(VLOOKUP(A240,#REF!,4,FALSE))","v":false}]
["Krisová Marcela","Lety","1978",45,"300Kč",{"$f":"ISNA(VLOOKUP(A241,#REF!,4,FALSE))","v":false}]
["Květoň Jan","Lety","1964",59,"300Kč",{"$f":"ISNA(VLOOKUP(A242,#REF!,4,FALSE))","v":false}]
["Neumann Radim","Lety","1971",52,"300Kč",{"$f":"ISNA(VLOOKUP(A243,#REF!,4,FALSE))","v":false}]
["Nykl Václav","Lety","1970",53,"300Kč",{"$f":"ISNA(VLOOKUP(A244,#REF!,4,FALSE))","v":false}]
["Urban Roman","Lety","1965",58,"300Kč",{"$f":"ISNA(VLOOKUP(A245,#REF!,4,FALSE))","v":false}]
["Vodička Jiří","Lety","1962",61,"300Kč",{"$f":"ISNA(VLOOKUP(A246,#REF!,4,FALSE))","v":false}]
["Barcal Petr","Rudná","1966",57,"300Kč",{"$f":"ISNA(VLOOKUP(A247,#REF!,4,FALSE))","v":false}]
["Bosch Maxmilian","Rudná","2005",18,"150Kč",{"$f":"ISNA(VLOOKUP(A248,#REF!,4,FALSE))","v":false}]
["Bosch Maya","Rudná","2008",15,"150Kč",{"$f":"ISNA(VLOOKUP(A249,#REF!,4,FALSE))","v":false}]
["Cacek Tomáš","Rudná","1987",36,"300Kč",{"$f":"ISNA(VLOOKUP(A250,#REF!,4,FALSE))","v":false}]
["Charvát Vojtěch","Rudná","1951",72,"300Kč",{"$f":"ISNA(VLOOKUP(A251,#REF!,4,FALSE))","v":false}]
["Cihelka Jaroslav","Rudná","1946",77,"300Kč",{"$f":"ISNA(VLOOKUP(A252,#REF!,4,FALSE))","v":false}]
["Foltyn Jiří","Rudná","1985",38,"300Kč",{"$f":"ISNA(VLOOKUP(A253,#REF!,4,FALSE))","v":false}]
["Frýdl Lukáš","Rudná","2010",13,"150Kč",{"$f":"ISNA(VLOOKUP(A254,#REF!,4,FALSE))","v":false}]
["Frýdl Miloš","Rudná","1974",49,"300Kč",{"$f":"ISNA(VLOOKUP(A255,#REF!,4,FALSE))","v":false}]
["Hluchý Marek","Rudná","1989",34,"300Kč",{"$f":"ISNA(VLOOKUP(A256,#REF!,4,FALSE))","v":false}]
["Hora Ondřej","Rudná","2007",16,"150Kč",{"$f":"ISNA(VLOOKUP(A257,#REF!,4,FALSE))","v":false}]
["Jelínek Vladimír","Rudná","1964",{"$f":"YEAR(NOW())-C258","v":59},"300Kč",{"$f":"ISNA(VLOOKUP(A258,#REF!,4,FALSE))","v":false}]
["Jurenka David","Rudná","2007",16,"150Kč",{"$f":"ISNA(VLOOKUP(A259,#REF!,4,FALSE))","v":false}]
["Kolbušovský Michal","Rudná","2005",18,"150Kč",{"$f":"ISNA(VLOOKUP(A260,#REF!,4,FALSE))","v":false}]
["Kreyndl Ilya","Rudná","1955",68,"300Kč",{"$f":"ISNA(VLOOKUP(A261,#REF!,4,FALSE))","v":false}]
["Křižka Václav","Rudná","1972",51,"300Kč",{"$f":"ISNA(VLOOKUP(A262,#REF!,4,FALSE))","v":false}]
["Mayer Lukáš","Rudná","1986",37,"300Kč",{"$f":"ISNA(VLOOKUP(A263,#REF!,4,FALSE))","v":false}]
["Mühlhauser Zdeněk","Rudná","1987",36,"300Kč",{"$f":"ISNA(VLOOKUP(A264,#REF!,4,FALSE))","v":false}]
["Nágr Pavel","Rudná","1966",57,"300Kč",{"$f":"ISNA(VLOOKUP(A265,#REF!,4,FALSE))","v":false}]
["Plecitý Lukáš","Rudná","1988",35,"300Kč",{"$f":"ISNA(VLOOKUP(A266,#REF!,4,FALSE))","v":false}]
["Sedmík Zdeněk","Rudná","1980",43,"300Kč",{"$f":"ISNA(VLOOKUP(A267,#REF!,4,FALSE))","v":false}]
["Šenbauer Jiří","Rudná","1958",65,"300Kč",{"$f":"ISNA(VLOOKUP(A268,#REF!,4,FALSE))","v":false}]
["Sloup Jiří","Rudná","1966",57,"300Kč",{"$f":"ISNA(VLOOKUP(A269,#REF!,4,FALSE))","v":false}]
["Švarcová Liana","Rudná","2009",14,"150Kč",{"$f":"ISNA(VLOOKUP(A270,#REF!,4,FALSE))","v":false}]
["Vraštil Petr","Rudná","1975",48,"300Kč",{"$f":"ISNA(VLOOKUP(A271,#REF!,4,FALSE))","v":false}]
["Wimmerová Lucie","Rudná","1975",48,"300Kč",{"$f":"ISNA(VLOOKUP(A272,#REF!,4,FALSE))","v":false}]
["Zelenka Jaromír","Rudná","1968",55,"300Kč",{"$f":"ISNA(VLOOKUP(A273,#REF!,4,FALSE))","v":false}]
["Báck Bohdan","Rudná","1977",46,"30Kč",{"$f":"ISNA(VLOOKUP(A274,#REF!,4,FALSE))","v":false}]
["Cacek Mikuláš","Rudná","2015",8,"30Kč",{"$f":"ISNA(VLOOKUP(A275,#REF!,4,FALSE))","v":false}]
["Cihelka Radek","Rudná","1973",50,"30Kč",{"$f":"ISNA(VLOOKUP(A276,#REF!,4,FALSE))","v":false}]
["Hanzlík František","Rudná","2006",17,"30Kč",{"$f":"ISNA(VLOOKUP(A277,#REF!,4,FALSE))","v":false}]
["Hrabě Michal","Rudná","2008",15,"30Kč",{"$f":"ISNA(VLOOKUP(A278,#REF!,4,FALSE))","v":false}]
["Juan Tiago","Rudná","2014",9,"30Kč",{"$f":"ISNA(VLOOKUP(A279,#REF!,4,FALSE))","v":false}]
["Kohoutek Kamil","Rudná","1972",51,"30Kč",{"$f":"ISNA(VLOOKUP(A280,#REF!,4,FALSE))","v":false}]
["Kohoutková Karolína","Rudná","2010",13,"30Kč",{"$f":"ISNA(VLOOKUP(A281,#REF!,4,FALSE))","v":false}]
["Kutil Tomáš","Rudná","2008",15,"30Kč",{"$f":"ISNA(VLOOKUP(A282,#REF!,4,FALSE))","v":false}]
["Kutilová Krystýna","Rudná","2009",14,"30Kč",{"$f":"ISNA(VLOOKUP(A283,#REF!,4,FALSE))","v":false}]
["Marval Jan","Rudná","2008",15,"30Kč",{"$f":"ISNA(VLOOKUP(A284,#REF!,4,FALSE))","v":false}]
["Novotný David","Rudná","2013",10,"30Kč",{"$f":"ISNA(VLOOKUP(A285,#REF!,4,FALSE))","v":false}]
["Petříková Johana","Rudná","2013",10,"30Kč",{"$f":"ISNA(VLOOKUP(A286,#REF!,4,FALSE))","v":false}]
["Smetanková Amálie","Rudná","2010",13,"30Kč",{"$f":"ISNA(VLOOKUP(A287,#REF!,4,FALSE))","v":false}]
["Teichman Petr","Rudná","2007",16,"30Kč",{"$f":"ISNA(VLOOKUP(A288,#REF!,4,FALSE))","v":false}]
["Teichman Radim","Rudná","2009",14,"30Kč",{"$f":"ISNA(VLOOKUP(A289,#REF!,4,FALSE))","v":false}]
["Wimmer Vítek","Rudná","2012",11,"30Kč",{"$f":"ISNA(VLOOKUP(A290,#REF!,4,FALSE))","v":false}]
["Kruch Petr","Davle","1966",57,"300Kč",{"$f":"ISNA(VLOOKUP(A291,#REF!,4,FALSE))","v":false}]
["Makovec Milan","Davle","1962",61,"300Kč",{"$f":"ISNA(VLOOKUP(A292,#REF!,4,FALSE))","v":false}]
["Nágl Václav","Davle","1951",72,"300Kč",{"$f":"ISNA(VLOOKUP(A293,#REF!,4,FALSE))","v":false}]
["Prudík Tomáš","Davle","1984",39,"300Kč",{"$f":"ISNA(VLOOKUP(A294,#REF!,4,FALSE))","v":false}]
["Skyva Michal","Davle","2006",17,"150Kč",{"$f":"ISNA(VLOOKUP(A295,#REF!,4,FALSE))","v":false}]
["Tománek František","Davle","1966",57,"300Kč",{"$f":"ISNA(VLOOKUP(A296,#REF!,4,FALSE))","v":false}]
["Braný Václav","Davle","1947",76,"30Kč",{"$f":"ISNA(VLOOKUP(A297,#REF!,4,FALSE))","v":false}]
["Chromych Jan","Davle","2006",17,"30Kč",{"$f":"ISNA(VLOOKUP(A298,#REF!,4,FALSE))","v":false}]
["Hrstka František","Davle","1950",73,"30Kč",{"$f":"ISNA(VLOOKUP(A299,#REF!,4,FALSE))","v":false}]
["Knotek Martin","Davle","2008",15,"30Kč",{"$f":"ISNA(VLOOKUP(A300,#REF!,4,FALSE))","v":false}]
["Lundák Pavel","Davle","2011",12,"30Kč",{"$f":"ISNA(VLOOKUP(A301,#REF!,4,FALSE))","v":false}]
["Müller Vojtěch","Davle","2009",14,"30Kč",{"$f":"ISNA(VLOOKUP(A302,#REF!,4,FALSE))","v":false}]
["Počta Tomáš","Davle","1943",80,"30Kč",{"$f":"ISNA(VLOOKUP(A303,#REF!,4,FALSE))","v":false}]
["Prokůpek Jiří","Davle","2009",14,"30Kč",{"$f":"ISNA(VLOOKUP(A304,#REF!,4,FALSE))","v":false}]
["Slanec Josef","Davle","1942",81,"30Kč",{"$f":"ISNA(VLOOKUP(A305,#REF!,4,FALSE))","v":false}]
["Středa Lukáš","Davle","2010",13,"30Kč",{"$f":"ISNA(VLOOKUP(A306,#REF!,4,FALSE))","v":false}]
["Toman Olin","Davle","2008",15,"30Kč",{"$f":"ISNA(VLOOKUP(A307,#REF!,4,FALSE))","v":false}]
["Vybíral Václav","Davle","2010",13,"30Kč",{"$f":"ISNA(VLOOKUP(A308,#REF!,4,FALSE))","v":false}]
["Bernard Robin","Mníšek","2006",17,"150Kč",{"$f":"ISNA(VLOOKUP(A309,#REF!,4,FALSE))","v":false}]
["Bujárek Milan","Mníšek","1954",69,"300Kč",{"$f":"ISNA(VLOOKUP(A310,#REF!,4,FALSE))","v":false}]
["Dáňa Martin","Mníšek","1963",60,"300Kč",{"$f":"ISNA(VLOOKUP(A311,#REF!,4,FALSE))","v":false}]
["Doležal Tomáš","Mníšek","1988",35,"300Kč",{"$f":"ISNA(VLOOKUP(A312,#REF!,4,FALSE))","v":false}]
["Drašar Jakub","Mníšek","2009",14,"150Kč",{"$f":"ISNA(VLOOKUP(A313,#REF!,4,FALSE))","v":false}]
["Drbohlav Marek","Mníšek","1970",53,"300Kč",{"$f":"ISNA(VLOOKUP(A314,#REF!,4,FALSE))","v":false}]
["Fiala Jan","Mníšek","1998",25,"300Kč",{"$f":"ISNA(VLOOKUP(A315,#REF!,4,FALSE))","v":false}]
["Fiala Ondřej","Mníšek","1991",32,"300Kč",{"$f":"ISNA(VLOOKUP(A316,#REF!,4,FALSE))","v":false}]
["Freisleben Radek","Mníšek","1984",39,"300Kč",{"$f":"ISNA(VLOOKUP(A317,#REF!,4,FALSE))","v":false}]
["Freisleben Zdeněk","Mníšek","1955",68,"300Kč",{"$f":"ISNA(VLOOKUP(A318,#REF!,4,FALSE))","v":false}]
["Freudl David","Mníšek","2009",14,"150Kč",{"$f":"ISNA(VLOOKUP(A319,#REF!,4,FALSE))","v":false}]
["Frinta Matyáš","Mníšek","2009",14,"150Kč",{"$f":"ISNA(VLOOKUP(A320,#REF!,4,FALSE))","v":false}]
["Horák Ondřej","Mníšek","1990",33,"300Kč",{"$f":"ISNA(VLOOKUP(A321,#REF!,4,FALSE))","v":false}]
["Icha Richard","Mníšek","2005",{"$f":"YEAR(NOW())-C322","v":18},"150Kč",{"$f":"ISNA(VLOOKUP(A322,#REF!,4,FALSE))","v":false}]
["Jesenský Ján","Mníšek","2010",13,"150Kč",{"$f":"ISNA(VLOOKUP(A323,#REF!,4,FALSE))","v":false}]
["Kalbáč Karel","Mníšek","1998",25,"300Kč",{"$f":"ISNA(VLOOKUP(A324,#REF!,4,FALSE))","v":false}]
["Kalousek Jindřich","Mníšek","1950",73,"300Kč",{"$f":"ISNA(VLOOKUP(A325,#REF!,4,FALSE))","v":false}]
["Kameník Adam","Mníšek","2010",13,"150Kč",{"$f":"ISNA(VLOOKUP(A326,#REF!,4,FALSE))","v":false}]
["Kilian Vít","Mníšek","1989",34,"300Kč",{"$f":"ISNA(VLOOKUP(A327,#REF!,4,FALSE))","v":false}]
["Kosmina Natalia","Mníšek","1982",41,"300Kč",{"$f":"ISNA(VLOOKUP(A328,#REF!,4,FALSE))","v":false}]
["Macháček Pavel st.","Mníšek","1963",60,"300Kč",{"$f":"ISNA(VLOOKUP(A329,#REF!,4,FALSE))","v":false}]
["Petkanič Vladimír","Mníšek","1965",58,"300Kč",{"$f":"ISNA(VLOOKUP(A330,#REF!,4,FALSE))","v":false}]
["Polavka Zdeněk","Mníšek","1959",64,"300Kč",{"$f":"ISNA(VLOOKUP(A331,#REF!,4,FALSE))","v":false}]
["Pospíšil Antonín","Mníšek","1964",59,"300Kč",{"$f":"ISNA(VLOOKUP(A332,#REF!,4,FALSE))","v":false}]
["Saltanovska Marharyta","Mníšek","1998",25,"300Kč",{"$f":"ISNA(VLOOKUP(A333,#REF!,4,FALSE))","v":false}]
["Selement Jaroslav","Mníšek","1967",56,"300Kč",{"$f":"ISNA(VLOOKUP(A334,#REF!,4,FALSE))","v":false}]
["Skoupil Lukáš","Mníšek","1984",39,"300Kč",{"$f":"ISNA(VLOOKUP(A335,#REF!,4,FALSE))","v":false}]
["Stacho Libor","Mníšek","1966",57,"300Kč",{"$f":"ISNA(VLOOKUP(A336,#REF!,4,FALSE))","v":false}]
["Stržínek Jiří","Mníšek","1950",73,"300Kč",{"$f":"ISNA(VLOOKUP(A337,#REF!,4,FALSE))","v":false}]
["Taller Filip","Mníšek","1989",34,"300Kč",{"$f":"ISNA(VLOOKUP(A338,#REF!,4,FALSE))","v":false}]
["Tkáč Ivan","Mníšek","1978",45,"300Kč",{"$f":"ISNA(VLOOKUP(A339,#REF!,4,FALSE))","v":false}]
["Tůma Martin","Mníšek","1982",41,"300Kč",{"$f":"ISNA(VLOOKUP(A340,#REF!,4,FALSE))","v":false}]
["Urban Jan","Mníšek","1957",66,"300Kč",{"$f":"ISNA(VLOOKUP(A341,#REF!,4,FALSE))","v":false}]
["Zamazal Pavel","Mníšek","1962",61,"300Kč",{"$f":"ISNA(VLOOKUP(A342,#REF!,4,FALSE))","v":false}]
["Fiala Milan","Mníšek","1963",60,"30Kč",{"$f":"ISNA(VLOOKUP(A343,#REF!,4,FALSE))","v":false}]
["Hošek Ondřej","Mníšek","2012",11,"30Kč",{"$f":"ISNA(VLOOKUP(A344,#REF!,4,FALSE))","v":false}]
["Kokeš Oldřich","Mníšek","1945",78,"30Kč",{"$f":"ISNA(VLOOKUP(A345,#REF!,4,FALSE))","v":false}]
["Lacina Thomas","Mníšek","2012",11,"30Kč",{"$f":"ISNA(VLOOKUP(A346,#REF!,4,FALSE))","v":false}]
["Nguyen Tuan Tu","Mníšek","2012",11,"30Kč",{"$f":"ISNA(VLOOKUP(A347,#REF!,4,FALSE))","v":false}]

{"sheet":"evidence_20230925","index":18,"n_rows":321,"n_cols":6,"rows_kept":321,"cut":false,"hidden":false,"merged":[]}
["hrac","oddil","rok narozeni","věk","registrace","Neni na karte Vychozi?"]
["Antoš Vojtěch","Roztoky","2003",{"$f":"YEAR(NOW())-C2","v":20},"300Kč",{"$f":"ISNA(VLOOKUP(A2,vychozi!F:I,4,FALSE))","v":true}]
["Cabicar Šimon","Roztoky","2005",18,"150Kč",{"$f":"ISNA(VLOOKUP(A3,vychozi!F:I,4,FALSE))","v":true}]
["Eibich Jan","Roztoky","1999",24,"300Kč",{"$f":"ISNA(VLOOKUP(A4,vychozi!F:I,4,FALSE))","v":true}]
["Fišman Alexandr","Roztoky","2003",20,"300Kč",{"$f":"ISNA(VLOOKUP(A5,vychozi!F:I,4,FALSE))","v":true}]
["Hloch Matěj","Roztoky","2011",12,"150Kč",{"$f":"ISNA(VLOOKUP(A6,vychozi!F:I,4,FALSE))","v":true}]
["Jakoubek Jakub","Roztoky","1998",25,"300Kč",{"$f":"ISNA(VLOOKUP(A7,vychozi!F:I,4,FALSE))","v":true}]
["Jirásek Jiří","Roztoky","1975",48,"300Kč",{"$f":"ISNA(VLOOKUP(A8,vychozi!F:I,4,FALSE))","v":true}]
["Kalinová Hana","Roztoky","2009",14,"150Kč",{"$f":"ISNA(VLOOKUP(A9,vychozi!F:I,4,FALSE))","v":true}]
["Kuchtová Klára","Roztoky","2005",18,"150Kč",{"$f":"ISNA(VLOOKUP(A10,vychozi!F:I,4,FALSE))","v":true}]
["Levenec Petr","Roztoky","1978",45,"300Kč",{"$f":"ISNA(VLOOKUP(A11,vychozi!F:I,4,FALSE))","v":true}]
["Lukáš Filip nejml.","Roztoky","2011",12,"150Kč",{"$f":"ISNA(VLOOKUP(A12,vychozi!F:I,4,FALSE))","v":true}]
["Lukáš Jakub","Roztoky","1979",44,"300Kč",{"$f":"ISNA(VLOOKUP(A13,vychozi!F:I,4,FALSE))","v":true}]
["Lukáš Lukáš","Roztoky","2006",17,"150Kč",{"$f":"ISNA(VLOOKUP(A14,vychozi!F:I,4,FALSE))","v":true}]
["Machek Jan ml.","Roztoky","2008",15,"150Kč",{"$f":"ISNA(VLOOKUP(A15,vychozi!F:I,4,FALSE))","v":true}]
["Pöschl Miroslav st.","Roztoky","1960",63,"300Kč",{"$f":"ISNA(VLOOKUP(A16,vychozi!F:I,4,FALSE))","v":true}]
["Příhonský Ernesto","Roztoky","2010",13,"150Kč",{"$f":"ISNA(VLOOKUP(A17,vychozi!F:I,4,FALSE))","v":true}]
["Šimon Matyáš","Roztoky","2003",20,"300Kč",{"$f":"ISNA(VLOOKUP(A18,vychozi!F:I,4,FALSE))","v":true}]
["Smrček Michal","Roztoky","1984",39,"300Kč",{"$f":"ISNA(VLOOKUP(A19,vychozi!F:I,4,FALSE))","v":true}]
["Stříbrný Jiří Maxmilián","Roztoky","2006",17,"150Kč",{"$f":"ISNA(VLOOKUP(A20,vychozi!F:I,4,FALSE))","v":true}]
["Šturm Vojtěch","Roztoky","2002",21,"300Kč",{"$f":"ISNA(VLOOKUP(A21,vychozi!F:I,4,FALSE))","v":true}]
["Švarc Martin","Roztoky","1976",47,"300Kč",{"$f":"ISNA(VLOOKUP(A22,vychozi!F:I,4,FALSE))","v":true}]
["Vacek Jiří","Roztoky","1978",45,"300Kč",{"$f":"ISNA(VLOOKUP(A23,vychozi!F:I,4,FALSE))","v":true}]
["Vágner Jonáš","Roztoky","2005",18,"150Kč",{"$f":"ISNA(VLOOKUP(A24,vychozi!F:I,4,FALSE))","v":true}]
["Vašků Karolína","Roztoky","2010",13,"150Kč",{"$f":"ISNA(VLOOKUP(A25,vychozi!F:I,4,FALSE))","v":true}]
["Veselý Milan","Roztoky","1989",34,"300Kč",{"$f":"ISNA(VLOOKUP(A26,vychozi!F:I,4,FALSE))","v":true}]
["Vodňanský Martin","Roztoky","1981",42,"300Kč",{"$f":"ISNA(VLOOKUP(A27,vychozi!F:I,4,FALSE))","v":true}]
["Vondrová Kristýna nejst.","Roztoky","2003",20,"300Kč",{"$f":"ISNA(VLOOKUP(A28,vychozi!F:I,4,FALSE))","v":true}]
["Žáček Josef","Roztoky","1970",53,"300Kč",{"$f":"ISNA(VLOOKUP(A29,vychozi!F:I,4,FALSE))","v":true}]
["Zwiefelhofer Jiří","Roztoky","1964",59,"300Kč",{"$f":"ISNA(VLOOKUP(A30,vychozi!F:I,4,FALSE))","v":true}]
["Čáp Martin","Černošice","1975",48,"300Kč",{"$f":"ISNA(VLOOKUP(A31,vychozi!F:I,4,FALSE))","v":true}]
["Charvát Petr","Černošice","1947",76,"300Kč",{"$f":"ISNA(VLOOKUP(A32,vychozi!F:I,4,FALSE))","v":true}]
["Cimler Lukáš","Černošice","1987",36,"300Kč",{"$f":"ISNA(VLOOKUP(A33,vychozi!F:I,4,FALSE))","v":true}]
["Deré Michal","Černošice","1974",49,"300Kč",{"$f":"ISNA(VLOOKUP(A34,vychozi!F:I,4,FALSE))","v":true}]
["Fajt Jakub","Černošice","2009",14,"150Kč",{"$f":"ISNA(VLOOKUP(A35,vychozi!F:I,4,FALSE))","v":false}]
["Fischer Jiří","Černošice","1964",59,"300Kč",{"$f":"ISNA(VLOOKUP(A36,vychozi!F:I,4,FALSE))","v":true}]
["Franěk Matyáš","Černošice","2008",15,"150Kč",{"$f":"ISNA(VLOOKUP(A37,vychozi!F:I,4,FALSE))","v":false}]
["Hlaváček Daniel","Černošice","2009",14,"150Kč",{"$f":"ISNA(VLOOKUP(A38,vychozi!F:I,4,FALSE))","v":false}]
["Hlavenka Joel Mathias","Černošice","2007",16,"150Kč",{"$f":"ISNA(VLOOKUP(A39,vychozi!F:I,4,FALSE))","v":false}]
["Hlavenka Patrik","Černošice","1975",48,"300Kč",{"$f":"ISNA(VLOOKUP(A40,vychozi!F:I,4,FALSE))","v":true}]
["Hlavenka Eli Theodor","Černošice","2010",13,"150Kč",{"$f":"ISNA(VLOOKUP(A41,vychozi!F:I,4,FALSE))","v":false}]
["Hrdina Pavel","Černošice","1971",52,"300Kč",{"$f":"ISNA(VLOOKUP(A42,vychozi!F:I,4,FALSE))","v":true}]
["Hron Matyáš","Černošice","2009",14,"150Kč",{"$f":"ISNA(VLOOKUP(A43,vychozi!F:I,4,FALSE))","v":false}]
["Kuliš David","Černošice","2007",16,"150Kč",{"$f":"ISNA(VLOOKUP(A44,vychozi!F:I,4,FALSE))","v":false}]
["Lágner Petr","Černošice","1974",49,"300Kč",{"$f":"ISNA(VLOOKUP(A45,vychozi!F:I,4,FALSE))","v":true}]
["Nosek Michal","Černošice","1985",38,"300Kč",{"$f":"ISNA(VLOOKUP(A46,vychozi!F:I,4,FALSE))","v":true}]
["Roztočilová Tereza","Černošice","2001",22,"300Kč",{"$f":"ISNA(VLOOKUP(A47,vychozi!F:I,4,FALSE))","v":true}]
["Šercl Jan","Černošice","1965",58,"300Kč",{"$f":"ISNA(VLOOKUP(A48,vychozi!F:I,4,FALSE))","v":true}]
["Souček Jan","Černošice","2000",23,"300Kč",{"$f":"ISNA(VLOOKUP(A49,vychozi!F:I,4,FALSE))","v":true}]
["Šteiger Dominik","Černošice","2002",21,"300Kč",{"$f":"ISNA(VLOOKUP(A50,vychozi!F:I,4,FALSE))","v":true}]
["Strakoš Jan","Černošice","1974",49,"300Kč",{"$f":"ISNA(VLOOKUP(A51,vychozi!F:I,4,FALSE))","v":true}]
["Suchý Michal","Černošice","1976",47,"300Kč",{"$f":"ISNA(VLOOKUP(A52,vychozi!F:I,4,FALSE))","v":true}]
["Tichý Jiří","Černošice","1947",76,"300Kč",{"$f":"ISNA(VLOOKUP(A53,vychozi!F:I,4,FALSE))","v":true}]
["Veselý Petr","Černošice","1987",36,"300Kč",{"$f":"ISNA(VLOOKUP(A54,vychozi!F:I,4,FALSE))","v":true}]
["Zmatlík Lukáš","Černošice","1993",30,"300Kč",{"$f":"ISNA(VLOOKUP(A55,vychozi!F:I,4,FALSE))","v":true}]
["Zmatlík Petr","Černošice","1957",66,"300Kč",{"$f":"ISNA(VLOOKUP(A56,vychozi!F:I,4,FALSE))","v":true}]
["Zúbek Ondřej","Černošice","2003",20,"300Kč",{"$f":"ISNA(VLOOKUP(A57,vychozi!F:I,4,FALSE))","v":true}]
["Anderson Ben","Únětice","1958",65,"300Kč",{"$f":"ISNA(VLOOKUP(A58,vychozi!F:I,4,FALSE))","v":true}]
["Bartoš Jiří","Únětice","1957",66,"300Kč",{"$f":"ISNA(VLOOKUP(A59,vychozi!F:I,4,FALSE))","v":true}]
["Faltin Bohumil","Únětice","2003",20,"300Kč",{"$f":"ISNA(VLOOKUP(A60,vychozi!F:I,4,FALSE))","v":true}]
["Faltin Miloš","Únětice","1972",51,"300Kč",{"$f":"ISNA(VLOOKUP(A61,vychozi!F:I,4,FALSE))","v":true}]
["Franc Martin","Únětice","1973",50,"300Kč",{"$f":"ISNA(VLOOKUP(A62,vychozi!F:I,4,FALSE))","v":true}]
["Freisleben Robin","Únětice","1971",52,"300Kč",{"$f":"ISNA(VLOOKUP(A63,vychozi!F:I,4,FALSE))","v":true}]
["Freislebenová Sára","Únětice","2005",18,"150Kč",{"$f":"ISNA(VLOOKUP(A64,vychozi!F:I,4,FALSE))","v":true}]
["Hájková Kateřina","Únětice","1973",50,"300Kč",{"$f":"ISNA(VLOOKUP(A65,vychozi!F:I,4,FALSE))","v":true}]
["Hrouda Jakub","Únětice","2002",{"$f":"YEAR(NOW())-C66","v":21},"300Kč",{"$f":"ISNA(VLOOKUP(A66,vychozi!F:I,4,FALSE))","v":true}]
["Hurych Vlastislav","Únětice","1972",51,"300Kč",{"$f":"ISNA(VLOOKUP(A67,vychozi!F:I,4,FALSE))","v":true}]
["Javůrek Filip","Únětice","1991",32,"300Kč",{"$f":"ISNA(VLOOKUP(A68,vychozi!F:I,4,FALSE))","v":true}]
["Kratochvíl Jiří","Únětice","1969",54,"300Kč",{"$f":"ISNA(VLOOKUP(A69,vychozi!F:I,4,FALSE))","v":true}]
["Krupička Radim","Únětice","1974",49,"300Kč",{"$f":"ISNA(VLOOKUP(A70,vychozi!F:I,4,FALSE))","v":true}]
["Podolský Tomáš","Únětice","1989",34,"300Kč",{"$f":"ISNA(VLOOKUP(A71,vychozi!F:I,4,FALSE))","v":true}]
["Potužník Adam","Únětice","2003",20,"300Kč",{"$f":"ISNA(VLOOKUP(A72,vychozi!F:I,4,FALSE))","v":true}]
["Potužník Václav","Únětice","1972",51,"300Kč",{"$f":"ISNA(VLOOKUP(A73,vychozi!F:I,4,FALSE))","v":true}]
["Sitta Radomír","Únětice","1969",54,"300Kč",{"$f":"ISNA(VLOOKUP(A74,vychozi!F:I,4,FALSE))","v":true}]
["Trubnikov Stanislav","Únětice","1965",58,"300Kč",{"$f":"ISNA(VLOOKUP(A75,vychozi!F:I,4,FALSE))","v":true}]
["Bartoň Milan","Libčice","1975",48,"300Kč",{"$f":"ISNA(VLOOKUP(A76,vychozi!F:I,4,FALSE))","v":true}]
["Bartoš Pavel","Libčice","1984",39,"300Kč",{"$f":"ISNA(VLOOKUP(A77,vychozi!F:I,4,FALSE))","v":true}]
["Beltrám Javier Ernesto","Libčice","1978",45,"300Kč",{"$f":"ISNA(VLOOKUP(A78,vychozi!F:I,4,FALSE))","v":true}]
["Boháč Antonín","Libčice","2008",15,"150Kč",{"$f":"ISNA(VLOOKUP(A79,vychozi!F:I,4,FALSE))","v":false}]
["Boháčová Simona","Libčice","1976",47,"300Kč",{"$f":"ISNA(VLOOKUP(A80,vychozi!F:I,4,FALSE))","v":true}]
["Česák Michal","Libčice","1991",32,"300Kč",{"$f":"ISNA(VLOOKUP(A81,vychozi!F:I,4,FALSE))","v":true}]
["Dostál Ondřej","Libčice","2009",14,"150Kč",{"$f":"ISNA(VLOOKUP(A82,vychozi!F:I,4,FALSE))","v":false}]
["Dostál Zdeněk","Libčice","1976",47,"300Kč",{"$f":"ISNA(VLOOKUP(A83,vychozi!F:I,4,FALSE))","v":true}]
["Dostálová Aneta","Libčice","2006",17,"150Kč",{"$f":"ISNA(VLOOKUP(A84,vychozi!F:I,4,FALSE))","v":false}]
["Framberk Jan","Libčice","1977",46,"300Kč",{"$f":"ISNA(VLOOKUP(A85,vychozi!F:I,4,FALSE))","v":true}]
["Framberk Mikuláš","Libčice","2013",10,"150Kč",{"$f":"ISNA(VLOOKUP(A86,vychozi!F:I,4,FALSE))","v":false}]
["Ghodrati Hanieh","Libčice","1985",38,"300Kč",{"$f":"ISNA(VLOOKUP(A87,vychozi!F:I,4,FALSE))","v":true}]
["Hodač Jan","Libčice","1981",42,"300Kč",{"$f":"ISNA(VLOOKUP(A88,vychozi!F:I,4,FALSE))","v":true}]
["Juda František","Libčice","2006",17,"150Kč",{"$f":"ISNA(VLOOKUP(A89,vychozi!F:I,4,FALSE))","v":false}]
["Klinga Petr","Libčice","1963",60,"300Kč",{"$f":"ISNA(VLOOKUP(A90,vychozi!F:I,4,FALSE))","v":true}]
["Konvalinka Michal","Libčice","1985",38,"300Kč",{"$f":"ISNA(VLOOKUP(A91,vychozi!F:I,4,FALSE))","v":true}]
["Manek Jakub","Libčice","2000",23,"300Kč",{"$f":"ISNA(VLOOKUP(A92,vychozi!F:I,4,FALSE))","v":true}]
["Musil Ondřej","Libčice","2009",14,"150Kč",{"$f":"ISNA(VLOOKUP(A93,vychozi!F:I,4,FALSE))","v":false}]
["Nováková Karolina","Libčice","2005",18,"150Kč",{"$f":"ISNA(VLOOKUP(A94,vychozi!F:I,4,FALSE))","v":true}]
["Patras Matyáš","Libčice","2007",16,"150Kč",{"$f":"ISNA(VLOOKUP(A95,vychozi!F:I,4,FALSE))","v":false}]
["Ponáhlo Michal","Libčice","2007",16,"150Kč",{"$f":"ISNA(VLOOKUP(A96,vychozi!F:I,4,FALSE))","v":false}]
["Richter Jaroslav ml.","Libčice","1973",50,"300Kč",{"$f":"ISNA(VLOOKUP(A97,vychozi!F:I,4,FALSE))","v":true}]
["Richter Jaroslav st.","Libčice","1951",72,"300Kč",{"$f":"ISNA(VLOOKUP(A98,vychozi!F:I,4,FALSE))","v":true}]
["Richter Vojtěch","Libčice","1974",49,"300Kč",{"$f":"ISNA(VLOOKUP(A99,vychozi!F:I,4,FALSE))","v":true}]
["Slaměník Richard","Libčice","1961",62,"300Kč",{"$f":"ISNA(VLOOKUP(A100,vychozi!F:I,4,FALSE))","v":true}]
["Špiegel Jan","Libčice","1961",62,"300Kč",{"$f":"ISNA(VLOOKUP(A101,vychozi!F:I,4,FALSE))","v":true}]
["Šulc Dalibor","Libčice","1953",70,"300Kč",{"$f":"ISNA(VLOOKUP(A102,vychozi!F:I,4,FALSE))","v":true}]
["Telipský Josef","Libčice","1968",55,"300Kč",{"$f":"ISNA(VLOOKUP(A103,vychozi!F:I,4,FALSE))","v":true}]
["Tkadlec Jaroslav","Libčice","1951",72,"300Kč",{"$f":"ISNA(VLOOKUP(A104,vychozi!F:I,4,FALSE))","v":true}]
["Tobolář Jindřich","Libčice","2009",14,"150Kč",{"$f":"ISNA(VLOOKUP(A105,vychozi!F:I,4,FALSE))","v":false}]
["Tobolář Karel","Libčice","1976",47,"300Kč",{"$f":"ISNA(VLOOKUP(A106,vychozi!F:I,4,FALSE))","v":true}]
["Votoček Jaroslav","Libčice","1950",73,"300Kč",{"$f":"ISNA(VLOOKUP(A107,vychozi!F:I,4,FALSE))","v":true}]
["Žambokréthyová Milena","Libčice","1989",34,"300Kč",{"$f":"ISNA(VLOOKUP(A108,vychozi!F:I,4,FALSE))","v":true}]
["Fišer Štefan","Libčice","1984",39,"30Kč",{"$f":"ISNA(VLOOKUP(A109,vychozi!F:I,4,FALSE))","v":true}]
["Kosnar Vladimír","Libčice","1944",79,"30Kč",{"$f":"ISNA(VLOOKUP(A110,vychozi!F:I,4,FALSE))","v":true}]
["Andrlík Dalibor","Ořech","2010",13,"150Kč",{"$f":"ISNA(VLOOKUP(A111,vychozi!F:I,4,FALSE))","v":false}]
["Blažek Jiří","Ořech","1994",29,"300Kč",{"$f":"ISNA(VLOOKUP(A112,vychozi!F:I,4,FALSE))","v":true}]
["Bulín Zdeněk","Ořech","1972",51,"300Kč",{"$f":"ISNA(VLOOKUP(A113,vychozi!F:I,4,FALSE))","v":true}]
["Čierny Alexander","Ořech","1971",52,"300Kč",{"$f":"ISNA(VLOOKUP(A114,vychozi!F:I,4,FALSE))","v":true}]
["Fiala Tobiáš","Ořech","2010",13,"150Kč",{"$f":"ISNA(VLOOKUP(A115,vychozi!F:I,4,FALSE))","v":false}]
["Fürst Mirko","Ořech","1946",77,"300Kč",{"$f":"ISNA(VLOOKUP(A116,vychozi!F:I,4,FALSE))","v":true}]
["Heřman Miroslav","Ořech","1978",45,"300Kč",{"$f":"ISNA(VLOOKUP(A117,vychozi!F:I,4,FALSE))","v":true}]
["Hlaváč Jan","Ořech","2001",22,"300Kč",{"$f":"ISNA(VLOOKUP(A118,vychozi!F:I,4,FALSE))","v":true}]
["Hruška Ondřej","Ořech","1995",28,"300Kč",{"$f":"ISNA(VLOOKUP(A119,vychozi!F:I,4,FALSE))","v":true}]
["Kabátník Ondra","Ořech","2010",13,"150Kč",{"$f":"ISNA(VLOOKUP(A120,vychozi!F:I,4,FALSE))","v":false}]
["Kohlík Miroslav ml.","Ořech","1973",50,"300Kč",{"$f":"ISNA(VLOOKUP(A121,vychozi!F:I,4,FALSE))","v":true}]
["Koteljuk Adam","Ořech","2010",13,"150Kč",{"$f":"ISNA(VLOOKUP(A122,vychozi!F:I,4,FALSE))","v":false}]
["Kranát Petr","Ořech","2009",14,"150Kč",{"$f":"ISNA(VLOOKUP(A123,vychozi!F:I,4,FALSE))","v":false}]
["Krasničan Jaroslav","Ořech","1977",46,"300Kč",{"$f":"ISNA(VLOOKUP(A124,vychozi!F:I,4,FALSE))","v":true}]
["Krejčová Barbora","Ořech","1996",27,"300Kč",{"$f":"ISNA(VLOOKUP(A125,vychozi!F:I,4,FALSE))","v":true}]
["Matoušek Michal","Ořech","1982",41,"300Kč",{"$f":"ISNA(VLOOKUP(A126,vychozi!F:I,4,FALSE))","v":true}]
["Matoušek Tomáš","Ořech","1985",38,"300Kč",{"$f":"ISNA(VLOOKUP(A127,vychozi!F:I,4,FALSE))","v":true}]
["Matoušek Zdeněk","Ořech","1956",67,"300Kč",{"$f":"ISNA(VLOOKUP(A128,vychozi!F:I,4,FALSE))","v":true}]
["Novák Marek","Ořech","1996",27,"300Kč",{"$f":"ISNA(VLOOKUP(A129,vychozi!F:I,4,FALSE))","v":true}]
["Paliatka Jakub","Ořech","2009",{"$f":"YEAR(NOW())-C130","v":14},"150Kč",{"$f":"ISNA(VLOOKUP(A130,vychozi!F:I,4,FALSE))","v":false}]
["Pavlín Jiří","Ořech","1962",61,"300Kč",{"$f":"ISNA(VLOOKUP(A131,vychozi!F:I,4,FALSE))","v":true}]
["Píš Daniel","Ořech","1969",54,"300Kč",{"$f":"ISNA(VLOOKUP(A132,vychozi!F:I,4,FALSE))","v":true}]
["Píš Ondřej","Ořech","1995",28,"300Kč",{"$f":"ISNA(VLOOKUP(A133,vychozi!F:I,4,FALSE))","v":true}]
["Poncar Karel","Ořech","2001",22,"300Kč",{"$f":"ISNA(VLOOKUP(A134,vychozi!F:I,4,FALSE))","v":true}]
["Pražská Lenka","Ořech","1966",57,"300Kč",{"$f":"ISNA(VLOOKUP(A135,vychozi!F:I,4,FALSE))","v":true}]
["Ptáčník Martin","Ořech","1989",34,"300Kč",{"$f":"ISNA(VLOOKUP(A136,vychozi!F:I,4,FALSE))","v":true}]
["Redlich Michal","Ořech","2003",20,"300Kč",{"$f":"ISNA(VLOOKUP(A137,vychozi!F:I,4,FALSE))","v":true}]
["Rein Tomáš","Ořech","2005",18,"150Kč",{"$f":"ISNA(VLOOKUP(A138,vychozi!F:I,4,FALSE))","v":true}]
["Severa Martin","Ořech","1968",55,"300Kč",{"$f":"ISNA(VLOOKUP(A139,vychozi!F:I,4,FALSE))","v":true}]
["Šimák Jaroslav","Ořech","2010",13,"150Kč",{"$f":"ISNA(VLOOKUP(A140,vychozi!F:I,4,FALSE))","v":false}]
["Škoda Jiří","Ořech","1992",31,"300Kč",{"$f":"ISNA(VLOOKUP(A141,vychozi!F:I,4,FALSE))","v":true}]
["Skřivánek Jiří","Ořech","1973",50,"300Kč",{"$f":"ISNA(VLOOKUP(A142,vychozi!F:I,4,FALSE))","v":true}]
["Soukup Vojtěch","Ořech","2002",21,"300Kč",{"$f":"ISNA(VLOOKUP(A143,vychozi!F:I,4,FALSE))","v":true}]
["Špaček Matěj","Ořech","2010",13,"150Kč",{"$f":"ISNA(VLOOKUP(A144,vychozi!F:I,4,FALSE))","v":false}]
["Šťastná Dominika","Ořech","2008",15,"150Kč",{"$f":"ISNA(VLOOKUP(A145,vychozi!F:I,4,FALSE))","v":false}]
["Šťastná Nataly","Ořech","2008",15,"150Kč",{"$f":"ISNA(VLOOKUP(A146,vychozi!F:I,4,FALSE))","v":false}]
["Šťastný Jan","Ořech","2008",15,"150Kč",{"$f":"ISNA(VLOOKUP(A147,vychozi!F:I,4,FALSE))","v":false}]
["Stejskal Michal","Ořech","1997",26,"300Kč",{"$f":"ISNA(VLOOKUP(A148,vychozi!F:I,4,FALSE))","v":true}]
["Šulc Adam","Ořech","2009",14,"150Kč",{"$f":"ISNA(VLOOKUP(A149,vychozi!F:I,4,FALSE))","v":false}]
["Vávra Aleš","Ořech","1998",25,"300Kč",{"$f":"ISNA(VLOOKUP(A150,vychozi!F:I,4,FALSE))","v":true}]
["Veselý Miroslav","Ořech","1965",58,"300Kč",{"$f":"ISNA(VLOOKUP(A151,vychozi!F:I,4,FALSE))","v":true}]
["Veverka Jan","Ořech","1997",26,"300Kč",{"$f":"ISNA(VLOOKUP(A152,vychozi!F:I,4,FALSE))","v":true}]
["Veverka Václav ml.","Ořech","2000",23,"300Kč",{"$f":"ISNA(VLOOKUP(A153,vychozi!F:I,4,FALSE))","v":true}]
["Veverka Václav st.","Ořech","1961",62,"300Kč",{"$f":"ISNA(VLOOKUP(A154,vychozi!F:I,4,FALSE))","v":true}]
["Yaroslavtsev Vitaly","Ořech","1959",64,"300Kč",{"$f":"ISNA(VLOOKUP(A155,vychozi!F:I,4,FALSE))","v":true}]
["Zacharda Aleš","Ořech","1972",51,"300Kč",{"$f":"ISNA(VLOOKUP(A156,vychozi!F:I,4,FALSE))","v":true}]
["Auf Tadeáš","Ořech","2006",17,"30Kč",{"$f":"ISNA(VLOOKUP(A157,vychozi!F:I,4,FALSE))","v":false}]
["Brůna Jiří","Ořech","1958",65,"30Kč",{"$f":"ISNA(VLOOKUP(A158,vychozi!F:I,4,FALSE))","v":true}]
["Cafourek Tomáš","Ořech","2000",23,"30Kč",{"$f":"ISNA(VLOOKUP(A159,vychozi!F:I,4,FALSE))","v":true}]
["Flusser Martin","Ořech","1991",32,"30Kč",{"$f":"ISNA(VLOOKUP(A160,vychozi!F:I,4,FALSE))","v":true}]
["Helt Miroslav","Ořech","1951",72,"30Kč",{"$f":"ISNA(VLOOKUP(A161,vychozi!F:I,4,FALSE))","v":true}]
["Horáčková Anežka","Ořech","2009",14,"30Kč",{"$f":"ISNA(VLOOKUP(A162,vychozi!F:I,4,FALSE))","v":false}]
["Hudák Tomáš","Ořech","2004",19,"30Kč",{"$f":"ISNA(VLOOKUP(A163,vychozi!F:I,4,FALSE))","v":true}]
["Jambor Václav","Ořech","1945",78,"30Kč",{"$f":"ISNA(VLOOKUP(A164,vychozi!F:I,4,FALSE))","v":true}]
["Kohlík Miroslav st.","Ořech","1949",74,"30Kč",{"$f":"ISNA(VLOOKUP(A165,vychozi!F:I,4,FALSE))","v":true}]
["Kotěšovská Tereza","Ořech","2002",21,"30Kč",{"$f":"ISNA(VLOOKUP(A166,vychozi!F:I,4,FALSE))","v":true}]
["Kotěšovský Jan","Ořech","2002",21,"30Kč",{"$f":"ISNA(VLOOKUP(A167,vychozi!F:I,4,FALSE))","v":true}]
["Krolop David","Ořech","1991",32,"30Kč",{"$f":"ISNA(VLOOKUP(A168,vychozi!F:I,4,FALSE))","v":true}]
["Němejc Melichar","Ořech","2005",18,"30Kč",{"$f":"ISNA(VLOOKUP(A169,vychozi!F:I,4,FALSE))","v":true}]
["Novák Tomáš","Ořech","1968",55,"30Kč",{"$f":"ISNA(VLOOKUP(A170,vychozi!F:I,4,FALSE))","v":true}]
["Pavlín Šimon","Ořech","1997",26,"30Kč",{"$f":"ISNA(VLOOKUP(A171,vychozi!F:I,4,FALSE))","v":true}]
["Pražský Michal","Ořech","1997",26,"30Kč",{"$f":"ISNA(VLOOKUP(A172,vychozi!F:I,4,FALSE))","v":true}]
["Sladovník David","Ořech","1995",28,"30Kč",{"$f":"ISNA(VLOOKUP(A173,vychozi!F:I,4,FALSE))","v":true}]
["Šrenk Štěpán","Ořech","2001",22,"30Kč",{"$f":"ISNA(VLOOKUP(A174,vychozi!F:I,4,FALSE))","v":true}]
["Coubalová Martina","Vestec","1974",49,"300Kč",{"$f":"ISNA(VLOOKUP(A175,vychozi!F:I,4,FALSE))","v":true}]
["Halodová Petra","Vestec","1974",49,"300Kč",{"$f":"ISNA(VLOOKUP(A176,vychozi!F:I,4,FALSE))","v":true}]
["Hozman Bohumil","Vestec","1954",69,"300Kč",{"$f":"ISNA(VLOOKUP(A177,vychozi!F:I,4,FALSE))","v":true}]
["Ihl Roman","Vestec","1967",56,"300Kč",{"$f":"ISNA(VLOOKUP(A178,vychozi!F:I,4,FALSE))","v":true}]
["Jungvirt Tomáš","Vestec","1981",42,"300Kč",{"$f":"ISNA(VLOOKUP(A179,vychozi!F:I,4,FALSE))","v":true}]
["Kratochvíl Christian","Vestec","1999",24,"300Kč",{"$f":"ISNA(VLOOKUP(A180,vychozi!F:I,4,FALSE))","v":true}]
["Kurková Marie","Vestec","1973",50,"300Kč",{"$f":"ISNA(VLOOKUP(A181,vychozi!F:I,4,FALSE))","v":true}]
["Lachout Miroslav","Vestec","1954",69,"300Kč",{"$f":"ISNA(VLOOKUP(A182,vychozi!F:I,4,FALSE))","v":true}]
["Malínek Lukáš","Vestec","1972",51,"300Kč",{"$f":"ISNA(VLOOKUP(A183,vychozi!F:I,4,FALSE))","v":true}]
["Michal František","Vestec","1982",41,"300Kč",{"$f":"ISNA(VLOOKUP(A184,vychozi!F:I,4,FALSE))","v":true}]
["Novák Michal","Vestec","1998",25,"300Kč",{"$f":"ISNA(VLOOKUP(A185,vychozi!F:I,4,FALSE))","v":true}]
["Novák Ondřej","Vestec","1992",31,"300Kč",{"$f":"ISNA(VLOOKUP(A186,vychozi!F:I,4,FALSE))","v":true}]
["Ostatnická Jana","Vestec","1983",40,"300Kč",{"$f":"ISNA(VLOOKUP(A187,vychozi!F:I,4,FALSE))","v":true}]
["Řízek Jiří","Vestec","1956",67,"300Kč",{"$f":"ISNA(VLOOKUP(A188,vychozi!F:I,4,FALSE))","v":true}]
["Rusová Barbora","Vestec","1985",38,"300Kč",{"$f":"ISNA(VLOOKUP(A189,vychozi!F:I,4,FALSE))","v":true}]
["Silovský Martin","Vestec","1966",57,"300Kč",{"$f":"ISNA(VLOOKUP(A190,vychozi!F:I,4,FALSE))","v":true}]
["Šperl Michal","Vestec","1969",54,"300Kč",{"$f":"ISNA(VLOOKUP(A191,vychozi!F:I,4,FALSE))","v":true}]
["Štefan Martin","Vestec","1982",41,"300Kč",{"$f":"ISNA(VLOOKUP(A192,vychozi!F:I,4,FALSE))","v":true}]
["Adlof Lukáš","Úholičky","2007",16,"150Kč",{"$f":"ISNA(VLOOKUP(A193,vychozi!F:I,4,FALSE))","v":false}]
["Břečková Aneta","Úholičky","2008",{"$f":"YEAR(NOW())-C194","v":15},"150Kč",{"$f":"ISNA(VLOOKUP(A194,vychozi!F:I,4,FALSE))","v":false}]
["Carvan Miloslav","Úholičky","1957",66,"300Kč",{"$f":"ISNA(VLOOKUP(A195,vychozi!F:I,4,FALSE))","v":true}]
["Dalihod Jakub","Úholičky","2001",22,"300Kč",{"$f":"ISNA(VLOOKUP(A196,vychozi!F:I,4,FALSE))","v":true}]
["Ducháček Michal","Úholičky","2013",10,"150Kč",{"$f":"ISNA(VLOOKUP(A197,vychozi!F:I,4,FALSE))","v":false}]
["Ducháček Petr","Úholičky","2009",14,"150Kč",{"$f":"ISNA(VLOOKUP(A198,vychozi!F:I,4,FALSE))","v":false}]
["Ducháčková Radka","Úholičky","1979",44,"300Kč",{"$f":"ISNA(VLOOKUP(A199,vychozi!F:I,4,FALSE))","v":true}]
["Dvořák František","Úholičky","2002",21,"300Kč",{"$f":"ISNA(VLOOKUP(A200,vychozi!F:I,4,FALSE))","v":true}]
["Dvořák Jiří","Úholičky","1970",53,"300Kč",{"$f":"ISNA(VLOOKUP(A201,vychozi!F:I,4,FALSE))","v":true}]
["Dvořáková Martina","Úholičky","1971",52,"300Kč",{"$f":"ISNA(VLOOKUP(A202,vychozi!F:I,4,FALSE))","v":true}]
["Feitz František","Úholičky","2008",15,"150Kč",{"$f":"ISNA(VLOOKUP(A203,vychozi!F:I,4,FALSE))","v":false}]
["Hadrava Miloslav","Úholičky","1955",68,"300Kč",{"$f":"ISNA(VLOOKUP(A204,vychozi!F:I,4,FALSE))","v":true}]
["Hluchý Marek","Úholičky","1989",34,"300Kč",{"$f":"ISNA(VLOOKUP(A205,vychozi!F:I,4,FALSE))","v":true}]
["Horony Tibor","Úholičky","1971",52,"300Kč",{"$f":"ISNA(VLOOKUP(A206,vychozi!F:I,4,FALSE))","v":true}]
["Kočárek Martin","Úholičky","1976",47,"300Kč",{"$f":"ISNA(VLOOKUP(A207,vychozi!F:I,4,FALSE))","v":true}]
["Kozel Petr","Úholičky","1968",55,"300Kč",{"$f":"ISNA(VLOOKUP(A208,vychozi!F:I,4,FALSE))","v":true}]
["Kozel Vilém","Úholičky","1966",57,"300Kč",{"$f":"ISNA(VLOOKUP(A209,vychozi!F:I,4,FALSE))","v":true}]
["Krásný Antonín","Úholičky","1952",71,"300Kč",{"$f":"ISNA(VLOOKUP(A210,vychozi!F:I,4,FALSE))","v":true}]
["Kunc Lukáš","Úholičky","2008",15,"150Kč",{"$f":"ISNA(VLOOKUP(A211,vychozi!F:I,4,FALSE))","v":false}]
["Lauko Ladislav","Úholičky","1975",48,"300Kč",{"$f":"ISNA(VLOOKUP(A212,vychozi!F:I,4,FALSE))","v":true}]
["Matousch Šimon","Úholičky","2001",22,"300Kč",{"$f":"ISNA(VLOOKUP(A213,vychozi!F:I,4,FALSE))","v":true}]
["Novák Martin","Úholičky","1974",49,"300Kč",{"$f":"ISNA(VLOOKUP(A214,vychozi!F:I,4,FALSE))","v":true}]
["Novosad Rostislav","Úholičky","1960",63,"300Kč",{"$f":"ISNA(VLOOKUP(A215,vychozi!F:I,4,FALSE))","v":true}]
["Otépka Radim","Úholičky","1968",55,"300Kč",{"$f":"ISNA(VLOOKUP(A216,vychozi!F:I,4,FALSE))","v":true}]
["Rudolf Tomáš","Úholičky","1973",50,"300Kč",{"$f":"ISNA(VLOOKUP(A217,vychozi!F:I,4,FALSE))","v":true}]
["Sazimová Adéla","Úholičky","2008",15,"150Kč",{"$f":"ISNA(VLOOKUP(A218,vychozi!F:I,4,FALSE))","v":false}]
["Stára Jakub","Úholičky","2008",15,"150Kč",{"$f":"ISNA(VLOOKUP(A219,vychozi!F:I,4,FALSE))","v":false}]
["Tesař Ondřej","Úholičky","1982",41,"300Kč",{"$f":"ISNA(VLOOKUP(A220,vychozi!F:I,4,FALSE))","v":true}]
["Valo Václav","Úholičky","2009",14,"150Kč",{"$f":"ISNA(VLOOKUP(A221,vychozi!F:I,4,FALSE))","v":false}]
["Vojtěch Dušan","Úholičky","1973",50,"300Kč",{"$f":"ISNA(VLOOKUP(A222,vychozi!F:I,4,FALSE))","v":true}]
["Vorm Petr","Úholičky","1977",46,"300Kč",{"$f":"ISNA(VLOOKUP(A223,vychozi!F:I,4,FALSE))","v":true}]
["Yosypenko Michal","Úholičky","2008",15,"150Kč",{"$f":"ISNA(VLOOKUP(A224,vychozi!F:I,4,FALSE))","v":false}]
["Černý Radek","Lety","1987",36,"300Kč",{"$f":"ISNA(VLOOKUP(A225,vychozi!F:I,4,FALSE))","v":true}]
["Dvořák Pavel","Lety","1975",48,"300Kč",{"$f":"ISNA(VLOOKUP(A226,vychozi!F:I,4,FALSE))","v":true}]
["Freisleben Zdeněk","Lety","1955",68,"300Kč",{"$f":"ISNA(VLOOKUP(A227,vychozi!F:I,4,FALSE))","v":true}]
["Fryje Jindřich","Lety","1946",77,"300Kč",{"$f":"ISNA(VLOOKUP(A228,vychozi!F:I,4,FALSE))","v":true}]
["Holeček David","Lety","1975",48,"300Kč",{"$f":"ISNA(VLOOKUP(A229,vychozi!F:I,4,FALSE))","v":true}]
["Jagoš Václav","Lety","1959",64,"300Kč",{"$f":"ISNA(VLOOKUP(A230,vychozi!F:I,4,FALSE))","v":true}]
["Knýbel Pavel","Lety","1976",47,"300Kč",{"$f":"ISNA(VLOOKUP(A231,vychozi!F:I,4,FALSE))","v":true}]
["Kosek Jiří","Lety","1971",52,"300Kč",{"$f":"ISNA(VLOOKUP(A232,vychozi!F:I,4,FALSE))","v":true}]
["Krisová Marcela","Lety","1978",45,"300Kč",{"$f":"ISNA(VLOOKUP(A233,vychozi!F:I,4,FALSE))","v":true}]
["Květoň Jan","Lety","1964",59,"300Kč",{"$f":"ISNA(VLOOKUP(A234,vychozi!F:I,4,FALSE))","v":true}]
["Neumann Radim","Lety","1971",52,"300Kč",{"$f":"ISNA(VLOOKUP(A235,vychozi!F:I,4,FALSE))","v":true}]
["Nykl Václav","Lety","1970",53,"300Kč",{"$f":"ISNA(VLOOKUP(A236,vychozi!F:I,4,FALSE))","v":true}]
["Urban Roman","Lety","1965",58,"300Kč",{"$f":"ISNA(VLOOKUP(A237,vychozi!F:I,4,FALSE))","v":true}]
["Vodička Jiří","Lety","1962",61,"300Kč",{"$f":"ISNA(VLOOKUP(A238,vychozi!F:I,4,FALSE))","v":true}]
["Bauer Josef","Lety","1968",55,"30Kč",{"$f":"ISNA(VLOOKUP(A239,vychozi!F:I,4,FALSE))","v":true}]
["Cmíral Josef","Lety","1947",76,"30Kč",{"$f":"ISNA(VLOOKUP(A240,vychozi!F:I,4,FALSE))","v":true}]
["Kovář Václav","Lety","1975",48,"30Kč",{"$f":"ISNA(VLOOKUP(A241,vychozi!F:I,4,FALSE))","v":true}]
["Tomášek Michal","Lety","1978",45,"30Kč",{"$f":"ISNA(VLOOKUP(A242,vychozi!F:I,4,FALSE))","v":true}]
["Bosch Maxmilian","Rudná","2005",18,"150Kč",{"$f":"ISNA(VLOOKUP(A243,vychozi!F:I,4,FALSE))","v":true}]
["Bosch Maya","Rudná","2008",15,"150Kč",{"$f":"ISNA(VLOOKUP(A244,vychozi!F:I,4,FALSE))","v":false}]
["Cacek Mikuláš","Rudná","2015",8,"150Kč",{"$f":"ISNA(VLOOKUP(A245,vychozi!F:I,4,FALSE))","v":false}]
["Cacek Tomáš","Rudná","1987",36,"300Kč",{"$f":"ISNA(VLOOKUP(A246,vychozi!F:I,4,FALSE))","v":true}]
["Charvát Vojtěch","Rudná","1951",72,"300Kč",{"$f":"ISNA(VLOOKUP(A247,vychozi!F:I,4,FALSE))","v":true}]
["Cihelka Jaroslav","Rudná","1946",77,"300Kč",{"$f":"ISNA(VLOOKUP(A248,vychozi!F:I,4,FALSE))","v":true}]
["Foltyn Jiří","Rudná","1985",38,"300Kč",{"$f":"ISNA(VLOOKUP(A249,vychozi!F:I,4,FALSE))","v":true}]
["Frýdlová Tereza","Rudná","2013",10,"150Kč",{"$f":"ISNA(VLOOKUP(A250,vychozi!F:I,4,FALSE))","v":false}]
["Jelínek Vladimír","Rudná","1964",59,"300Kč",{"$f":"ISNA(VLOOKUP(A251,vychozi!F:I,4,FALSE))","v":true}]
["Juan Tiago","Rudná","2014",9,"150Kč",{"$f":"ISNA(VLOOKUP(A252,vychozi!F:I,4,FALSE))","v":false}]
["Jurenka David","Rudná","2007",16,"150Kč",{"$f":"ISNA(VLOOKUP(A253,vychozi!F:I,4,FALSE))","v":false}]
["Klika Jakub","Rudná","2009",14,"150Kč",{"$f":"ISNA(VLOOKUP(A254,vychozi!F:I,4,FALSE))","v":false}]
["Kolbušovský Michal","Rudná","2005",18,"150Kč",{"$f":"ISNA(VLOOKUP(A255,vychozi!F:I,4,FALSE))","v":true}]
["Kreyndl Ilya","Rudná","1955",68,"300Kč",{"$f":"ISNA(VLOOKUP(A256,vychozi!F:I,4,FALSE))","v":true}]
["Nágr Pavel","Rudná","1966",57,"300Kč",{"$f":"ISNA(VLOOKUP(A257,vychozi!F:I,4,FALSE))","v":true}]
["Novotný David","Rudná","2013",{"$f":"YEAR(NOW())-C258","v":10},"150Kč",{"$f":"ISNA(VLOOKUP(A258,vychozi!F:I,4,FALSE))","v":false}]
["Olexa Jakub","Rudná","2011",12,"150Kč",{"$f":"ISNA(VLOOKUP(A259,vychozi!F:I,4,FALSE))","v":false}]
["Petříková Johana","Rudná","2013",10,"150Kč",{"$f":"ISNA(VLOOKUP(A260,vychozi!F:I,4,FALSE))","v":false}]
["Šenbauer Jiří","Rudná","1958",65,"300Kč",{"$f":"ISNA(VLOOKUP(A261,vychozi!F:I,4,FALSE))","v":true}]
["Sloup Jiří","Rudná","1966",57,"300Kč",{"$f":"ISNA(VLOOKUP(A262,vychozi!F:I,4,FALSE))","v":true}]
["Švehla Filip","Rudná","2009",14,"150Kč",{"$f":"ISNA(VLOOKUP(A263,vychozi!F:I,4,FALSE))","v":false}]
["Švehla Miroslav","Rudná","1970",53,"300Kč",{"$f":"ISNA(VLOOKUP(A264,vychozi!F:I,4,FALSE))","v":true}]
["Vraštil Petr","Rudná","1975",48,"300Kč",{"$f":"ISNA(VLOOKUP(A265,vychozi!F:I,4,FALSE))","v":true}]
["Wimmer Vítek","Rudná","2012",11,"150Kč",{"$f":"ISNA(VLOOKUP(A266,vychozi!F:I,4,FALSE))","v":false}]
["Wimmerová Lucie","Rudná","1975",48,"300Kč",{"$f":"ISNA(VLOOKUP(A267,vychozi!F:I,4,FALSE))","v":true}]
["Chromych Jan","Davle","2006",17,"150Kč",{"$f":"ISNA(VLOOKUP(A268,vychozi!F:I,4,FALSE))","v":false}]
["Knotek Martin","Davle","2008",15,"150Kč",{"$f":"ISNA(VLOOKUP(A269,vychozi!F:I,4,FALSE))","v":false}]
["Kruch Petr","Davle","1966",57,"300Kč",{"$f":"ISNA(VLOOKUP(A270,vychozi!F:I,4,FALSE))","v":true}]
["Lundák Pavel","Davle","2011",12,"150Kč",{"$f":"ISNA(VLOOKUP(A271,vychozi!F:I,4,FALSE))","v":false}]
["Makovec Milan","Davle","1962",61,"300Kč",{"$f":"ISNA(VLOOKUP(A272,vychozi!F:I,4,FALSE))","v":true}]
["Nágl Václav","Davle","1951",72,"300Kč",{"$f":"ISNA(VLOOKUP(A273,vychozi!F:I,4,FALSE))","v":true}]
["Pavlík Ondřej","Davle","1991",32,"300Kč",{"$f":"ISNA(VLOOKUP(A274,vychozi!F:I,4,FALSE))","v":true}]
["Prokůpek Jiří","Davle","2009",14,"150Kč",{"$f":"ISNA(VLOOKUP(A275,vychozi!F:I,4,FALSE))","v":false}]
["Prudík Tomáš","Davle","1984",39,"300Kč",{"$f":"ISNA(VLOOKUP(A276,vychozi!F:I,4,FALSE))","v":true}]
["Skyva Michal","Davle","2006",17,"150Kč",{"$f":"ISNA(VLOOKUP(A277,vychozi!F:I,4,FALSE))","v":false}]
["Tománek František","Davle","1966",57,"300Kč",{"$f":"ISNA(VLOOKUP(A278,vychozi!F:I,4,FALSE))","v":true}]
["Vybíral Václav","Davle","2010",13,"150Kč",{"$f":"ISNA(VLOOKUP(A279,vychozi!F:I,4,FALSE))","v":false}]
["Braný Václav","Davle","1947",76,"30Kč",{"$f":"ISNA(VLOOKUP(A280,vychozi!F:I,4,FALSE))","v":true}]
["Hloch Jan","Davle","1975",48,"30Kč",{"$f":"ISNA(VLOOKUP(A281,vychozi!F:I,4,FALSE))","v":true}]
["Hrstka František","Davle","1950",73,"30Kč",{"$f":"ISNA(VLOOKUP(A282,vychozi!F:I,4,FALSE))","v":true}]
["Karlík Václav","Davle","1943",80,"30Kč",{"$f":"ISNA(VLOOKUP(A283,vychozi!F:I,4,FALSE))","v":true}]
["Mráz Karel","Davle","1963",60,"30Kč",{"$f":"ISNA(VLOOKUP(A284,vychozi!F:I,4,FALSE))","v":true}]
["Müller Vojtěch","Davle","2009",14,"30Kč",{"$f":"ISNA(VLOOKUP(A285,vychozi!F:I,4,FALSE))","v":false}]
["Počta Tomáš","Davle","1943",80,"30Kč",{"$f":"ISNA(VLOOKUP(A286,vychozi!F:I,4,FALSE))","v":true}]
["Rohrbach Bohumil","Davle","1947",76,"30Kč",{"$f":"ISNA(VLOOKUP(A287,vychozi!F:I,4,FALSE))","v":true}]
["Slanec Josef","Davle","1942",81,"30Kč",{"$f":"ISNA(VLOOKUP(A288,vychozi!F:I,4,FALSE))","v":true}]
["Středa Lukáš","Davle","2010",13,"30Kč",{"$f":"ISNA(VLOOKUP(A289,vychozi!F:I,4,FALSE))","v":false}]
["Toman Olin","Davle","2008",15,"30Kč",{"$f":"ISNA(VLOOKUP(A290,vychozi!F:I,4,FALSE))","v":false}]
["Urbanský Tomáš","Davle","1986",37,"30Kč",{"$f":"ISNA(VLOOKUP(A291,vychozi!F:I,4,FALSE))","v":true}]
["Bujárek Milan","Mníšek","1954",69,"300Kč",{"$f":"ISNA(VLOOKUP(A292,vychozi!F:I,4,FALSE))","v":true}]
["Dáňa Martin","Mníšek","1963",60,"300Kč",{"$f":"ISNA(VLOOKUP(A293,vychozi!F:I,4,FALSE))","v":true}]
["Doležal Tomáš","Mníšek","1988",35,"300Kč",{"$f":"ISNA(VLOOKUP(A294,vychozi!F:I,4,FALSE))","v":true}]
["Drašar Jakub","Mníšek","2009",14,"150Kč",{"$f":"ISNA(VLOOKUP(A295,vychozi!F:I,4,FALSE))","v":false}]
["Drbohlav Marek","Mníšek","1970",53,"300Kč",{"$f":"ISNA(VLOOKUP(A296,vychozi!F:I,4,FALSE))","v":true}]
["Fiala Jan","Mníšek","1998",25,"300Kč",{"$f":"ISNA(VLOOKUP(A297,vychozi!F:I,4,FALSE))","v":true}]
["Freisleben Radek","Mníšek","1984",39,"300Kč",{"$f":"ISNA(VLOOKUP(A298,vychozi!F:I,4,FALSE))","v":true}]
["Frinta Matyáš","Mníšek","2009",14,"150Kč",{"$f":"ISNA(VLOOKUP(A299,vychozi!F:I,4,FALSE))","v":false}]
["Horák Ondřej","Mníšek","1990",33,"300Kč",{"$f":"ISNA(VLOOKUP(A300,vychozi!F:I,4,FALSE))","v":true}]
["Hošek Ondřej","Mníšek","2012",11,"150Kč",{"$f":"ISNA(VLOOKUP(A301,vychozi!F:I,4,FALSE))","v":false}]
["Icha Richard","Mníšek","2005",18,"150Kč",{"$f":"ISNA(VLOOKUP(A302,vychozi!F:I,4,FALSE))","v":true}]
["Jesenský Ján","Mníšek","2010",13,"150Kč",{"$f":"ISNA(VLOOKUP(A303,vychozi!F:I,4,FALSE))","v":false}]
["Kalbáč Karel","Mníšek","1998",25,"300Kč",{"$f":"ISNA(VLOOKUP(A304,vychozi!F:I,4,FALSE))","v":true}]
["Kalousek Jindřich","Mníšek","1950",73,"300Kč",{"$f":"ISNA(VLOOKUP(A305,vychozi!F:I,4,FALSE))","v":true}]
["Kameník Adam","Mníšek","2010",13,"150Kč",{"$f":"ISNA(VLOOKUP(A306,vychozi!F:I,4,FALSE))","v":false}]
["Kilian Vít","Mníšek","1989",34,"300Kč",{"$f":"ISNA(VLOOKUP(A307,vychozi!F:I,4,FALSE))","v":true}]
["Lacina Thomas","Mníšek","2012",11,"150Kč",{"$f":"ISNA(VLOOKUP(A308,vychozi!F:I,4,FALSE))","v":false}]
["Nguyen Tuan Tu","Mníšek","2012",11,"150Kč",{"$f":"ISNA(VLOOKUP(A309,vychozi!F:I,4,FALSE))","v":false}]
["Polavka Zdeněk","Mníšek","1959",64,"300Kč",{"$f":"ISNA(VLOOKUP(A310,vychozi!F:I,4,FALSE))","v":true}]
["Pospíšil Antonín","Mníšek","1964",59,"300Kč",{"$f":"ISNA(VLOOKUP(A311,vychozi!F:I,4,FALSE))","v":true}]
["Saltanovska Marharyta","Mníšek","1998",25,"300Kč",{"$f":"ISNA(VLOOKUP(A312,vychozi!F:I,4,FALSE))","v":true}]
["Skoupil Lukáš","Mníšek","1984",39,"300Kč",{"$f":"ISNA(VLOOKUP(A313,vychozi!F:I,4,FALSE))","v":true}]
["Stacho Libor","Mníšek","1966",57,"300Kč",{"$f":"ISNA(VLOOKUP(A314,vychozi!F:I,4,FALSE))","v":true}]
["Stržínek Jiří","Mníšek","1950",73,"300Kč",{"$f":"ISNA(VLOOKUP(A315,vychozi!F:I,4,FALSE))","v":true}]
["Taller Filip","Mníšek","1989",34,"300Kč",{"$f":"ISNA(VLOOKUP(A316,vychozi!F:I,4,FALSE))","v":true}]
["Tkáč Ivan","Mníšek","1978",45,"300Kč",{"$f":"ISNA(VLOOKUP(A317,vychozi!F:I,4,FALSE))","v":true}]
["Tůma Martin","Mníšek","1982",41,"300Kč",{"$f":"ISNA(VLOOKUP(A318,vychozi!F:I,4,FALSE))","v":true}]
["Urban Jan","Mníšek","1957",66,"300Kč",{"$f":"ISNA(VLOOKUP(A319,vychozi!F:I,4,FALSE))","v":true}]
["Zamazal Pavel","Mníšek","1962",61,"300Kč",{"$f":"ISNA(VLOOKUP(A320,vychozi!F:I,4,FALSE))","v":true}]
["Fialová Zuzana","Mníšek","1966",57,"30Kč",{"$f":"ISNA(VLOOKUP(A321,vychozi!F:I,4,FALSE))","v":true}]

{"sheet":"evidence_20220830","index":19,"n_rows":330,"n_cols":11,"rows_kept":330,"cut":false,"hidden":true,"merged":[]}
["hrac","oddil","rok narozeni","věk","registrace","Neni na karte Vychozi?",null,null,"Jm"]
["Antoš Vojtěch","Roztoky","2003",{"$f":"YEAR(NOW())-C2","v":20},"300Kč",{"$f":"ISNA(VLOOKUP(A2,#REF!,4,FALSE))","v":false}]
["Bárta Kryštof","Roztoky","1998",25,"300Kč",{"$f":"ISNA(VLOOKUP(A3,#REF!,4,FALSE))","v":false}]
["Cabicar Šimon","Roztoky","2005",18,"150Kč",{"$f":"ISNA(VLOOKUP(A4,#REF!,4,FALSE))","v":false}]
["Eibich Jan","Roztoky","1999",24,"300Kč",{"$f":"ISNA(VLOOKUP(A5,#REF!,4,FALSE))","v":false}]
["Fišman Alexandr","Roztoky","2003",20,"300Kč",{"$f":"ISNA(VLOOKUP(A6,#REF!,4,FALSE))","v":false}]
["Hloch Matěj","Roztoky","2011",12,"150Kč",{"$f":"ISNA(VLOOKUP(A7,#REF!,4,FALSE))","v":false}]
["Jakoubek Jakub","Roztoky","1998",25,"300Kč",{"$f":"ISNA(VLOOKUP(A8,#REF!,4,FALSE))","v":false}]
["Jirásek Jiří","Roztoky","1975",48,"300Kč",{"$f":"ISNA(VLOOKUP(A9,#REF!,4,FALSE))","v":false}]
["Kaláb Adam","Roztoky","2006",17,"150Kč",{"$f":"ISNA(VLOOKUP(A10,#REF!,4,FALSE))","v":false}]
["Kalinová Hana","Roztoky","2009",14,"150Kč",{"$f":"ISNA(VLOOKUP(A11,#REF!,4,FALSE))","v":false}]
["Kuchtová Klára","Roztoky","2005",18,"150Kč",{"$f":"ISNA(VLOOKUP(A12,#REF!,4,FALSE))","v":false}]
["Lauermann Matěj","Roztoky","2002",21,"300Kč",{"$f":"ISNA(VLOOKUP(A13,#REF!,4,FALSE))","v":false}]
["Levenec Petr","Roztoky","1978",45,"300Kč",{"$f":"ISNA(VLOOKUP(A14,#REF!,4,FALSE))","v":false}]
["Lukáš Filip nejml.","Roztoky","2011",12,"150Kč",{"$f":"ISNA(VLOOKUP(A15,#REF!,4,FALSE))","v":false}]
["Lukáš Jakub","Roztoky","1979",44,"300Kč",{"$f":"ISNA(VLOOKUP(A16,#REF!,4,FALSE))","v":false}]
["Lukáš Lukáš","Roztoky","2006",17,"150Kč",{"$f":"ISNA(VLOOKUP(A17,#REF!,4,FALSE))","v":false}]
["Machek Jan ml.","Roztoky","2008",15,"150Kč",{"$f":"ISNA(VLOOKUP(A18,#REF!,4,FALSE))","v":false}]
["Pöschl Miroslav st.","Roztoky","1960",63,"300Kč",{"$f":"ISNA(VLOOKUP(A19,#REF!,4,FALSE))","v":false}]
["Příhonský Ernesto","Roztoky","2010",13,"150Kč",{"$f":"ISNA(VLOOKUP(A20,#REF!,4,FALSE))","v":false}]
["Šimon Matyáš","Roztoky","2003",20,"300Kč",{"$f":"ISNA(VLOOKUP(A21,#REF!,4,FALSE))","v":false}]
["Smrček Michal","Roztoky","1984",39,"300Kč",{"$f":"ISNA(VLOOKUP(A22,#REF!,4,FALSE))","v":false}]
["Stříbrný Jiří Maxmilián","Roztoky","2006",17,"150Kč",{"$f":"ISNA(VLOOKUP(A23,#REF!,4,FALSE))","v":false}]
["Šturm Vojtěch","Roztoky","2002",21,"300Kč",{"$f":"ISNA(VLOOKUP(A24,#REF!,4,FALSE))","v":false}]
["Švarc Martin","Roztoky","1976",47,"300Kč",{"$f":"ISNA(VLOOKUP(A25,#REF!,4,FALSE))","v":false}]
["Tolárek David","Roztoky","2002",21,"300Kč",{"$f":"ISNA(VLOOKUP(A26,#REF!,4,FALSE))","v":false}]
["Vacek Jiří","Roztoky","1978",45,"300Kč",{"$f":"ISNA(VLOOKUP(A27,#REF!,4,FALSE))","v":false}]
["Vágner Jonáš","Roztoky","2005",18,"150Kč",{"$f":"ISNA(VLOOKUP(A28,#REF!,4,FALSE))","v":false}]
["Vašků Karolína","Roztoky","2010",13,"150Kč",{"$f":"ISNA(VLOOKUP(A29,#REF!,4,FALSE))","v":false}]
["Veselý Milan","Roztoky","1989",34,"300Kč",{"$f":"ISNA(VLOOKUP(A30,#REF!,4,FALSE))","v":false}]
["Vodňanský Martin","Roztoky","1981",42,"300Kč",{"$f":"ISNA(VLOOKUP(A31,#REF!,4,FALSE))","v":false}]
["Vondrová Kristýna nejst.","Roztoky","2003",20,"300Kč",{"$f":"ISNA(VLOOKUP(A32,#REF!,4,FALSE))","v":false}]
["Žáček Josef","Roztoky","1970",53,"300Kč",{"$f":"ISNA(VLOOKUP(A33,#REF!,4,FALSE))","v":false}]
["Zwiefelhofer Jiří","Roztoky","1964",59,"300Kč",{"$f":"ISNA(VLOOKUP(A34,#REF!,4,FALSE))","v":false}]
["Čepela Ondřej","Roztoky","2008",15,"30Kč",{"$f":"ISNA(VLOOKUP(A35,#REF!,4,FALSE))","v":false}]
["Lojek Jakub","Roztoky","2000",23,"30Kč",{"$f":"ISNA(VLOOKUP(A36,#REF!,4,FALSE))","v":false}]
["Netušil David","Roztoky","2002",21,"30Kč",{"$f":"ISNA(VLOOKUP(A37,#REF!,4,FALSE))","v":false}]
["Čáp Martin","Černošice","1975",48,"300Kč",{"$f":"ISNA(VLOOKUP(A38,#REF!,4,FALSE))","v":false},null,null,"Čáp Martin",1975,300]
["Charvát Petr","Černošice","1947",76,"300Kč",{"$f":"ISNA(VLOOKUP(A39,#REF!,4,FALSE))","v":false},null,null,"Charvát Petr",1947,300]
["Cimler Lukáš","Černošice","1987",36,"300Kč",{"$f":"ISNA(VLOOKUP(A40,#REF!,4,FALSE))","v":false},null,null,"Cimler Lukáš",1987,300]
["Deré Michal","Černošice","1974",49,"300Kč",{"$f":"ISNA(VLOOKUP(A41,#REF!,4,FALSE))","v":false},null,null,"Deré Michal",1974,300]
["Fischer Jiří","Černošice","1964",59,"300Kč",{"$f":"ISNA(VLOOKUP(A42,#REF!,4,FALSE))","v":false},null,null,"Fischer Jiří",1964,300]
["Hlavenka Joel Mathias","Černošice","2007",16,"150Kč",{"$f":"ISNA(VLOOKUP(A43,#REF!,4,FALSE))","v":false},null,null,"Hlavenka Joel Mathias",2007,150]
["Hrdina Pavel","Černošice","1971",52,"300Kč",{"$f":"ISNA(VLOOKUP(A44,#REF!,4,FALSE))","v":false},null,null,"Hrdina Pavel",1971,300]
["Hron Matyáš","Černošice","2009",14,"150Kč",{"$f":"ISNA(VLOOKUP(A45,#REF!,4,FALSE))","v":false},null,null,"Hron Matyáš",2009,150]
["Kuliš David","Černošice","2007",16,"150Kč",{"$f":"ISNA(VLOOKUP(A46,#REF!,4,FALSE))","v":false},null,null,"Kuliš David",2007,150]
["Lágner Petr","Černošice","1974",49,"300Kč",{"$f":"ISNA(VLOOKUP(A47,#REF!,4,FALSE))","v":false},null,null,"Lágner Petr",1974,300]
["Nosek Michal","Černošice","1985",38,"300Kč",{"$f":"ISNA(VLOOKUP(A48,#REF!,4,FALSE))","v":false},null,null,"Nosek Michal",1985,300]
["Roztočilová Tereza","Černošice","2001",22,"300Kč",{"$f":"ISNA(VLOOKUP(A49,#REF!,4,FALSE))","v":false},null,null,"Roztočilová Tereza",2001,300]
["Souček Jan","Černošice","2000",23,"300Kč",{"$f":"ISNA(VLOOKUP(A50,#REF!,4,FALSE))","v":false},null,null,"Souček Jan",2000,300]
["Šteiger Dominik","Černošice","2002",21,"300Kč",{"$f":"ISNA(VLOOKUP(A51,#REF!,4,FALSE))","v":false},null,null,"Šteiger Dominik",2002,300]
["Suchý Michal","Černošice","1976",47,"300Kč",{"$f":"ISNA(VLOOKUP(A52,#REF!,4,FALSE))","v":false},null,null,"Suchý Michal",1976,300]
["Tichý Jiří","Černošice","1947",76,"300Kč",{"$f":"ISNA(VLOOKUP(A53,#REF!,4,FALSE))","v":false},null,null,"Tichý Jiří",1947,300]
["Veselý Petr","Černošice","1987",36,"300Kč",{"$f":"ISNA(VLOOKUP(A54,#REF!,4,FALSE))","v":false},null,null,"Veselý Petr",1987,300]
["Zmatlík Lukáš","Černošice","1993",30,"300Kč",{"$f":"ISNA(VLOOKUP(A55,#REF!,4,FALSE))","v":false},null,null,"Zmatlík Lukáš",1993,300]
["Zmatlík Petr","Černošice","1957",66,"300Kč",{"$f":"ISNA(VLOOKUP(A56,#REF!,4,FALSE))","v":false},null,null,"Zmatlík Petr",1957,300]
["Hlavenka Eli Theodor","Černošice","2010",13,"30Kč",{"$f":"ISNA(VLOOKUP(A57,#REF!,4,FALSE))","v":false},null,null,"Hlavenka Eli Theodor",2010,30]
["Housa Jiří","Černošice","2007",16,"30Kč",{"$f":"ISNA(VLOOKUP(A58,#REF!,4,FALSE))","v":false},"Nepokračuje",null,"Housa Jiří",2007,30]
["Otavová Klaudie","Černošice","2003",20,"30Kč",{"$f":"ISNA(VLOOKUP(A59,#REF!,4,FALSE))","v":false},null,null,"Otavová Klaudie",2003,30]
["Pajer Filip","Černošice","2005",18,"30Kč",{"$f":"ISNA(VLOOKUP(A60,#REF!,4,FALSE))","v":false},null,null,"Pajer Filip",2005,30]
["Provazník Adam","Černošice","2005",18,"30Kč",{"$f":"ISNA(VLOOKUP(A61,#REF!,4,FALSE))","v":false},"Nepokračuje",null,"Provazník Adam",2005,30]
["Suchý Marek","Černošice","2008",15,"30Kč",{"$f":"ISNA(VLOOKUP(A62,#REF!,4,FALSE))","v":false},null,null,"Suchý Marek",2008,30]
["Wolf Vojtěch","Černošice","2004",19,"30Kč",{"$f":"ISNA(VLOOKUP(A63,#REF!,4,FALSE))","v":false},null,null,"Wolf Vojtěch",2004,30]
["Anderson Ben","Únětice","1958",65,"300Kč",{"$f":"ISNA(VLOOKUP(A64,#REF!,4,FALSE))","v":false}]
["Bartoš Jiří","Únětice","1957",66,"300Kč",{"$f":"ISNA(VLOOKUP(A65,#REF!,4,FALSE))","v":false}]
["Faltin Bohumil","Únětice","2003",{"$f":"YEAR(NOW())-C66","v":20},"300Kč",{"$f":"ISNA(VLOOKUP(A66,#REF!,4,FALSE))","v":false}]
["Faltin Miloš","Únětice","1972",51,"300Kč",{"$f":"ISNA(VLOOKUP(A67,#REF!,4,FALSE))","v":false}]
["Franc Martin","Únětice","1973",50,"300Kč",{"$f":"ISNA(VLOOKUP(A68,#REF!,4,FALSE))","v":false}]
["Freisleben Robin","Únětice","1971",52,"300Kč",{"$f":"ISNA(VLOOKUP(A69,#REF!,4,FALSE))","v":false}]
["Freislebenová Sára","Únětice","2005",18,"150Kč",{"$f":"ISNA(VLOOKUP(A70,#REF!,4,FALSE))","v":false},"Nepokračuje"]
["Hurych Vlastislav","Únětice","1972",51,"300Kč",{"$f":"ISNA(VLOOKUP(A71,#REF!,4,FALSE))","v":false}]
["Kratochvíl Jiří","Únětice","1969",54,"300Kč",{"$f":"ISNA(VLOOKUP(A72,#REF!,4,FALSE))","v":false}]
["Krupička Radim","Únětice","1974",49,"300Kč",{"$f":"ISNA(VLOOKUP(A73,#REF!,4,FALSE))","v":false}]
["Potužník Adam","Únětice","2003",20,"300Kč",{"$f":"ISNA(VLOOKUP(A74,#REF!,4,FALSE))","v":false}]
["Potužník Václav","Únětice","1972",51,"300Kč",{"$f":"ISNA(VLOOKUP(A75,#REF!,4,FALSE))","v":false}]
["Sitta Radomír","Únětice","1969",54,"300Kč",{"$f":"ISNA(VLOOKUP(A76,#REF!,4,FALSE))","v":false}]
["Trubnikov Stanislav","Únětice","1965",58,"300Kč",{"$f":"ISNA(VLOOKUP(A77,#REF!,4,FALSE))","v":false}]
["Bartik Ondřej","Libčice","1991",32,"300Kč",{"$f":"ISNA(VLOOKUP(A78,#REF!,4,FALSE))","v":false},null,null,"Bartik Ondřej",1991,300]
["Bartoň Milan","Libčice","1975",48,"300Kč",{"$f":"ISNA(VLOOKUP(A79,#REF!,4,FALSE))","v":false},null,null,"Bartoň Milan",1975,300]
["Beltrám Javier Ernesto","Libčice","1978",45,"300Kč",{"$f":"ISNA(VLOOKUP(A80,#REF!,4,FALSE))","v":false},null,null,"Beltrám Javier Ernesto",1978,300]
["Boháč Antoním","Libčice","2008",15,"150Kč",{"$f":"ISNA(VLOOKUP(A81,#REF!,4,FALSE))","v":false},null,null,"Boháč Antoním",2008,150]
["Boháčová Simona","Libčice","1976",47,"300Kč",{"$f":"ISNA(VLOOKUP(A82,#REF!,4,FALSE))","v":false},null,null,"Boháčová Simona",1976,300]
["Česák Michal","Libčice","1991",32,"300Kč",{"$f":"ISNA(VLOOKUP(A83,#REF!,4,FALSE))","v":false},null,null,"Česák Michal",1991,300]
["Dostál Ondřej","Libčice","2009",14,"150Kč",{"$f":"ISNA(VLOOKUP(A84,#REF!,4,FALSE))","v":false},null,null,"Dostál Ondřej",2009,150]
["Dostál Zdeněk","Libčice","1976",47,"300Kč",{"$f":"ISNA(VLOOKUP(A85,#REF!,4,FALSE))","v":false},null,null,"Dostál Zdeněk",1976,300]
["Dostálová Aneta","Libčice","2006",17,"150Kč",{"$f":"ISNA(VLOOKUP(A86,#REF!,4,FALSE))","v":false},null,null,"Dostálová Aneta",2006,150]
["Fišer Štefan","Libčice","1984",39,"300Kč",{"$f":"ISNA(VLOOKUP(A87,#REF!,4,FALSE))","v":false},null,null,"Fišer Štefan",1984,300]
["Framberk Jan","Libčice","1977",46,"300Kč",{"$f":"ISNA(VLOOKUP(A88,#REF!,4,FALSE))","v":false},null,null,"Framberk Jan",1977,300]
["Framberk Mikuláš","Libčice","2013",10,"150Kč",{"$f":"ISNA(VLOOKUP(A89,#REF!,4,FALSE))","v":false},null,null,"Framberk Mikuláš",2013,150]
["Hodač Jan","Libčice","1981",42,"300Kč",{"$f":"ISNA(VLOOKUP(A90,#REF!,4,FALSE))","v":false},null,null,"Hodač Jan",1981,300]
["Juda František","Libčice","2006",17,"150Kč",{"$f":"ISNA(VLOOKUP(A91,#REF!,4,FALSE))","v":false},null,null,"Juda František",2006,150]
["Klinga Petr","Libčice","1963",60,"300Kč",{"$f":"ISNA(VLOOKUP(A92,#REF!,4,FALSE))","v":false},null,null,"Klinga Petr",1963,300]
["Konvalinka Michal","Libčice","1985",38,"300Kč",{"$f":"ISNA(VLOOKUP(A93,#REF!,4,FALSE))","v":false},null,null,"Konvalinka Michal",1985,300]
["Nováková Karolina","Libčice","2005",18,"150Kč",{"$f":"ISNA(VLOOKUP(A94,#REF!,4,FALSE))","v":false},null,null,"Nováková Karolina",2005,150]
["Patras Matyáš","Libčice","2007",16,"150Kč",{"$f":"ISNA(VLOOKUP(A95,#REF!,4,FALSE))","v":false},null,null,"Patras Matyáš",2007,150]
["Podrápský Jaroslav","Libčice","1972",51,"300Kč",{"$f":"ISNA(VLOOKUP(A96,#REF!,4,FALSE))","v":false},null,null,"Podrápský Jaroslav",1972,300]
["Pojerová Gabriela","Libčice","2010",13,"150Kč",{"$f":"ISNA(VLOOKUP(A97,#REF!,4,FALSE))","v":false},null,null,"Pojerová Gabriela",2010,150]
["Ponáhlo Michal","Libčice","2007",16,"150Kč",{"$f":"ISNA(VLOOKUP(A98,#REF!,4,FALSE))","v":false},null,null,"Ponáhlo Michal",2007,150]
["Richter Jaroslav ml.","Libčice","1973",50,"300Kč",{"$f":"ISNA(VLOOKUP(A99,#REF!,4,FALSE))","v":false},null,null,"Richter Jaroslav ml.",1973,300]
["Richter Jaroslav st.","Libčice","1951",72,"300Kč",{"$f":"ISNA(VLOOKUP(A100,#REF!,4,FALSE))","v":false},null,null,"Richter Jaroslav st.",1951,300]
["Richter Vojtěch","Libčice","1974",49,"300Kč",{"$f":"ISNA(VLOOKUP(A101,#REF!,4,FALSE))","v":false},null,null,"Richter Vojtěch",1974,300]
["Slaměník Richard","Libčice","1961",62,"300Kč",{"$f":"ISNA(VLOOKUP(A102,#REF!,4,FALSE))","v":false},null,null,"Slaměník Richard",1961,300]
["Slapnička Ondřej","Libčice","2009",14,"150Kč",{"$f":"ISNA(VLOOKUP(A103,#REF!,4,FALSE))","v":false},null,null,"Slapnička Ondřej",2009,150]
["Špiegel Jan","Libčice","1961",62,"300Kč",{"$f":"ISNA(VLOOKUP(A104,#REF!,4,FALSE))","v":false},null,null,"Špiegel Jan",1961,300]
["Šulc Dalibor","Libčice","1953",70,"300Kč",{"$f":"ISNA(VLOOKUP(A105,#REF!,4,FALSE))","v":false},null,null,"Šulc Dalibor",1953,300]
["Telipský Josef","Libčice","1968",55,"300Kč",{"$f":"ISNA(VLOOKUP(A106,#REF!,4,FALSE))","v":false},null,null,"Telipský Josef",1968,300]
["Tkadlec Jaroslav","Libčice","1951",72,"300Kč",{"$f":"ISNA(VLOOKUP(A107,#REF!,4,FALSE))","v":false},null,null,"Tkadlec Jaroslav",1951,300]
["Tobolář Karel","Libčice","1976",47,"300Kč",{"$f":"ISNA(VLOOKUP(A108,#REF!,4,FALSE))","v":false},null,null,"Tobolář Karel",1976,300]
["Votoček Jaroslav","Libčice","1950",73,"300Kč",{"$f":"ISNA(VLOOKUP(A109,#REF!,4,FALSE))","v":false},null,null,"Votoček Jaroslav",1950,300]
["Kosnar Vladimír","Libčice","1944",79,"30Kč",{"$f":"ISNA(VLOOKUP(A110,#REF!,4,FALSE))","v":false},null,null,"Kosnar Vladimír",1944,30]
["Manek Jakub","Libčice","2000",23,"30Kč",{"$f":"ISNA(VLOOKUP(A111,#REF!,4,FALSE))","v":false},null,null,"Manek Jakub",2000,30]
["Andrlík Dalibor","Ořech","2010",13,"150Kč",{"$f":"ISNA(VLOOKUP(A112,#REF!,4,FALSE))","v":false},"X"]
["Blažek Jiří","Ořech","1994",29,"300Kč",{"$f":"ISNA(VLOOKUP(A113,#REF!,4,FALSE))","v":false}]
["Bulín Zdeněk","Ořech","1972",51,"300Kč",{"$f":"ISNA(VLOOKUP(A114,#REF!,4,FALSE))","v":false}]
["Cafourek Tomáš","Ořech","2000",23,"300Kč",{"$f":"ISNA(VLOOKUP(A115,#REF!,4,FALSE))","v":false}]
["Čierny Alexander","Ořech","1971",52,"300Kč",{"$f":"ISNA(VLOOKUP(A116,#REF!,4,FALSE))","v":false}]
["Fiala Tobiáš","Ořech","2010",13,"150Kč",{"$f":"ISNA(VLOOKUP(A117,#REF!,4,FALSE))","v":false},"X"]
["Flusser Martin","Ořech","1991",32,"300Kč",{"$f":"ISNA(VLOOKUP(A118,#REF!,4,FALSE))","v":false}]
["Fürst Mirko","Ořech","1946",77,"300Kč",{"$f":"ISNA(VLOOKUP(A119,#REF!,4,FALSE))","v":false}]
["Heřman Miroslav","Ořech","1978",45,"300Kč",{"$f":"ISNA(VLOOKUP(A120,#REF!,4,FALSE))","v":false}]
["Hlaváč Jan","Ořech","2001",22,"300Kč",{"$f":"ISNA(VLOOKUP(A121,#REF!,4,FALSE))","v":false}]
["Hruška Ondřej","Ořech","1995",28,"300Kč",{"$f":"ISNA(VLOOKUP(A122,#REF!,4,FALSE))","v":false}]
["Hudák Tomáš","Ořech","2004",19,"150Kč",{"$f":"ISNA(VLOOKUP(A123,#REF!,4,FALSE))","v":false}]
["Jambor Václav","Ořech","1945",78,"300Kč",{"$f":"ISNA(VLOOKUP(A124,#REF!,4,FALSE))","v":false}]
["Kabátník Ondra","Ořech","2010",13,"150Kč",{"$f":"ISNA(VLOOKUP(A125,#REF!,4,FALSE))","v":false},"X"]
["Kohlík Miroslav ml.","Ořech","1973",50,"300Kč",{"$f":"ISNA(VLOOKUP(A126,#REF!,4,FALSE))","v":false}]
["Kotěšovská Tereza","Ořech","2002",21,"300Kč",{"$f":"ISNA(VLOOKUP(A127,#REF!,4,FALSE))","v":false}]
["Kotěšovský Jan","Ořech","2002",21,"300Kč",{"$f":"ISNA(VLOOKUP(A128,#REF!,4,FALSE))","v":false}]
["Kranát Petr","Ořech","2009",14,"150Kč",{"$f":"ISNA(VLOOKUP(A129,#REF!,4,FALSE))","v":false},"?"]
["Krasničan Jaroslav","Ořech","1977",{"$f":"YEAR(NOW())-C130","v":46},"300Kč",{"$f":"ISNA(VLOOKUP(A130,#REF!,4,FALSE))","v":false}]
["Krejčová Barbora","Ořech","1996",27,"300Kč",{"$f":"ISNA(VLOOKUP(A131,#REF!,4,FALSE))","v":false}]
["Matoušek Michal","Ořech","1982",41,"300Kč",{"$f":"ISNA(VLOOKUP(A132,#REF!,4,FALSE))","v":false}]
["Matoušek Tomáš","Ořech","1985",38,"300Kč",{"$f":"ISNA(VLOOKUP(A133,#REF!,4,FALSE))","v":false}]
["Matoušek Zdeněk","Ořech","1956",67,"300Kč",{"$f":"ISNA(VLOOKUP(A134,#REF!,4,FALSE))","v":false}]
["Novák Marek","Ořech","1996",27,"300Kč",{"$f":"ISNA(VLOOKUP(A135,#REF!,4,FALSE))","v":false}]
["Pavlín Jiří","Ořech","1962",61,"300Kč",{"$f":"ISNA(VLOOKUP(A136,#REF!,4,FALSE))","v":false}]
["Pavlín Šimon","Ořech","1997",26,"300Kč",{"$f":"ISNA(VLOOKUP(A137,#REF!,4,FALSE))","v":false}]
["Píš Daniel","Ořech","1969",54,"300Kč",{"$f":"ISNA(VLOOKUP(A138,#REF!,4,FALSE))","v":false}]
["Píš Ondřej","Ořech","1995",28,"300Kč",{"$f":"ISNA(VLOOKUP(A139,#REF!,4,FALSE))","v":false}]
["Poncar Karel","Ořech","2001",22,"300Kč",{"$f":"ISNA(VLOOKUP(A140,#REF!,4,FALSE))","v":false}]
["Ptáčník Martin","Ořech","1989",34,"300Kč",{"$f":"ISNA(VLOOKUP(A141,#REF!,4,FALSE))","v":false}]
["Redlich Michal","Ořech","2003",20,"300Kč",{"$f":"ISNA(VLOOKUP(A142,#REF!,4,FALSE))","v":false}]
["Rein Tomáš","Ořech","2005",18,"150Kč",{"$f":"ISNA(VLOOKUP(A143,#REF!,4,FALSE))","v":false}]
["Severa Martin","Ořech","1968",55,"300Kč",{"$f":"ISNA(VLOOKUP(A144,#REF!,4,FALSE))","v":false}]
["Šimák Jaroslav","Ořech","2010",13,"150Kč",{"$f":"ISNA(VLOOKUP(A145,#REF!,4,FALSE))","v":false},"X"]
["Škoda Jiří","Ořech","1992",31,"300Kč",{"$f":"ISNA(VLOOKUP(A146,#REF!,4,FALSE))","v":false}]
["Skřivánek Jiří","Ořech","1973",50,"300Kč",{"$f":"ISNA(VLOOKUP(A147,#REF!,4,FALSE))","v":false}]
["Soukup Vojtěch","Ořech","2002",21,"300Kč",{"$f":"ISNA(VLOOKUP(A148,#REF!,4,FALSE))","v":false}]
["Šrenk Štěpán","Ořech","2001",22,"300Kč",{"$f":"ISNA(VLOOKUP(A149,#REF!,4,FALSE))","v":false}]
["Šťastná Dominika","Ořech","2008",15,"150Kč",{"$f":"ISNA(VLOOKUP(A150,#REF!,4,FALSE))","v":false}]
["Šťastná Nataly","Ořech","2008",15,"150Kč",{"$f":"ISNA(VLOOKUP(A151,#REF!,4,FALSE))","v":false}]
["Šťastný Jan","Ořech","2008",15,"150Kč",{"$f":"ISNA(VLOOKUP(A152,#REF!,4,FALSE))","v":false}]
["Šulc Adam","Ořech","2009",14,"150Kč",{"$f":"ISNA(VLOOKUP(A153,#REF!,4,FALSE))","v":false},"X"]
["Vávra Aleš","Ořech","1998",25,"300Kč",{"$f":"ISNA(VLOOKUP(A154,#REF!,4,FALSE))","v":false}]
["Veverka Jan","Ořech","1997",26,"300Kč",{"$f":"ISNA(VLOOKUP(A155,#REF!,4,FALSE))","v":false}]
["Veverka Václav ml.","Ořech","2000",23,"300Kč",{"$f":"ISNA(VLOOKUP(A156,#REF!,4,FALSE))","v":false}]
["Veverka Václav st.","Ořech","1961",62,"300Kč",{"$f":"ISNA(VLOOKUP(A157,#REF!,4,FALSE))","v":false}]
["Yaroslavtsev Vitaly","Ořech","1959",64,"300Kč",{"$f":"ISNA(VLOOKUP(A158,#REF!,4,FALSE))","v":false}]
["Zacharda Aleš","Ořech","1972",51,"300Kč",{"$f":"ISNA(VLOOKUP(A159,#REF!,4,FALSE))","v":false}]
["Helt Miroslav","Ořech","1951",72,"30Kč",{"$f":"ISNA(VLOOKUP(A160,#REF!,4,FALSE))","v":false}]
["Kohlík Miroslav st.","Ořech","1949",74,"30Kč",{"$f":"ISNA(VLOOKUP(A161,#REF!,4,FALSE))","v":false}]
["Němejc Melichar","Ořech","2005",18,"30Kč",{"$f":"ISNA(VLOOKUP(A162,#REF!,4,FALSE))","v":false},"-"]
["Pražský Michal","Ořech","1997",26,"30Kč",{"$f":"ISNA(VLOOKUP(A163,#REF!,4,FALSE))","v":false}]
["Brejcha Petr","Středokluky","1961",62,"300Kč",{"$f":"ISNA(VLOOKUP(A164,#REF!,4,FALSE))","v":false},null,null,"Sezemský Jaroslav"]
["Chval Ivan","Středokluky","1962",61,"300Kč",{"$f":"ISNA(VLOOKUP(A165,#REF!,4,FALSE))","v":false},null,null,"Šimáček Libor"]
["Hikl Josef","Středokluky","1947",76,"300Kč",{"$f":"ISNA(VLOOKUP(A166,#REF!,4,FALSE))","v":false},null,null,"Šimák Jaroslav"]
["Kačerovský Zdeněk","Středokluky","1975",48,"300Kč",{"$f":"ISNA(VLOOKUP(A167,#REF!,4,FALSE))","v":false},null,null,"Škoda Jiří"]
["Kamenszki Ivan","Středokluky","1972",51,"300Kč",{"$f":"ISNA(VLOOKUP(A168,#REF!,4,FALSE))","v":false},null,null,"Škoda Jiří st."]
["Pelant Jakub","Středokluky","1980",43,"300Kč",{"$f":"ISNA(VLOOKUP(A169,#REF!,4,FALSE))","v":false},null,null,"Škoda Petr"]
["Popelka Pavel","Středokluky","1973",50,"300Kč",{"$f":"ISNA(VLOOKUP(A170,#REF!,4,FALSE))","v":false},null,null,"Skřivánek Jiří"]
["Tolar Jakub","Středokluky","1995",28,"300Kč",{"$f":"ISNA(VLOOKUP(A171,#REF!,4,FALSE))","v":false},null,null,"Sladovník David"]
["Tolar Petr","Středokluky","1970",53,"300Kč",{"$f":"ISNA(VLOOKUP(A172,#REF!,4,FALSE))","v":false},null,null,"Soukup Vojtěch"]
["Tříska Luboš","Středokluky","1961",62,"300Kč",{"$f":"ISNA(VLOOKUP(A173,#REF!,4,FALSE))","v":false},null,null,"Šrenk Štěpán"]
["Vanson Patrick","Středokluky","1967",56,"300Kč",{"$f":"ISNA(VLOOKUP(A174,#REF!,4,FALSE))","v":false},null,null,"Šťastná Dominika"]
["Vinš Antonín","Středokluky","1995",28,"300Kč",{"$f":"ISNA(VLOOKUP(A175,#REF!,4,FALSE))","v":false},null,null,"Šťastná Nataly"]
["Coubalová Martina","Vestec","1974",49,"300Kč",{"$f":"ISNA(VLOOKUP(A176,#REF!,4,FALSE))","v":false},null,null,"Šťastný Jan"]
["Hozman Bohumil","Vestec","1954",69,"300Kč",{"$f":"ISNA(VLOOKUP(A177,#REF!,4,FALSE))","v":false},null,null,"Šulc Adam"]
["Ihl Roman","Vestec","1967",56,"300Kč",{"$f":"ISNA(VLOOKUP(A178,#REF!,4,FALSE))","v":false},null,null,"Tejkl Tomáš"]
["Jungvirt Tomáš","Vestec","1981",42,"300Kč",{"$f":"ISNA(VLOOKUP(A179,#REF!,4,FALSE))","v":false},null,null,"Vávra Aleš"]
["Král Jan","Vestec","1955",68,"300Kč",{"$f":"ISNA(VLOOKUP(A180,#REF!,4,FALSE))","v":false},null,null,"Veselý Miroslav"]
["Kurková Marie","Vestec","1973",50,"300Kč",{"$f":"ISNA(VLOOKUP(A181,#REF!,4,FALSE))","v":false},null,null,"Veverka Jan"]
["Lachout Miroslav","Vestec","1954",69,"300Kč",{"$f":"ISNA(VLOOKUP(A182,#REF!,4,FALSE))","v":false},null,null,"Veverka Václav ml."]
["Malínek Lukáš","Vestec","1972",51,"300Kč",{"$f":"ISNA(VLOOKUP(A183,#REF!,4,FALSE))","v":false},null,null,"Veverka Václav st."]
["Michal František","Vestec","1982",41,"300Kč",{"$f":"ISNA(VLOOKUP(A184,#REF!,4,FALSE))","v":false},null,null,"Woller David"]
["Novák Michal","Vestec","1998",25,"300Kč",{"$f":"ISNA(VLOOKUP(A185,#REF!,4,FALSE))","v":false},null,null,"Yaroslavtsev Vitaly"]
["Novák Ondřej","Vestec","1992",31,"300Kč",{"$f":"ISNA(VLOOKUP(A186,#REF!,4,FALSE))","v":false},null,null,"Zacharda Aleš"]
["Přáda Jaroslav","Vestec","1958",65,"300Kč",{"$f":"ISNA(VLOOKUP(A187,#REF!,4,FALSE))","v":false}]
["Ráb Václav","Vestec","1983",40,"300Kč",{"$f":"ISNA(VLOOKUP(A188,#REF!,4,FALSE))","v":false}]
["Rábová Hana","Vestec","1989",34,"300Kč",{"$f":"ISNA(VLOOKUP(A189,#REF!,4,FALSE))","v":false}]
["Řízek Jiří","Vestec","1956",67,"300Kč",{"$f":"ISNA(VLOOKUP(A190,#REF!,4,FALSE))","v":false}]
["Rusová Barbora","Vestec","1985",38,"300Kč",{"$f":"ISNA(VLOOKUP(A191,#REF!,4,FALSE))","v":false}]
["Sedláček Luděk","Vestec","1973",50,"300Kč",{"$f":"ISNA(VLOOKUP(A192,#REF!,4,FALSE))","v":false}]
["Silovský Martin","Vestec","1966",57,"300Kč",{"$f":"ISNA(VLOOKUP(A193,#REF!,4,FALSE))","v":false}]
["Šveňha Jiří","Vestec","1951",{"$f":"YEAR(NOW())-C194","v":72},"300Kč",{"$f":"ISNA(VLOOKUP(A194,#REF!,4,FALSE))","v":false}]
["Břečková Aneta","Úholičky","2008",15,"150Kč",{"$f":"ISNA(VLOOKUP(A195,#REF!,4,FALSE))","v":false}]
["Carvan Miloslav","Úholičky","1957",66,"300Kč",{"$f":"ISNA(VLOOKUP(A196,#REF!,4,FALSE))","v":false}]
["Dalihod Jakub","Úholičky","2001",22,"300Kč",{"$f":"ISNA(VLOOKUP(A197,#REF!,4,FALSE))","v":false}]
["Ducháček Michal","Úholičky","2013",10,"150Kč",{"$f":"ISNA(VLOOKUP(A198,#REF!,4,FALSE))","v":false}]
["Ducháček Petr","Úholičky","2009",14,"150Kč",{"$f":"ISNA(VLOOKUP(A199,#REF!,4,FALSE))","v":false}]
["Ducháčková Radka","Úholičky","1979",44,"300Kč",{"$f":"ISNA(VLOOKUP(A200,#REF!,4,FALSE))","v":false}]
["Dvořák František","Úholičky","2002",21,"300Kč",{"$f":"ISNA(VLOOKUP(A201,#REF!,4,FALSE))","v":false}]
["Dvořák Jiří","Úholičky","1970",53,"300Kč",{"$f":"ISNA(VLOOKUP(A202,#REF!,4,FALSE))","v":false}]
["Dvořáková Martina","Úholičky","1971",52,"300Kč",{"$f":"ISNA(VLOOKUP(A203,#REF!,4,FALSE))","v":false}]
["Hadrava Miloslav","Úholičky","1955",68,"300Kč",{"$f":"ISNA(VLOOKUP(A204,#REF!,4,FALSE))","v":false}]
["Horony Martin","Úholičky","2007",16,"150Kč",{"$f":"ISNA(VLOOKUP(A205,#REF!,4,FALSE))","v":false}]
["Horony Tibor","Úholičky","1971",52,"300Kč",{"$f":"ISNA(VLOOKUP(A206,#REF!,4,FALSE))","v":false}]
["Kočárek Martin","Úholičky","1976",47,"300Kč",{"$f":"ISNA(VLOOKUP(A207,#REF!,4,FALSE))","v":false}]
["Konopásková Kristina","Úholičky","2004",19,"150Kč",{"$f":"ISNA(VLOOKUP(A208,#REF!,4,FALSE))","v":false}]
["Kozel Petr","Úholičky","1968",55,"300Kč",{"$f":"ISNA(VLOOKUP(A209,#REF!,4,FALSE))","v":false}]
["Kozel Vilém","Úholičky","1966",57,"300Kč",{"$f":"ISNA(VLOOKUP(A210,#REF!,4,FALSE))","v":false}]
["Krásný Antonín","Úholičky","1952",71,"300Kč",{"$f":"ISNA(VLOOKUP(A211,#REF!,4,FALSE))","v":false}]
["Kříž Filip","Úholičky","2007",16,"150Kč",{"$f":"ISNA(VLOOKUP(A212,#REF!,4,FALSE))","v":false}]
["Matousch Šimon","Úholičky","2001",22,"300Kč",{"$f":"ISNA(VLOOKUP(A213,#REF!,4,FALSE))","v":false}]
["Novák Martin","Úholičky","1974",49,"300Kč",{"$f":"ISNA(VLOOKUP(A214,#REF!,4,FALSE))","v":false}]
["Novosad Rostislav","Úholičky","1960",63,"300Kč",{"$f":"ISNA(VLOOKUP(A215,#REF!,4,FALSE))","v":false}]
["Otépka Radim","Úholičky","1968",55,"300Kč",{"$f":"ISNA(VLOOKUP(A216,#REF!,4,FALSE))","v":false}]
["Rudolf Tomáš","Úholičky","1973",50,"300Kč",{"$f":"ISNA(VLOOKUP(A217,#REF!,4,FALSE))","v":false}]
["Sazimová Adéla","Úholičky","2008",15,"150Kč",{"$f":"ISNA(VLOOKUP(A218,#REF!,4,FALSE))","v":false}]
["Tesař Ondřej","Úholičky","1982",41,"300Kč",{"$f":"ISNA(VLOOKUP(A219,#REF!,4,FALSE))","v":false}]
["Vojtěch Dušan","Úholičky","1973",50,"300Kč",{"$f":"ISNA(VLOOKUP(A220,#REF!,4,FALSE))","v":false}]
["Vorm Petr","Úholičky","1977",46,"300Kč",{"$f":"ISNA(VLOOKUP(A221,#REF!,4,FALSE))","v":false}]
["Yosypenko Michal","Úholičky","2008",15,"150Kč",{"$f":"ISNA(VLOOKUP(A222,#REF!,4,FALSE))","v":false}]
["Černý Radek","Lety","1987",36,"300Kč",{"$f":"ISNA(VLOOKUP(A223,#REF!,4,FALSE))","v":false}]
["Dvořák Pavel","Lety","1975",48,"300Kč",{"$f":"ISNA(VLOOKUP(A224,#REF!,4,FALSE))","v":false}]
["Fryje Jindřich","Lety","1946",77,"300Kč",{"$f":"ISNA(VLOOKUP(A225,#REF!,4,FALSE))","v":false}]
["Holeček David","Lety","1975",48,"300Kč",{"$f":"ISNA(VLOOKUP(A226,#REF!,4,FALSE))","v":false}]
["Knýbel Pavel","Lety","1976",47,"300Kč",{"$f":"ISNA(VLOOKUP(A227,#REF!,4,FALSE))","v":false}]
["Kosek Jiří","Lety","1971",52,"300Kč",{"$f":"ISNA(VLOOKUP(A228,#REF!,4,FALSE))","v":false}]
["Krisová Marcela","Lety","1978",45,"300Kč",{"$f":"ISNA(VLOOKUP(A229,#REF!,4,FALSE))","v":false}]
["Květoň Jan","Lety","1964",59,"300Kč",{"$f":"ISNA(VLOOKUP(A230,#REF!,4,FALSE))","v":false}]
["Nykl Václav","Lety","1970",53,"300Kč",{"$f":"ISNA(VLOOKUP(A231,#REF!,4,FALSE))","v":false}]
["Urban Roman","Lety","1965",58,"300Kč",{"$f":"ISNA(VLOOKUP(A232,#REF!,4,FALSE))","v":false}]
["Vodička Jiří","Lety","1962",61,"300Kč",{"$f":"ISNA(VLOOKUP(A233,#REF!,4,FALSE))","v":false}]
["Barcal Petr","Rudná","1966",57,"300Kč",{"$f":"ISNA(VLOOKUP(A234,#REF!,4,FALSE))","v":false},null,null,"Barcal Petr",1966,300]
["Bosch Maxmilian","Rudná","2005",18,"150Kč",{"$f":"ISNA(VLOOKUP(A235,#REF!,4,FALSE))","v":false},null,null,"Bosch Maxmilian",2005,150]
["Bosch Maya","Rudná","2008",15,"150Kč",{"$f":"ISNA(VLOOKUP(A236,#REF!,4,FALSE))","v":false},null,null,"Bosch Maya",2008,150]
["Cacek Tomáš","Rudná","1987",36,"300Kč",{"$f":"ISNA(VLOOKUP(A237,#REF!,4,FALSE))","v":false},null,null,"Cacek Tomáš",1987,300]
["Charvát Vojtěch","Rudná","1951",72,"300Kč",{"$f":"ISNA(VLOOKUP(A238,#REF!,4,FALSE))","v":false},null,null,"Charvát Vojtěch",1951,300]
["Cihelka Jaroslav","Rudná","1946",77,"300Kč",{"$f":"ISNA(VLOOKUP(A239,#REF!,4,FALSE))","v":false},null,null,"Cihelka Jaroslav",1946,300]
["Foltyn Jiří","Rudná","1985",38,"300Kč",{"$f":"ISNA(VLOOKUP(A240,#REF!,4,FALSE))","v":false},null,null,"Foltyn Jiří",1985,300]
["Frýdl Lukáš","Rudná","2010",13,"150Kč",{"$f":"ISNA(VLOOKUP(A241,#REF!,4,FALSE))","v":false},null,null,"Frýdl Lukáš",2010,150]
["Frýdl Miloš","Rudná","1974",49,"300Kč",{"$f":"ISNA(VLOOKUP(A242,#REF!,4,FALSE))","v":false},null,null,"Frýdl Miloš",1974,300]
["Hluchý Marek","Rudná","1989",34,"300Kč",{"$f":"ISNA(VLOOKUP(A243,#REF!,4,FALSE))","v":false},null,null,"Hluchý Marek",1989,300]
["Hora Ondřej","Rudná","2007",16,"150Kč",{"$f":"ISNA(VLOOKUP(A244,#REF!,4,FALSE))","v":false},null,null,"Hora Ondřej",2007,150]
["Jelínek Vladimír","Rudná","1964",59,"300Kč",{"$f":"ISNA(VLOOKUP(A245,#REF!,4,FALSE))","v":false},null,null,"Jelínek Vladimír",1964,300]
["Jurenka David","Rudná","2007",16,"150Kč",{"$f":"ISNA(VLOOKUP(A246,#REF!,4,FALSE))","v":false},null,null,"Jurenka David",2007,150]
["Kolbušovský Michal","Rudná","2005",18,"150Kč",{"$f":"ISNA(VLOOKUP(A247,#REF!,4,FALSE))","v":false},null,null,"Kolbušovský Michal",2005,150]
["Kreyndl Ilya","Rudná","1955",68,"300Kč",{"$f":"ISNA(VLOOKUP(A248,#REF!,4,FALSE))","v":false},null,null,"Kreyndl Ilya",1955,300]
["Křižka Václav","Rudná","1972",51,"300Kč",{"$f":"ISNA(VLOOKUP(A249,#REF!,4,FALSE))","v":false},null,null,"Křižka Václav",1972,300]
["Mayer Lukáš","Rudná","1986",37,"300Kč",{"$f":"ISNA(VLOOKUP(A250,#REF!,4,FALSE))","v":false},null,null,"Mayer Lukáš",1986,300]
["Mühlhauser Zdeněk","Rudná","1987",36,"300Kč",{"$f":"ISNA(VLOOKUP(A251,#REF!,4,FALSE))","v":false},null,null,"Mühlhauser Zdeněk",1987,300]
["Nágr Pavel","Rudná","1966",57,"300Kč",{"$f":"ISNA(VLOOKUP(A252,#REF!,4,FALSE))","v":false},null,null,"Nágr Pavel",1966,300]
["Plecitý Lukáš","Rudná","1988",35,"300Kč",{"$f":"ISNA(VLOOKUP(A253,#REF!,4,FALSE))","v":false},null,null,"Plecitý Lukáš",1988,300]
["Sedmík Zdeněk","Rudná","1980",43,"300Kč",{"$f":"ISNA(VLOOKUP(A254,#REF!,4,FALSE))","v":false},null,null,"Sedmík Zdeněk",1980,300]
["Šenbauer Jiří","Rudná","1958",65,"300Kč",{"$f":"ISNA(VLOOKUP(A255,#REF!,4,FALSE))","v":false},null,null,"Šenbauer Jiří",1958,300]
["Sloup Jiří","Rudná","1966",57,"300Kč",{"$f":"ISNA(VLOOKUP(A256,#REF!,4,FALSE))","v":false},null,null,"Sloup Jiří",1966,300]
["Švarcová Liana","Rudná","2009",14,"150Kč",{"$f":"ISNA(VLOOKUP(A257,#REF!,4,FALSE))","v":false},null,null,"Švarcová Liana",2009,150]
["Vraštil Petr","Rudná","1975",{"$f":"YEAR(NOW())-C258","v":48},"300Kč",{"$f":"ISNA(VLOOKUP(A258,#REF!,4,FALSE))","v":false},null,null,"Vraštil Petr",1975,300]
["Wimmerová Lucie","Rudná","1975",48,"300Kč",{"$f":"ISNA(VLOOKUP(A259,#REF!,4,FALSE))","v":false},null,null,"Wimmerová Lucie",1975,300]
["Zelenka Jaromír","Rudná","1968",55,"300Kč",{"$f":"ISNA(VLOOKUP(A260,#REF!,4,FALSE))","v":false},null,null,"Zelenka Jaromír",1968,300]
["Báck Bohdan","Rudná","1977",46,"30Kč",{"$f":"ISNA(VLOOKUP(A261,#REF!,4,FALSE))","v":false},null,null,"Báck Bohdan",1977,30]
["Cacek Mikuláš","Rudná","2015",8,"30Kč",{"$f":"ISNA(VLOOKUP(A262,#REF!,4,FALSE))","v":false},null,null,"Cacek Mikuláš",2015,30]
["Cihelka Radek","Rudná","1973",50,"30Kč",{"$f":"ISNA(VLOOKUP(A263,#REF!,4,FALSE))","v":false},null,null,"Cihelka Radek",1973,30]
["Hanzlík František","Rudná","2006",17,"30Kč",{"$f":"ISNA(VLOOKUP(A264,#REF!,4,FALSE))","v":false},null,null,"Hanzlík František",2006,30]
["Hrabě Michal","Rudná","2008",15,"30Kč",{"$f":"ISNA(VLOOKUP(A265,#REF!,4,FALSE))","v":false},null,null,"Hrabě Michal",2008,30]
["Juan Tiago","Rudná","2014",9,"30Kč",{"$f":"ISNA(VLOOKUP(A266,#REF!,4,FALSE))","v":false},null,null,"Juan Tiago",2014,30]
["Kohoutek Kamil","Rudná","1972",51,"30Kč",{"$f":"ISNA(VLOOKUP(A267,#REF!,4,FALSE))","v":false},null,null,"Kohoutek Kamil",1972,30]
["Kohoutková Karolína","Rudná","2010",13,"30Kč",{"$f":"ISNA(VLOOKUP(A268,#REF!,4,FALSE))","v":false},null,null,"Kohoutková Karolína",2010,30]
["Kutil Tomáš","Rudná","2008",15,"30Kč",{"$f":"ISNA(VLOOKUP(A269,#REF!,4,FALSE))","v":false},null,null,"Kutil Tomáš",2008,30]
["Kutilová Krystýna","Rudná","2009",14,"30Kč",{"$f":"ISNA(VLOOKUP(A270,#REF!,4,FALSE))","v":false},null,null,"Kutilová Krystýna",2009,30]
["Marval Jan","Rudná","2008",15,"30Kč",{"$f":"ISNA(VLOOKUP(A271,#REF!,4,FALSE))","v":false},null,null,"Marval Jan",2008,30]
["Novotný David","Rudná","2013",10,"30Kč",{"$f":"ISNA(VLOOKUP(A272,#REF!,4,FALSE))","v":false},null,null,"Novotný David",2013,30]
["Petříková Johana","Rudná","2013",10,"30Kč",{"$f":"ISNA(VLOOKUP(A273,#REF!,4,FALSE))","v":false},null,null,"Petříková Johana",2013,30]
["Smetanková Amálie","Rudná","2010",13,"30Kč",{"$f":"ISNA(VLOOKUP(A274,#REF!,4,FALSE))","v":false},null,null,"Smetanková Amálie",2010,30]
["Teichman Petr","Rudná","2007",16,"30Kč",{"$f":"ISNA(VLOOKUP(A275,#REF!,4,FALSE))","v":false},null,null,"Teichman Petr",2007,30]
["Teichman Radim","Rudná","2009",14,"30Kč",{"$f":"ISNA(VLOOKUP(A276,#REF!,4,FALSE))","v":false},null,null,"Teichman Radim",2009,30]
["Wimmer Vítek","Rudná","2012",11,"30Kč",{"$f":"ISNA(VLOOKUP(A277,#REF!,4,FALSE))","v":false},null,null,"Wimmer Vítek",2012,30]
["Kruch Petr","Davle","1966",57,"300Kč",{"$f":"ISNA(VLOOKUP(A278,#REF!,4,FALSE))","v":false},null,null,"Kruch Petr",1966,300]
["Makovec Milan","Davle","1962",61,"300Kč",{"$f":"ISNA(VLOOKUP(A279,#REF!,4,FALSE))","v":false},null,null,"Makovec Milan",1962,300]
["Nágl Václav","Davle","1951",72,"300Kč",{"$f":"ISNA(VLOOKUP(A280,#REF!,4,FALSE))","v":false},null,null,"Nágl Václav",1951,300]
["Prudík Tomáš","Davle","1984",39,"300Kč",{"$f":"ISNA(VLOOKUP(A281,#REF!,4,FALSE))","v":false},null,null,"Prudík Tomáš",1984,300]
["Skyva Michal","Davle","2006",17,"150Kč",{"$f":"ISNA(VLOOKUP(A282,#REF!,4,FALSE))","v":false},null,null,"Skyva Michal",2006,150]
["Tománek František","Davle","1966",57,"300Kč",{"$f":"ISNA(VLOOKUP(A283,#REF!,4,FALSE))","v":false},null,null,"Tománek František",1966,300]
["Braný Václav","Davle","1947",76,"30Kč",{"$f":"ISNA(VLOOKUP(A284,#REF!,4,FALSE))","v":false},null,null,"Braný Václav",1947,30]
["Hrstka František","Davle","1950",73,"30Kč",{"$f":"ISNA(VLOOKUP(A285,#REF!,4,FALSE))","v":false},null,null,"Hrstka František",1950,30]
["Knotek Martin","Davle","2008",15,"30Kč",{"$f":"ISNA(VLOOKUP(A286,#REF!,4,FALSE))","v":false},null,null,"Knotek Martin",2008,30]
["Lundák Pavel","Davle","2011",12,"30Kč",{"$f":"ISNA(VLOOKUP(A287,#REF!,4,FALSE))","v":false},null,null,"Lundák Pavel",2011,30]
["Müller Vojtěch","Davle","2009",14,"30Kč",{"$f":"ISNA(VLOOKUP(A288,#REF!,4,FALSE))","v":false},"Nepokračuje",null,"Müller Vojtěch",2009,30]
["Počta Tomáš","Davle","1943",80,"30Kč",{"$f":"ISNA(VLOOKUP(A289,#REF!,4,FALSE))","v":false},null,null,"Počta Tomáš",1943,30]
["Slanec Josef","Davle","1942",81,"30Kč",{"$f":"ISNA(VLOOKUP(A290,#REF!,4,FALSE))","v":false},null,null,"Slanec Josef",1942,30]
["Středa Lukáš","Davle","2010",13,"30Kč",{"$f":"ISNA(VLOOKUP(A291,#REF!,4,FALSE))","v":false},"Nepokračuje",null,"Středa Lukáš",2010,30]
["Toman Olin","Davle","2008",15,"30Kč",{"$f":"ISNA(VLOOKUP(A292,#REF!,4,FALSE))","v":false},null,null,"Toman Olin",2008,30]
["Vybíral Václav","Davle","2010",13,"30Kč",{"$f":"ISNA(VLOOKUP(A293,#REF!,4,FALSE))","v":false},null,null,"Vybíral Václav",2010,30]
["Chromych Jan","Davle","2006",17,"30Kč",{"$f":"ISNA(VLOOKUP(A294,#REF!,4,FALSE))","v":false},null,null,"Chromych Jan",2006,30]
["Prokůpek Jiří","Davle","2009",14,"30Kč",{"$f":"ISNA(VLOOKUP(A295,#REF!,4,FALSE))","v":false},null,null,"Prokůpek Jiří",2009,30]
["Bernard Robin","Mníšek","2006",17,"150Kč",{"$f":"ISNA(VLOOKUP(A296,#REF!,4,FALSE))","v":false},null,null,"Bernard Robin",2006,150]
["Bujárek Milan","Mníšek","1954",69,"300Kč",{"$f":"ISNA(VLOOKUP(A297,#REF!,4,FALSE))","v":false},null,null,"Bujárek Milan",1954,300]
["Dáňa Martin","Mníšek","1963",60,"300Kč",{"$f":"ISNA(VLOOKUP(A298,#REF!,4,FALSE))","v":false},null,null,"Dáňa Martin",1963,300]
["Doležal Tomáš","Mníšek","1988",35,"300Kč",{"$f":"ISNA(VLOOKUP(A299,#REF!,4,FALSE))","v":false},null,null,"Doležal Tomáš",1988,300]
["Drašar Jakub","Mníšek","2009",14,"150Kč",{"$f":"ISNA(VLOOKUP(A300,#REF!,4,FALSE))","v":false},null,null,"Drašar Jakub",2009,150]
["Drbohlav Marek","Mníšek","1970",53,"300Kč",{"$f":"ISNA(VLOOKUP(A301,#REF!,4,FALSE))","v":false},null,null,"Drbohlav Marek",1970,300]
["Fiala Jan","Mníšek","1998",25,"300Kč",{"$f":"ISNA(VLOOKUP(A302,#REF!,4,FALSE))","v":false},null,null,"Fiala Jan",1998,300]
["Fiala Ondřej","Mníšek","1991",32,"300Kč",{"$f":"ISNA(VLOOKUP(A303,#REF!,4,FALSE))","v":false},null,null,"Fiala Ondřej",1991,300]
["Freisleben Radek","Mníšek","1984",39,"300Kč",{"$f":"ISNA(VLOOKUP(A304,#REF!,4,FALSE))","v":false},null,null,"Freisleben Radek",1984,300]
["Freisleben Zdeněk","Mníšek","1955",68,"300Kč",{"$f":"ISNA(VLOOKUP(A305,#REF!,4,FALSE))","v":false},null,null,"Freisleben Zdeněk",1955,300]
["Freudl David","Mníšek","2009",14,"150Kč",{"$f":"ISNA(VLOOKUP(A306,#REF!,4,FALSE))","v":false},null,null,"Freudl David",2009,150]
["Frinta Matyáš","Mníšek","2009",14,"150Kč",{"$f":"ISNA(VLOOKUP(A307,#REF!,4,FALSE))","v":false},null,null,"Frinta Matyáš",2009,150]
["Horák Ondřej","Mníšek","1990",33,"300Kč",{"$f":"ISNA(VLOOKUP(A308,#REF!,4,FALSE))","v":false},null,null,"Horák Ondřej",1990,300]
["Icha Richard","Mníšek","2005",18,"150Kč",{"$f":"ISNA(VLOOKUP(A309,#REF!,4,FALSE))","v":false},null,null,"Icha Richard",2005,150]
["Jesenský Ján","Mníšek","2010",13,"150Kč",{"$f":"ISNA(VLOOKUP(A310,#REF!,4,FALSE))","v":false},null,null,"Jesenský Ján",2010,150]
["Kalbáč Karel","Mníšek","1998",25,"300Kč",{"$f":"ISNA(VLOOKUP(A311,#REF!,4,FALSE))","v":false},null,null,"Kalbáč Karel",1998,300]
["Kalousek Jindřich","Mníšek","1950",73,"300Kč",{"$f":"ISNA(VLOOKUP(A312,#REF!,4,FALSE))","v":false},null,null,"Kalousek Jindřich",1950,300]
["Kameník Adam","Mníšek","2010",13,"150Kč",{"$f":"ISNA(VLOOKUP(A313,#REF!,4,FALSE))","v":false},null,null,"Kameník Adam",2010,150]
["Kilian Vít","Mníšek","1989",34,"300Kč",{"$f":"ISNA(VLOOKUP(A314,#REF!,4,FALSE))","v":false},null,null,"Kilian Vít",1989,300]
["Kosmina Natalia","Mníšek","1982",41,"300Kč",{"$f":"ISNA(VLOOKUP(A315,#REF!,4,FALSE))","v":false},null,null,"Kosmina Natalia",1982,300]
["Macháček Pavel st.","Mníšek","1963",60,"300Kč",{"$f":"ISNA(VLOOKUP(A316,#REF!,4,FALSE))","v":false},null,null,"Macháček Pavel st.",1963,300]
["Petkanič Vladimír","Mníšek","1965",58,"300Kč",{"$f":"ISNA(VLOOKUP(A317,#REF!,4,FALSE))","v":false},null,null,"Petkanič Vladimír",1965,300]
["Polavka Zdeněk","Mníšek","1959",64,"300Kč",{"$f":"ISNA(VLOOKUP(A318,#REF!,4,FALSE))","v":false},null,null,"Polavka Zdeněk",1959,300]
["Pospíšil Antonín","Mníšek","1964",59,"300Kč",{"$f":"ISNA(VLOOKUP(A319,#REF!,4,FALSE))","v":false},null,null,"Pospíšil Antonín",1964,300]
["Selement Jaroslav","Mníšek","1967",56,"300Kč",{"$f":"ISNA(VLOOKUP(A320,#REF!,4,FALSE))","v":false},null,null,"Selement Jaroslav",1967,300]
["Skoupil Lukáš","Mníšek","1984",39,"300Kč",{"$f":"ISNA(VLOOKUP(A321,#REF!,4,FALSE))","v":false},null,null,"Skoupil Lukáš",1984,300]
["Stacho Libor","Mníšek","1966",57,"300Kč",{"$f":"ISNA(VLOOKUP(A322,#REF!,4,FALSE))","v":false},null,null,"Stacho Libor",1966,300]
["Stržínek Jiří","Mníšek","1950",73,"300Kč",{"$f":"ISNA(VLOOKUP(A323,#REF!,4,FALSE))","v":false},null,null,"Stržínek Jiří",1950,300]
["Taller Filip","Mníšek","1989",34,"300Kč",{"$f":"ISNA(VLOOKUP(A324,#REF!,4,FALSE))","v":false},null,null,"Taller Filip",1989,300]
["Tkáč Ivan","Mníšek","1978",{"$f":"YEAR(NOW())-C325","v":45},"300Kč",{"$f":"ISNA(VLOOKUP(A325,#REF!,4,FALSE))","v":false},null,null,"Tkáč Ivan",1978,300]
["Tůma Martin","Mníšek","1982",41,"300Kč",{"$f":"ISNA(VLOOKUP(A326,#REF!,4,FALSE))","v":false},null,null,"Tůma Martin",1982,300]
["Urban Jan","Mníšek","1957",66,"300Kč",{"$f":"ISNA(VLOOKUP(A327,#REF!,4,FALSE))","v":false},null,null,"Urban Jan",1957,300]
["Zamazal Pavel","Mníšek","1962",61,"300Kč",{"$f":"ISNA(VLOOKUP(A328,#REF!,4,FALSE))","v":false},null,null,"Zamazal Pavel",1962,300]
["Fiala Milan","Mníšek","1963",60,"30Kč",{"$f":"ISNA(VLOOKUP(A329,#REF!,4,FALSE))","v":false},null,null,"Fiala Milan",1963,30]
["Kokeš Oldřich","Mníšek","1945",78,"30Kč",{"$f":"ISNA(VLOOKUP(A330,#REF!,4,FALSE))","v":false},null,null,"Kokeš Oldřich",1945,30]

{"sheet":"poziceHistorie","index":20,"n_rows":68,"n_cols":2,"rows_kept":68,"cut":false,"hidden":false,"merged":[]}
["Hráč zkr.","pozice"]
["Franěk Maty. (Čer)",1]
["Hlavenka Joel. (Čer)",2]
["Ducháček Petr. (Úho)",3]
["Hron Maty. (Čer)",4]
["Knotek Mart. (Dav)",5]
["Hlaváček Dani. (Čer)",6]
["Drašar Jaku. (Mní)",7]
["Yosypenko Mich. (Úho)",8]
["Boháč Anto. (Lib)",9]
["Dostál Ondř. (Lib)",10]
["Kameník Adam. (Mní)",11]
["Jurenka Davi. (Rud)",12]
["Vybíral Václ. (Dav)",13]
["Břečková Anet. (Úho)",14]
["Frinta Maty. (Mní)",15]
["Jesenský Ján. (Mní)",16]
["Prokůpek Jiří. (Dav)",17]
["Hlavenka Eli . (Čer)",18]
["Lundák Pave. (Dav)",19]
["Dostálová Anet. (Lib)",20]
["Chromych Jan. (Dav)",21]
["Sazimová Adél. (Úho)",22]
["Kuliš Davi. (Čer)",23]
["Valo Václ. (Úho)",24]
["Lacina Thom. (Mní)",25]
["Fiala Tobi. (Oře)",26]
["Kunc Luká. (Úho)",27]
["Petříková Joha. (Rud)",28]
["Nguyen Tuan. (Mní)",29]
["Juan Tiag. (Rud)",30]
["Bosch Maya. (Rud)",31]
["Klika Jaku. (Rud)",32]
["Kabátník Ondr. (Oře)",33]
["Ducháček Mich. (Úho)",34]
["Olexa Jaku. (Rud)",35]
["Frýdlová Tere. (Rud)",36]
["Hošek Ondř. (Mní)",37]
["Andrlík Dali. (Oře)",38]
["Fajt Jaku. (Čer)",39]
["Stára Jaku. (Úho)",40]
["Wimmer Víte. (Rud)",41]
["Horáčková Anež. (Oře)",42]
["Adlof Luká. (Úho)",43]
["Framberk Miku. (Lib)",44]
["Tobolář Jind. (Lib)",45]
["Feitz Fran. (Úho)",46]
["Špaček Matě. (Oře)",47]
["Juda Fran. (Lib)",48]
["Šulc Adam. (Oře)",49]
["Patras Maty. (Lib)",50]
["Šimák Jaro. (Oře)",51]
["Novotný Davi. (Rud)",52]
["Musil Ondř. (Lib)",53]
["Müller Vojt. (Dav)",54]
["Středa Luká. (Dav)",55]
["Cacek Miku. (Rud)",56]
["Kranát Petr. (Oře)",57]
["Toman Olin. (Dav)",58]
["Skyva Mich. (Dav)",59]
["Ponáhlo Mich. (Lib)",60]
["Šťastná Nata. (Oře)",61]
["Šťastná Domi. (Oře)",62]
["Šťastný Jan. (Oře)",63]
["Koteljuk Adam. (Oře)",64]
["Paliatka Jaku. (Oře)",65]
["Auf Tade. (Oře)",66]
["Švehla Fili. (Rud)",67]

{"sheet":"Kontakty","index":21,"n_rows":16,"n_cols":8,"rows_kept":16,"cut":false,"hidden":false,"merged":[[2,0,3,0],[13,0,14,0],[4,0,5,0],[7,0,8,0],[10,0,12,0]]}
["Klub ","Jméno","Telefon","Mail","Komise mládeže","Rozhodčí","Odd. poradající turnaje","Poznámka"]
["Vrané n/Vltavou","Viktor Sýkora",724045947,"viktor.sykora@email.cz"]
["Libčice n/Vltavou","Jan Framberk",737239792,"jan.framberk@accon.cz"]
[null,"Zdeněk Dostál",724059070,"DostalZ@dpp.cz","Člen"]
["Rudná","Václav Křižka",724617992,"vaclav.krizka@seznam.cz","Předseda","X","X"]
[null,"Miloš Frýdl",606529526,"milos.frydl@seznam.cz",null,"X","X","Autor BTM aplikace"]
["Roztoky","Jakub Lukáš",603962434,"jakub.lukas@outlook.cz"]
["Úholičky","Radka Duchačková",731450768,"Elegancedoruky@gmail.com","Člen"]
[null,"Vilém Kozel",602277285,"vilem.kozel@centrum.cz",null,null,"X"]
["Davle","Pavel Toman",736509145,"p.toman@seznam.cz","Člen"]
["Ořech","Martin Severa",721840541,"pylot01@seznam.cz","Člen"]
[null,"Jirka Pavlín",731464006,"sk@viktorieorech.cz",null,null,"X"]
[null,"Mirko Furst",271736534,"mrek.f@seznam.cz",null,"X"]
["Černošice","Petr Charvát","601 500 295\n602 319 479","sea@ucto-sea.eu","Člen"]
[null,"Jan Souček",725025843,"\t johnyxsoucek@gmail.com"]
["Mníšek pod Brdy","Marek Drbohlav",601125900,"marek.drbohlav@email.cz","Člen"]

{"sheet":"prezence","index":22,"n_rows":107,"n_cols":5,"rows_kept":107,"cut":false,"hidden":false,"merged":[]}
["Hráč","Oddíl","Narozen","Kategorie","Přítomen"]
["Hlavenka Eli Theodor","Černošice",2010,{"$f":"VLOOKUP(C2,Conf!F:H,3,0)","v":"U15"}]
["Franěk Matyáš","Černošice",2008,{"$f":"VLOOKUP(C3,Conf!F:H,3,0)","v":"U18"}]
["Hlaváček Daniel","Černošice",2009,{"$f":"VLOOKUP(C4,Conf!F:H,3,0)","v":"U15"}]
["Hron Matyáš","Černošice",2009,{"$f":"VLOOKUP(C5,Conf!F:H,3,0)","v":"U15"}]
["Suchý Marek","Černošice",2008,{"$f":"VLOOKUP(C6,Conf!F:H,3,0)","v":"U18"}]
["Hlavenka Joel Mathias","Černošice",2007,{"$f":"VLOOKUP(C7,Conf!F:H,3,0)","v":"U18"}]
["Housa Jiří","Černošice",2007,{"$f":"VLOOKUP(C8,Conf!F:H,3,0)","v":"U18"}]
["Kuliš David","Černošice",2007,{"$f":"VLOOKUP(C9,Conf!F:H,3,0)","v":"U18"}]
["Pajer Filip","Černošice",2005,{"$f":"VLOOKUP(C10,Conf!F:H,3,0)","v":"U19"}]
["Provazník Adam","Černošice",2005,{"$f":"VLOOKUP(C11,Conf!F:H,3,0)","v":"U19"}]
[]
["Hráč","Oddíl","Narozen","Kategorie","Přítomen"]
["Lundák Pavel","Davle",2011,{"$f":"VLOOKUP(C14,Conf!F:H,3,0)","v":"U13"}]
["Středa Lukáš","Davle",2010,{"$f":"VLOOKUP(C15,Conf!F:H,3,0)","v":"U15"}]
["Vybíral Václav","Davle",2010,{"$f":"VLOOKUP(C16,Conf!F:H,3,0)","v":"U15"}]
["Knotek Martin","Davle",2008,{"$f":"VLOOKUP(C17,Conf!F:H,3,0)","v":"U18"}]
["Müller Vojtěch","Davle",2009,{"$f":"VLOOKUP(C18,Conf!F:H,3,0)","v":"U15"}]
["Prokůpek Jiří","Davle",2009,{"$f":"VLOOKUP(C19,Conf!F:H,3,0)","v":"U15"}]
["Toman Olin","Davle",2008,{"$f":"VLOOKUP(C20,Conf!F:H,3,0)","v":"U18"}]
["Chromych Jan","Davle",2006,{"$f":"VLOOKUP(C21,Conf!F:H,3,0)","v":"U18"}]
["Skyva Michal","Davle",2006,{"$f":"VLOOKUP(C22,Conf!F:H,3,0)","v":"U18"}]
[]
["Hráč","Oddíl","Narozen","Kategorie","Přítomen"]
["Framberk Mikuláš","Libčice",2013,{"$f":"VLOOKUP(C25,Conf!F:H,3,0)","v":"U11"}]
["Pojerová Gabriela","Libčice",2010,{"$f":"VLOOKUP(C26,Conf!F:H,3,0)","v":"U15"}]
["Boháč Antonín","Libčice",2008,{"$f":"VLOOKUP(C27,Conf!F:H,3,0)","v":"U18"}]
["Dostál Ondřej","Libčice",2009,{"$f":"VLOOKUP(C28,Conf!F:H,3,0)","v":"U15"}]
["Slapnička Ondřej","Libčice",2009,{"$f":"VLOOKUP(C29,Conf!F:H,3,0)","v":"U15"}]
["Tobolář Jindřich","Libčice",2009,{"$f":"VLOOKUP(C30,Conf!F:H,3,0)","v":"U15"}]
["Dostálová Aneta","Libčice",2006,{"$f":"VLOOKUP(C31,Conf!F:H,3,0)","v":"U18"}]
["Juda František","Libčice",2006,{"$f":"VLOOKUP(C32,Conf!F:H,3,0)","v":"U18"}]
["Nováková Karolina","Libčice",2005,{"$f":"VLOOKUP(C33,Conf!F:H,3,0)","v":"U19"}]
["Patras Matyáš","Libčice",2007,{"$f":"VLOOKUP(C34,Conf!F:H,3,0)","v":"U18"}]
["Ponáhlo Michal","Libčice",2007,{"$f":"VLOOKUP(C35,Conf!F:H,3,0)","v":"U18"}]
[]
["Hráč","Oddíl","Narozen","Kategorie","Přítomen"]
["Andrlík Dalibor","Ořech",2010,{"$f":"VLOOKUP(C38,Conf!F:H,3,0)","v":"U15"}]
["Fiala Tobiáš","Ořech",2010,{"$f":"VLOOKUP(C39,Conf!F:H,3,0)","v":"U15"}]
["Kabátník Ondra","Ořech",2010,{"$f":"VLOOKUP(C40,Conf!F:H,3,0)","v":"U15"}]
["Šimák Jaroslav","Ořech",2010,{"$f":"VLOOKUP(C41,Conf!F:H,3,0)","v":"U15"}]
["Špaček Matěj","Ořech",2010,{"$f":"VLOOKUP(C42,Conf!F:H,3,0)","v":"U15"}]
["Horáčková Anežka","Ořech",2009,{"$f":"VLOOKUP(C43,Conf!F:H,3,0)","v":"U15"}]
["Kranát Petr","Ořech",2009,{"$f":"VLOOKUP(C44,Conf!F:H,3,0)","v":"U15"}]
["Šťastná Dominika","Ořech",2008,{"$f":"VLOOKUP(C45,Conf!F:H,3,0)","v":"U18"}]
["Šťastná Nataly","Ořech",2008,{"$f":"VLOOKUP(C46,Conf!F:H,3,0)","v":"U18"}]
["Šťastný Jan","Ořech",2008,{"$f":"VLOOKUP(C47,Conf!F:H,3,0)","v":"U18"}]
["Šulc Adam","Ořech",2009,{"$f":"VLOOKUP(C48,Conf!F:H,3,0)","v":"U15"}]
["Němejc Melichar","Ořech",2005,{"$f":"VLOOKUP(C49,Conf!F:H,3,0)","v":"U19"}]
["Rein Tomáš","Ořech",2005,{"$f":"VLOOKUP(C50,Conf!F:H,3,0)","v":"U19"}]
[]
["Hráč","Oddíl","Narozen","Kategorie","Přítomen"]
["Hošek Ondřej","Mníšek",2012,{"$f":"VLOOKUP(C53,Conf!F:H,3,0)","v":"U13"}]
["Lacina Thomas","Mníšek",2012,{"$f":"VLOOKUP(C54,Conf!F:H,3,0)","v":"U13"}]
["Nguyen Tuan Tu","Mníšek",2012,{"$f":"VLOOKUP(C55,Conf!F:H,3,0)","v":"U13"}]
["Jesenský Ján","Mníšek",2010,{"$f":"VLOOKUP(C56,Conf!F:H,3,0)","v":"U15"}]
["Kameník Adam","Mníšek",2010,{"$f":"VLOOKUP(C57,Conf!F:H,3,0)","v":"U15"}]
["Drašar Jakub","Mníšek",2009,{"$f":"VLOOKUP(C58,Conf!F:H,3,0)","v":"U15"}]
["Freudl David","Mníšek",2009,{"$f":"VLOOKUP(C59,Conf!F:H,3,0)","v":"U15"}]
["Frinta Matyáš","Mníšek",2009,{"$f":"VLOOKUP(C60,Conf!F:H,3,0)","v":"U15"}]
["Bernard Robin","Mníšek",2006,{"$f":"VLOOKUP(C61,Conf!F:H,3,0)","v":"U18"}]
["Icha Richard","Mníšek",2005,{"$f":"VLOOKUP(C62,Conf!F:H,3,0)","v":"U19"}]
[]
["Hráč","Oddíl","Narozen","Kategorie","Přítomen"]
["Hloch Matěj","Roztoky",2011,{"$f":"VLOOKUP(C65,Conf!F:H,3,0)","v":"U13"}]
["Lukáš Filip nejml.","Roztoky",2011,{"$f":"VLOOKUP(C66,Conf!F:H,3,0)","v":"U13"}]
["Příhonský Ernesto","Roztoky",2010,{"$f":"VLOOKUP(C67,Conf!F:H,3,0)","v":"U15"}]
["Vašků Karolína","Roztoky",2010,{"$f":"VLOOKUP(C68,Conf!F:H,3,0)","v":"U15"}]
["Čepela Ondřej","Roztoky",2008,{"$f":"VLOOKUP(C69,Conf!F:H,3,0)","v":"U18"}]
["Kalinová Hana","Roztoky",2009,{"$f":"VLOOKUP(C70,Conf!F:H,3,0)","v":"U15"}]
["Machek Jan ml.","Roztoky",2008,{"$f":"VLOOKUP(C71,Conf!F:H,3,0)","v":"U18"}]
["Cabicar Šimon","Roztoky",2005,{"$f":"VLOOKUP(C72,Conf!F:H,3,0)","v":"U19"}]
["Kaláb Adam","Roztoky",2006,{"$f":"VLOOKUP(C73,Conf!F:H,3,0)","v":"U18"}]
["Kuchtová Klára","Roztoky",2005,{"$f":"VLOOKUP(C74,Conf!F:H,3,0)","v":"U19"}]
["Lukáš Lukáš","Roztoky",2006,{"$f":"VLOOKUP(C75,Conf!F:H,3,0)","v":"U18"}]
["Stříbrný Jiří Maxmilián","Roztoky",2006,{"$f":"VLOOKUP(C76,Conf!F:H,3,0)","v":"U18"}]
["Vágner Jonáš","Roztoky",2005,{"$f":"VLOOKUP(C77,Conf!F:H,3,0)","v":"U19"}]
[]
["Hráč","Oddíl","Narozen","Kategorie","Přítomen"]
["Juan Tiago","Rudná",2014,"U11"]
["Petříková Johana","Rudná",2013,{"$f":"VLOOKUP(C81,Conf!F:H,3,0)","v":"U11"}]
["Wimmer Vítek","Rudná",2012,{"$f":"VLOOKUP(C82,Conf!F:H,3,0)","v":"U13"}]
["Olexa Jakub","Rudná",2011,{"$f":"VLOOKUP(C83,Conf!F:H,3,0)","v":"U13"}]
["Bosch Maya","Rudná",2008,{"$f":"VLOOKUP(C84,Conf!F:H,3,0)","v":"U18"}]
["Hrabě Michal","Rudná",2008,{"$f":"VLOOKUP(C85,Conf!F:H,3,0)","v":"U18"}]
["Klika Jakub","Rudná",2009,{"$f":"VLOOKUP(C86,Conf!F:H,3,0)","v":"U15"}]
["Kutil Tomáš","Rudná",2008,{"$f":"VLOOKUP(C87,Conf!F:H,3,0)","v":"U18"}]
["Kutilová Krystýna","Rudná",2009,{"$f":"VLOOKUP(C88,Conf!F:H,3,0)","v":"U15"}]
["Marval Jan","Rudná",2008,{"$f":"VLOOKUP(C89,Conf!F:H,3,0)","v":"U18"}]
["Švarcová Liana","Rudná",2009,{"$f":"VLOOKUP(C90,Conf!F:H,3,0)","v":"U15"}]
["Teichman Radim","Rudná",2009,{"$f":"VLOOKUP(C91,Conf!F:H,3,0)","v":"U15"}]
["Bosch Maxmilian","Rudná",2005,{"$f":"VLOOKUP(C92,Conf!F:H,3,0)","v":"U19"}]
["Jurenka David","Rudná",2007,{"$f":"VLOOKUP(C93,Conf!F:H,3,0)","v":"U18"}]
["Kolbušovský Michal","Rudná",2005,{"$f":"VLOOKUP(C94,Conf!F:H,3,0)","v":"U19"}]
["Teichman Petr","Rudná",2007,{"$f":"VLOOKUP(C95,Conf!F:H,3,0)","v":"U18"}]
[]
["Hráč","Oddíl","Narozen","Kategorie","Přítomen"]
["Ducháček Michal","Úholičky",2013,{"$f":"VLOOKUP(C98,Conf!F:H,3,0)","v":"U11"}]
["Břečková Aneta","Úholičky",2008,{"$f":"VLOOKUP(C99,Conf!F:H,3,0)","v":"U18"}]
["Ducháček Petr","Úholičky",2009,{"$f":"VLOOKUP(C100,Conf!F:H,3,0)","v":"U15"}]
["Kunc Lukáš","Úholičky",2008,{"$f":"VLOOKUP(C101,Conf!F:H,3,0)","v":"U18"}]
["Sazimová Adéla","Úholičky",2008,{"$f":"VLOOKUP(C102,Conf!F:H,3,0)","v":"U18"}]
["Valo Václav","Úholičky",2009,{"$f":"VLOOKUP(C103,Conf!F:H,3,0)","v":"U15"}]
["Yosypenko Michal","Úholičky",2008,{"$f":"VLOOKUP(C104,Conf!F:H,3,0)","v":"U18"}]
["Horony Martin","Úholičky",2007,{"$f":"VLOOKUP(C105,Conf!F:H,3,0)","v":"U18"}]
["Kříž Filip","Úholičky",2007,{"$f":"VLOOKUP(C106,Conf!F:H,3,0)","v":"U18"}]
["Freislebenová Sára","Únětice",2005,{"$f":"VLOOKUP(C107,Conf!F:H,3,0)","v":"U19"}]

{"sheet":"souhrn","index":23,"n_rows":40,"n_cols":2,"rows_kept":40,"cut":false,"hidden":false,"merged":[[28,1,28,4],[33,1,33,4],[23,1,23,4],[16,0,19,0],[16,1,16,4],[17,1,17,4],[18,1,18,4],[19,1,19,4],[20,0,24,0],[20,1,20,4],[21,1,21,4],[22,1,22,4],[24,1,24,4],[34,1,34,4],[35,1,35,4],[25,0,29,0],[30,0,34,0],[35,0,39,0],[36,1,36,4],[29,1,29,4],[30,1,30,4],[31,1,31,4],[37,1,37,4],[38,1,38,4],[39,1,39,4],[32,1,32,4],[25,1,25,4],[26,1,26,4],[27,1,27,4]]}
["Účast na turnaji po oddílech"]
[]
["Přítomen","x"]
[]
["Popisky řádků","Počet"]
["Černošice",7]
["Davle",5]
["Libčice",1]
["Mníšek",7]
["Ořech",1]
["Rudná",11]
["Úholičky",9]
["Celkový součet",41]
[]
[]
["Použité herní systémy"]
["D1 ","Herní systém C"]
[null,"  - dvě 4-členné tabulky o rozdělení do pavouka"]
[null,"  - první a druhý jdou do pavouka o 1-4 místo"]
[null,"  - třetí a čtvrtý jde do pavouka o 5-8 místo"]
["D2","Herní systém D"]
[null,"  - dvě 4-členné tabulky o rozdělení do pavouka"]
[null,"  - hráči na prvních místech v tabulkách hrají o 1-2 místo"]
[null,"  - hráči na druhých místech v tabulkách hrají o 3-4 místo"]
[null,"  - …"]
["D3","Herní systém D"]
[null,"  - dvě 4-členné tabulky o rozdělení do pavouka"]
[null,"  - hráči na prvních místech v tabulkách hrají o 1-2 místo"]
[null,"  - hráči na druhých místech v tabulkách hrají o 3-4 místo"]
[null,"  - …"]
["D4","Herní systém D"]
[null,"  - dvě 4-členné tabulky o rozdělení do pavouka"]
[null,"  - hráči na prvních místech v tabulkách hrají o 1-2 místo"]
[null,"  - hráči na druhých místech v tabulkách hrají o 3-4 místo"]
[null,"  - …"]
["D5","Herní systém D"]
[null,"  - dvě 4-členné tabulky o rozdělení do pavouka"]
[null,"  - hráči na prvních místech v tabulkách hrají o 1-2 místo"]
[null,"  - hráči na druhých místech v tabulkách hrají o 3-4 místo"]
[null,"  - …"]